Workbook

Sheet Sheet1 (hidden)
B2: To Do List 8.20.20
B5: Comparison page chart? Visual?
B6: Save Macro
B7: comments
B8: To reset whole sheet, need to go to each sheet and reset to default each using the back button
B9: Disclaimer sheet similar to beginning of forcap
B10: Call the macros that calculate results. Need to figure this out
B16: Notes for using this decision support tool
B18: 1). Start on the "user page" and work your way using the blue arrows towards the comparison tab which will show you your results.

Sheet Title
D19: Written and developed by James Tim Stults and Dr. Michael Popp
I27: © Copyright Reserved.
B29: Disclaimer: The information provided within represents estimates that are a result of a set of complex calculations that are described in more detail in information provided on the download site. Changes in parameter values and its implications on profitability differences are estimates. The user should use their own reasonable judgment to determine whether results are appropriate before acting on the results. As such, this software is provided ‘as is’ and without warranties as to performance of merchantability. Further, statements may have been made to you about this software. Any such statements do not constitute warranties and shall not be relied on by the user in deciding whether to use the program or act on its results. This program is provided without any expressed or implied warranties whatsoever. Because the diversity of conditions and hardware under which this program may be used, no warranty of merchantability or warranty of fitness for a particular purpose is offered. The user is advised to test the program thoroughly before relying on it. The user assumes the entire risk of using the program. The University of Arkansas will not be liable for any claim or damage brought against the user by any third party, nor will the University of Arkansas be liable for any consequential, indirect or special damages suffered by the user as a result of the software.

Sheet User Page
B5: Acres Fertilized | C5: 300 | E5: Fertilizer Cost | F5: $/ton
C6: $/ton | E6: Price of Urea (46 - 0 - 0) | F6: 400.6363636
B7: Cost of Litter | C7: 45 | E7: Price of Triple Super Phosphate (0 - 46 - 0) | F7: 456.9454545
B8: Litter Nutrient Analysis | C8: in % | E8: Price of Muriate of Potash (0 - 0 - 60) | F8: 473.0181818
B9: Nitrogen | C9: 3 | F9: $/order
B10: Phosphate | C10: 3 | E10: Any additional fees incurred to get the fertilizer to the farm? | F10: 0
B11: Potash | C11: 2.5
B13: Desired Nutrient Application Rate | C13: (lbs./acre/year) | E13: Labor Charges | F13: $/hr
B14: Nitrogen | C14: 60 | E14: Operator 1 | F14: 20
B15: Phosphate | C15: 40 | E15: Operator 2 | F15: 15
B16: Potash | C16: 60 | E16: Operator 3 | F16: 10
B18: Interest Rates | C18: % annual | E18: Diesel Fuel Price ($/gal) | F18: 2
B19: Capital recovery rate | C19: 0.06
H21: TRUE
B24: Default Information
B25: Acres Fertilized | C25: 300 | E25: Fertilizer Cost | F25: $/ton
C26: $/ton | E26: Price of Urea (46 - 0 - 0) | F26: =Fertilizer!$AU$27 -> 400.6363636
B27: Cost of Litter | C27: 35 | E27: Price of Triple Super Phosphate (0 - 46 - 0) | F27: =Fertilizer!$AV$27 -> 456.9454545
B28: Litter Nutrient Analysis | C28: in % | E28: Price of Muriate of Potash (0 - 0 - 60) | F28: =Fertilizer!$AW$27 -> 473.0181818
B29: Nitrogen | C29: 3 | F29: $/order
B30: Phosphate | C30: 3 | E30: Any additional fees incurred to get the fertilizer to the farm? | F30: 0
B31: Potash | C31: 2.5
B33: Desired Nutrient Application Rate | C33: (lbs./acre/year) | E33: Labor Charges | F33: $/hr
B34: Nitrogen | C34: 60 | E34: Operator 1 | F34: 20
B35: Phosphate | C35: 40 | E35: Operator 2 | F35: 15
B36: Potash | C36: 60 | E36: Operator 3 | F36: 10
B38: Interest Rates | C38: % annual | E38: Diesel Fuel Price ($/gal) | F38: 2
B39: Capital recovery rate | C39: 0.06

Sheet Equipment
C2: Specification of Equipment Choices | AL2: TRUE | AM2: Temporary flag to turn off autoupdate | AS2: Insurance (% of avg. value) | AT2: Property Taxes (% of avg. value)
AS3: 0.0055 | AT3: 0.0075
AK4: =OR(AK6,AK7,AK8,AK9,AK11,AK12) -> FALSE
F5: Equipment Type (Changes load defaults) | G5: Name | H5: Rent/Lease, Custom activity, or Owned? | I5: Rental/Lease Fee in $/hr or Custom Rate in $/acre | J5: Age of Equipment at time of purchase (years) | K5: Existing hours on equipment (at time of purchase) | L5: Annual hours of usage | M5: Default List Price (New) | N5: Est. Purchase Price | O5: Remaining Useful Life (Years) | P5: Expected Salvage Value (w/o inflation) | Q5: Capital Recovery Factor | R5: Annual Capital Recovery | S5: Repair Factor (% of list price over useful life) | T5: Annual Repair & Maintenance | U5: =CONCATENATE("Yearly Insurance (",ROUND($AS$3*100,2)," % of avg. value)") -> Yearly Insurance (0.55 % of avg. value) | V5: =CONCATENATE("Yearly Property Tax (",ROUND($AT$3*100,2)," % of avg. value)") -> Yearly Property Tax (0.75 % of avg. value) | W5: Ownership Cost per hour | X5: C1 | Y5: C2 | Z5: C3 | AA5: Min HP | AB5: Useful Life in hours | AK5: Not Saved? | AL5: Equipment Type | AM5: Name | AN5: Rent/Lease, Custom activity, or Owned? | AO5: Rental/Lease Fee per hour | AP5: Age of Equipment at time of purchase (years) | AQ5: Existing hours on equipment (at time of purchase) | AR5: Annual hours of usage | AS5: Default List Price (New) | AT5: Est. Purchase Price | AU5: Remaining Useful Life (Years) | AV5: Expected Salvage Value (w/o inflation) | AW5: Capital Recovery Factor | AX5: Capital Recovery | AY5: Repair Factor (% of list price over useful life) | AZ5: Annual Repair & Maintenance | BA5: =CONCATENATE("Insurance (",ROUND($AS$3*100,2)," % of avg. value)") -> Insurance (0.55 % of avg. value) | BB5: =CONCATENATE("Property Tax (",ROUND($AT$3*100,2)," % of avg. value)") -> Property Tax (0.75 % of avg. value) | BC5: Ownership Cost per hour | BD5: C1 | BE5: C2 | BF5: C3 | BG5: Min HP | BH5: Useful Life in hours
E6: Tractors | F6: MFWD55 | G6: =VLOOKUP($F6,$F$48:$V$66,2,FALSE) -> John Deere 5055e 4wd | H6: Owned | I6: =IF(H6="Owned","N/A",IF(H6="Custom",VLOOKUP(F6,$F$48:$I$66,4,FALSE),"Enter Fee")) -> N/A | J6: =IF(H6="Owned",VLOOKUP($F6,$F$48:$V$66,5,FALSE),"N/A") -> 0 | K6: =IF(H6="Owned",VLOOKUP($F6,$F$48:$V$66,6,FALSE),"N/A") -> 0 | L6: =IF(H6="Owned",VLOOKUP($F6,$F$48:$V$66,7,FALSE),"N/A") -> 600 | M6: =IF(H6="Owned",VLOOKUP($F6,$F$48:$V$66,8,FALSE),"N/A") -> 33000 | N6: =IF(H6="Owned",IF(J6>0,M6*(X6-Y6*J6^0.5-Z6*(K6/J6)^0.5)^2,M6),"N/A") -> 33000 | O6: =IF(H6="Owned",IF((IF(((AB6-K6)/L6)>20,20,((AB6-K6)/L6))-J6)<0,0,(IF(((AB6-K6)/L6)>20,20,((AB6-K6)/L6))-J6)),"N/A") -> 20 | P6: =IF(H6="Owned",N6*((X6-Y6*(O6^0.5)-Z6*(L6^0.5)))^2,"N/A") -> 5905.241927 | Q6: =IF(H6="Owned",('User Page'!$C$19*(1+'User Page'!$C$19)^O6)/(((1+'User Page'!$C$19)^O6)-1),"N/A") -> 0.08718455698 | R6: =IF(H6="Owned",((N6-P6)*Q6)+(P6*'User Page'!$C$19),"N/A") -> 2716.558995 | S6: =VLOOKUP($F6,$F$48:$V$66,12,FALSE) -> 0.8 | T6: =IF(H6="Owned",S6*M6/IF(((AB6-K6)/L6)>20,20,((AB6-K6)/L6)),0) -> 1320 | U6: =IF(H6="Owned",$AS$3*AVERAGE(N6,P6),0) -> 106.9894153 | V6: =IF(H6="Owned",$AT$3*AVERAGE(N6,P6),0) -> 145.8946572 | W6: =IF(H6="Owned",(R6+T6+U6+V6)/L6,"N/A") -> 7.149071779 | X6: =IF(H6="Owned",VLOOKUP($F6,$F$48:$V$66,13,FALSE),"N/A") -> 0.981 | Y6: =IF(H6="Owned",VLOOKUP($F6,$F$48:$V$66,14,FALSE),"N/A") -> 0.093 | Z6: =IF(H6="Owned",VLOOKUP($F6,$F$48:$V$66,15,FALSE),"N/A") -> 0.0058 | AA6: =VLOOKUP($F6,$F$48:$V$66,16,FALSE) -> - | AB6: =VLOOKUP($F6,$F$48:$V$66,17,FALSE) -> 16000 | AK6: =IF(AND(F6=AL6,G6=AM6,H6=AN6,I6=AO6,J6=AP6,K6=AQ6,L6=AR6,M6=AS6,N6=AT6,O6=AU6,P6=AV6,Q6=AW6,R6=AX6,S6=AY6,T6=AZ6,U6=BA6,V6=BB6,W6=BC6,X6=BD6,Y6=BE6,Z6=BF6,AA6=BG6,AB6=BH6),FALSE,TRUE) -> FALSE | AL6: MFWD55 | AM6: =VLOOKUP($F6,$F$48:$V$66,2,FALSE) -> John Deere 5055e 4wd | AN6: Owned | AO6: =IF(H6="Owned","N/A",IF(H6="Custom",VLOOKUP(F6,$F$48:$I$66,4,FALSE),"Enter Fee")) -> N/A | AP6: =IF(H6="Owned",VLOOKUP($F6,$F$48:$V$66,5,FALSE),"N/A") -> 0 | AQ6: =IF(H6="Owned",VLOOKUP($F6,$F$48:$V$66,6,FALSE),"N/A") -> 0 | AR6: =IF(H6="Owned",VLOOKUP($F6,$F$48:$V$66,7,FALSE),"N/A") -> 600 | AS6: =IF(H6="Owned",VLOOKUP($F6,$F$48:$V$66,8,FALSE),"N/A") -> 33000 | AT6: =IF(H6="Owned",IF(J6>0,M6*(X6-Y6*J6^0.5-Z6*(K6/J6)^0.5)^2,M6),"N/A") -> 33000 | AU6: =IF(H6="Owned",IF((IF(((AB6-K6)/L6)>20,20,((AB6-K6)/L6))-J6)<0,0,(IF(((AB6-K6)/L6)>20,20,((AB6-K6)/L6))-J6)),"N/A") -> 20 | AV6: =IF(H6="Owned",N6*((X6-Y6*(O6^0.5)-Z6*(L6^0.5)))^2,"N/A") -> 5905.241927 | AW6: =IF(H6="Owned",('User Page'!$C$19*(1+'User Page'!$C$19)^O6)/(((1+'User Page'!$C$19)^O6)-1),"N/A") -> 0.08718455698 | AX6: =IF(H6="Owned",((N6-P6)*Q6)+(P6*'User Page'!$C$19),"N/A") -> 2716.558995 | AY6: =VLOOKUP($F6,$F$48:$V$66,12,FALSE) -> 0.8 | AZ6: =IF(H6="Owned",S6*M6/IF(((AB6-K6)/L6)>20,20,((AB6-K6)/L6)),0) -> 1320 | BA6: =IF(H6="Owned",$AS$3*AVERAGE(N6,P6),0) -> 106.9894153 | BB6: =IF(H6="Owned",$AT$3*AVERAGE(N6,P6),0) -> 145.8946572 | BC6: =IF(H6="Owned",(R6+T6+U6+V6)/L6,"N/A") -> 7.149071779 | BD6: =IF(H6="Owned",VLOOKUP($F6,$F$48:$V$66,13,FALSE),"N/A") -> 0.981 | BE6: =IF(H6="Owned",VLOOKUP($F6,$F$48:$V$66,14,FALSE),"N/A") -> 0.093 | BF6: =IF(H6="Owned",VLOOKUP($F6,$F$48:$V$66,15,FALSE),"N/A") -> 0.0058 | BG6: =VLOOKUP($F6,$F$48:$V$66,16,FALSE) -> - | BH6: =VLOOKUP($F6,$F$48:$V$66,17,FALSE) -> 16000
F7: MFWD110 | G7: =VLOOKUP($F7,$F$48:$V$66,2,FALSE) -> John Deere 6110M 4wd | H7: Owned | I7: =IF(H7="Owned","N/A",IF(H7="Custom",VLOOKUP(F7,$F$48:$I$66,4,FALSE),"Enter Fee")) -> N/A | J7: =IF(H7="Owned",VLOOKUP($F7,$F$48:$V$66,5,FALSE),"N/A") -> 0 | K7: =IF(H7="Owned",VLOOKUP($F7,$F$48:$V$66,6,FALSE),"N/A") -> 0 | L7: =IF(H7="Owned",VLOOKUP($F7,$F$48:$V$66,7,FALSE),"N/A") -> 850 | M7: =IF(H7="Owned",VLOOKUP($F7,$F$48:$V$66,8,FALSE),"N/A") -> 110000 | N7: =IF(H7="Owned",IF(J7>0,M7*(X7-Y7*J7^0.5-Z7*(K7/J7)^0.5)^2,M7),"N/A") -> 110000 | O7: =IF(H7="Owned",IF((IF(((AB7-K7)/L7)>20,20,((AB7-K7)/L7))-J7)<0,0,(IF(((AB7-K7)/L7)>20,20,((AB7-K7)/L7))-J7)),"N/A") -> 18.82352941 | P7: =IF(H7="Owned",N7*((X7-Y7*(O7^0.5)-Z7*(L7^0.5)))^2,"N/A") -> 25855.04379 | Q7: =IF(H7="Owned",('User Page'!$C$19*(1+'User Page'!$C$19)^O7)/(((1+'User Page'!$C$19)^O7)-1),"N/A") -> 0.09008050397 | R7: =IF(H7="Owned",((N7-P7)*Q7)+(P7*'User Page'!$C$19),"N/A") -> 9131.122689 | S7: =VLOOKUP($F7,$F$48:$V$66,12,FALSE) -> 0.8 | T7: =IF(H7="Owned",S7*M7/IF(((AB7-K7)/L7)>20,20,((AB7-K7)/L7)),0) -> 4675 | U7: =IF(H7="Owned",$AS$3*AVERAGE(N7,P7),0) -> 373.6013704 | V7: =IF(H7="Owned",$AT$3*AVERAGE(N7,P7),0) -> 509.4564142 | W7: =IF(H7="Owned",(R7+T7+U7+V7)/L7,"N/A") -> 17.28138879 | X7: =IF(H7="Owned",VLOOKUP($F7,$F$48:$V$66,13,FALSE),"N/A") -> 0.942 | Y7: =IF(H7="Owned",VLOOKUP($F7,$F$48:$V$66,14,FALSE),"N/A") -> 0.1 | Z7: =IF(H7="Owned",VLOOKUP($F7,$F$48:$V$66,15,FALSE),"N/A") -> 0.0008 | AA7: =VLOOKUP($F7,$F$48:$V$66,16,FALSE) -> - | AB7: =VLOOKUP($F7,$F$48:$V$66,17,FALSE) -> 16000 | AK7: =IF(AND(F7=AL7,G7=AM7,H7=AN7,I7=AO7,J7=AP7,K7=AQ7,L7=AR7,M7=AS7,N7=AT7,O7=AU7,P7=AV7,Q7=AW7,R7=AX7,S7=AY7,T7=AZ7,U7=BA7,V7=BB7,W7=BC7,X7=BD7,Y7=BE7,Z7=BF7,AA7=BG7,AB7=BH7),FALSE,TRUE) -> FALSE | AL7: MFWD110 | AM7: =VLOOKUP($F7,$F$48:$V$66,2,FALSE) -> John Deere 6110M 4wd | AN7: Owned | AO7: =IF(H7="Owned","N/A",IF(H7="Custom",VLOOKUP(F7,$F$48:$I$66,4,FALSE),"Enter Fee")) -> N/A | AP7: =IF(H7="Owned",VLOOKUP($F7,$F$48:$V$66,5,FALSE),"N/A") -> 0 | AQ7: =IF(H7="Owned",VLOOKUP($F7,$F$48:$V$66,6,FALSE),"N/A") -> 0 | AR7: =IF(H7="Owned",VLOOKUP($F7,$F$48:$V$66,7,FALSE),"N/A") -> 850 | AS7: =IF(H7="Owned",VLOOKUP($F7,$F$48:$V$66,8,FALSE),"N/A") -> 110000 | AT7: =IF(H7="Owned",IF(J7>0,M7*(X7-Y7*J7^0.5-Z7*(K7/J7)^0.5)^2,M7),"N/A") -> 110000 | AU7: =IF(H7="Owned",IF((IF(((AB7-K7)/L7)>20,20,((AB7-K7)/L7))-J7)<0,0,(IF(((AB7-K7)/L7)>20,20,((AB7-K7)/L7))-J7)),"N/A") -> 18.82352941 | AV7: =IF(H7="Owned",N7*((X7-Y7*(O7^0.5)-Z7*(L7^0.5)))^2,"N/A") -> 25855.04379 | AW7: =IF(H7="Owned",('User Page'!$C$19*(1+'User Page'!$C$19)^O7)/(((1+'User Page'!$C$19)^O7)-1),"N/A") -> 0.09008050397 | AX7: =IF(H7="Owned",((N7-P7)*Q7)+(P7*'User Page'!$C$19),"N/A") -> 9131.122689 | AY7: =VLOOKUP($F7,$F$48:$V$66,12,FALSE) -> 0.8 | AZ7: =IF(H7="Owned",S7*M7/IF(((AB7-K7)/L7)>20,20,((AB7-K7)/L7)),0) -> 4675 | BA7: =IF(H7="Owned",$AS$3*AVERAGE(N7,P7),0) -> 373.6013704 | BB7: =IF(H7="Owned",$AT$3*AVERAGE(N7,P7),0) -> 509.4564142 | BC7: =IF(H7="Owned",(R7+T7+U7+V7)/L7,"N/A") -> 17.28138879 | BD7: =IF(H7="Owned",VLOOKUP($F7,$F$48:$V$66,13,FALSE),"N/A") -> 0.942 | BE7: =IF(H7="Owned",VLOOKUP($F7,$F$48:$V$66,14,FALSE),"N/A") -> 0.1 | BF7: =IF(H7="Owned",VLOOKUP($F7,$F$48:$V$66,15,FALSE),"N/A") -> 0.0008 | BG7: =VLOOKUP($F7,$F$48:$V$66,16,FALSE) -> - | BH7: =VLOOKUP($F7,$F$48:$V$66,17,FALSE) -> 16000
E8: Manure | F8: Litter Drill (5 ton) | G8: =VLOOKUP($F8,$F$48:$V$66,2,FALSE) -> Litter Drill | H8: Owned | I8: =IF(H8="Owned","N/A",IF(H8="Custom",VLOOKUP(F8,$F$48:$I$66,4,FALSE),"Enter Fee")) -> N/A | J8: =IF(H8="Owned",VLOOKUP($F8,$F$48:$V$66,5,FALSE),"N/A") -> 0 | K8: =IF(H8="Owned",VLOOKUP($F8,$F$48:$V$66,6,FALSE),"N/A") -> 0 | L8: =IF(Litter!H54/Litter!B14=0,50,Litter!H54/Litter!B14) -> 50 | M8: =IF(H8="Owned",VLOOKUP($F8,$F$48:$V$66,8,FALSE),"N/A") -> 65000 | N8: =IF(H8="Owned",IF(J8>0,M8*(X8-Y8*J8^0.5-Z8*(K8/J8)^0.5)^2,M8),"N/A") -> 65000 | O8: =IF(H8="Owned",IF((IF(((AB8-K8)/L8)>20,20,((AB8-K8)/L8))-J8)<0,0,(IF(((AB8-K8)/L8)>20,20,((AB8-K8)/L8))-J8)),"N/A") -> 20 | P8: =IF(H8="Owned",N8*((X8-Y8*(O8^0.5)-Z8*(L8^0.5)))^2,"N/A") -> 18547.17907 | Q8: =IF(H8="Owned",('User Page'!$C$19*(1+'User Page'!$C$19)^O8)/(((1+'User Page'!$C$19)^O8)-1),"N/A") -> 0.08718455698 | R8: =IF(H8="Owned",((N8-P8)*Q8)+(P8*'User Page'!$C$19),"N/A") -> 5162.799357 | S8: =VLOOKUP($F8,$F$48:$V$66,12,FALSE) -> 0.5 | T8: =IF(H8="Owned",S8*M8/IF(((AB8-K8)/L8)>20,20,((AB8-K8)/L8)),0) -> 1625 | U8: =IF(H8="Owned",$AS$3*AVERAGE(N8,P8),0) -> 229.7547424 | V8: =IF(H8="Owned",$AT$3*AVERAGE(N8,P8),0) -> 313.3019215 | W8: =IF(H8="Owned",(R8+T8+U8+V8)/L8,"N/A") -> 146.6171204 | X8: =IF(H8="Owned",VLOOKUP($F8,$F$48:$V$66,13,FALSE),"N/A") -> 0.883 | Y8: =IF(H8="Owned",VLOOKUP($F8,$F$48:$V$66,14,FALSE),"N/A") -> 0.078 | Z8: =IF(H8="Owned",VLOOKUP($F8,$F$48:$V$66,15,FALSE),"N/A") -> 0 | AA8: =VLOOKUP($F8,$F$48:$V$66,16,FALSE) -> 100 | AB8: =VLOOKUP($F8,$F$48:$V$66,17,FALSE) -> 2500 | AK8: FALSE | AL8: Litter Drill (5 ton) | AM8: =VLOOKUP($F8,$F$48:$V$66,2,FALSE) -> Litter Drill | AN8: Owned | AO8: =IF(H8="Owned","N/A",IF(H8="Custom",VLOOKUP(F8,$F$48:$I$66,4,FALSE),"Enter Fee")) -> N/A | AP8: =IF(H8="Owned",VLOOKUP($F8,$F$48:$V$66,5,FALSE),"N/A") -> 0 | AQ8: =IF(H8="Owned",VLOOKUP($F8,$F$48:$V$66,6,FALSE),"N/A") -> 0 | AR8: =IF(Litter!H54/Litter!B14=0,50,Litter!H54/Litter!B14) -> 50 | AS8: =IF(H8="Owned",VLOOKUP($F8,$F$48:$V$66,8,FALSE),"N/A") -> 65000 | AT8: =IF(H8="Owned",IF(J8>0,M8*(X8-Y8*J8^0.5-Z8*(K8/J8)^0.5)^2,M8),"N/A") -> 65000 | AU8: =IF(H8="Owned",IF((IF(((AB8-K8)/L8)>20,20,((AB8-K8)/L8))-J8)<0,0,(IF(((AB8-K8)/L8)>20,20,((AB8-K8)/L8))-J8)),"N/A") -> 20 | AV8: =IF(H8="Owned",N8*((X8-Y8*(O8^0.5)-Z8*(L8^0.5)))^2,"N/A") -> 18547.17907 | AW8: =IF(H8="Owned",('User Page'!$C$19*(1+'User Page'!$C$19)^O8)/(((1+'User Page'!$C$19)^O8)-1),"N/A") -> 0.08718455698 | AX8: =IF(H8="Owned",((N8-P8)*Q8)+(P8*'User Page'!$C$19),"N/A") -> 5162.799357 | AY8: =VLOOKUP($F8,$F$48:$V$66,12,FALSE) -> 0.5 | AZ8: =IF(H8="Owned",S8*M8/IF(((AB8-K8)/L8)>20,20,((AB8-K8)/L8)),0) -> 1625 | BA8: =IF(H8="Owned",$AS$3*AVERAGE(N8,P8),0) -> 229.7547424 | BB8: =IF(H8="Owned",$AT$3*AVERAGE(N8,P8),0) -> 313.3019215 | BC8: =IF(H8="Owned",(R8+T8+U8+V8)/L8,"N/A") -> 146.6171204 | BD8: =IF(H8="Owned",VLOOKUP($F8,$F$48:$V$66,13,FALSE),"N/A") -> 0.883 | BE8: =IF(H8="Owned",VLOOKUP($F8,$F$48:$V$66,14,FALSE),"N/A") -> 0.078 | BF8: =IF(H8="Owned",VLOOKUP($F8,$F$48:$V$66,15,FALSE),"N/A") -> 0 | BG8: =VLOOKUP($F8,$F$48:$V$66,16,FALSE) -> 100 | BH8: =VLOOKUP($F8,$F$48:$V$66,17,FALSE) -> 2500
E9: Fertilizer (Farmer applied) | F9: Fertilzer Spreader (4 ton) | G9: =VLOOKUP($F9,$F$48:$V$66,2,FALSE) -> BBI Spreader | H9: Rent/Lease | I9: 0 | J9: =IF(H9="Owned",VLOOKUP($F9,$F$48:$V$66,5,FALSE),"N/A") -> N/A | K9: =IF(H9="Owned",VLOOKUP($F9,$F$48:$V$66,6,FALSE),"N/A") -> N/A | L9: =IF(H9="Owned",VLOOKUP($F9,$F$48:$V$66,7,FALSE),"N/A") -> N/A | M9: =IF(H9="Owned",VLOOKUP($F9,$F$48:$V$66,8,FALSE),"N/A") -> N/A | N9: =IF(H9="Owned",IF(J9>0,M9*(X9-Y9*J9^0.5-Z9*(K9/J9)^0.5)^2,M9),"N/A") -> N/A | O9: =IF(H9="Owned",IF((IF(((AB9-K9)/L9)>20,20,((AB9-K9)/L9))-J9)<0,0,(IF(((AB9-K9)/L9)>20,20,((AB9-K9)/L9))-J9)),"N/A") -> N/A | P9: =IF(H9="Owned",N9*((X9-Y9*(O9^0.5)-Z9*(L9^0.5)))^2,"N/A") -> N/A | Q9: =IF(H9="Owned",('User Page'!$C$19*(1+'User Page'!$C$19)^O9)/(((1+'User Page'!$C$19)^O9)-1),"N/A") -> N/A | R9: =IF(H9="Owned",((N9-P9)*Q9)+(P9*'User Page'!$C$19),"N/A") -> N/A | S9: =VLOOKUP($F9,$F$48:$V$66,12,FALSE) -> 0.35 | T9: =IF(H9="Owned",S9*M9/IF(((AB9-K9)/L9)>20,20,((AB9-K9)/L9)),0) -> 0 | U9: =IF(H9="Owned",$AS$3*AVERAGE(N9,P9),0) -> 0 | V9: =IF(H9="Owned",$AT$3*AVERAGE(N9,P9),0) -> 0 | W9: =IF(H9="Owned",(R9+T9+U9+V9)/L9,"N/A") -> N/A | X9: =IF(H9="Owned",VLOOKUP($F9,$F$48:$V$66,13,FALSE),"N/A") -> N/A | Y9: =IF(H9="Owned",VLOOKUP($F9,$F$48:$V$66,14,FALSE),"N/A") -> N/A | Z9: =IF(H9="Owned",VLOOKUP($F9,$F$48:$V$66,15,FALSE),"N/A") -> N/A | AA9: =VLOOKUP($F9,$F$48:$V$66,16,FALSE) -> 45 | AB9: =VLOOKUP($F9,$F$48:$V$66,17,FALSE) -> 1500 | AK9: FALSE | AL9: Fertilzer Spreader (4 ton) | AM9: =VLOOKUP($F9,$F$48:$V$66,2,FALSE) -> BBI Spreader | AN9: Rent/Lease | AO9: 0 | AP9: =IF(H9="Owned",VLOOKUP($F9,$F$48:$V$66,5,FALSE),"N/A") -> N/A | AQ9: =IF(H9="Owned",VLOOKUP($F9,$F$48:$V$66,6,FALSE),"N/A") -> N/A | AR9: =IF(H9="Owned",VLOOKUP($F9,$F$48:$V$66,7,FALSE),"N/A") -> N/A | AS9: =IF(H9="Owned",VLOOKUP($F9,$F$48:$V$66,8,FALSE),"N/A") -> N/A | AT9: =IF(H9="Owned",IF(J9>0,M9*(X9-Y9*J9^0.5-Z9*(K9/J9)^0.5)^2,M9),"N/A") -> N/A | AU9: =IF(H9="Owned",IF((IF(((AB9-K9)/L9)>20,20,((AB9-K9)/L9))-J9)<0,0,(IF(((AB9-K9)/L9)>20,20,((AB9-K9)/L9))-J9)),"N/A") -> N/A | AV9: =IF(H9="Owned",N9*((X9-Y9*(O9^0.5)-Z9*(L9^0.5)))^2,"N/A") -> N/A | AW9: =IF(H9="Owned",('User Page'!$C$19*(1+'User Page'!$C$19)^O9)/(((1+'User Page'!$C$19)^O9)-1),"N/A") -> N/A | AX9: =IF(H9="Owned",((N9-P9)*Q9)+(P9*'User Page'!$C$19),"N/A") -> N/A | AY9: =VLOOKUP($F9,$F$48:$V$66,12,FALSE) -> 0.35 | AZ9: =IF(H9="Owned",S9*M9/IF(((AB9-K9)/L9)>20,20,((AB9-K9)/L9)),0) -> 0 | BA9: =IF(H9="Owned",$AS$3*AVERAGE(N9,P9),0) -> 0 | BB9: =IF(H9="Owned",$AT$3*AVERAGE(N9,P9),0) -> 0 | BC9: =IF(H9="Owned",(R9+T9+U9+V9)/L9,"N/A") -> N/A | BD9: =IF(H9="Owned",VLOOKUP($F9,$F$48:$V$66,13,FALSE),"N/A") -> N/A | BE9: =IF(H9="Owned",VLOOKUP($F9,$F$48:$V$66,14,FALSE),"N/A") -> N/A | BF9: =IF(H9="Owned",VLOOKUP($F9,$F$48:$V$66,15,FALSE),"N/A") -> N/A | BG9: =VLOOKUP($F9,$F$48:$V$66,16,FALSE) -> 45 | BH9: =VLOOKUP($F9,$F$48:$V$66,17,FALSE) -> 1500
E11: Custom Work | F11: Custom spread fertilizer | G11: =VLOOKUP($F11,$F$48:$V$66,2,FALSE) -> Custom spread fertilizer | H11: Custom | I11: =IF(H11="Owned","N/A",IF(H11="Custom",VLOOKUP(F11,$F$48:$I$66,4,FALSE),"Enter Fee")) -> 7 | J11: =IF(H11="Owned",VLOOKUP($F11,$F$48:$V$66,5,FALSE),"N/A") -> N/A | K11: =IF(H11="Owned",VLOOKUP($F11,$F$48:$V$66,6,FALSE),"N/A") -> N/A | L11: =IF(H11="Owned",VLOOKUP($F11,$F$48:$V$66,7,FALSE),"N/A") -> N/A | M11: =IF(H11="Owned",VLOOKUP($F11,$F$48:$V$66,8,FALSE),"N/A") -> N/A | N11: =IF(H11="Owned",IF(J11>0,M11*(X11-Y11*J11^0.5-Z11*(K11/J11)^0.5)^2,M11),"N/A") -> N/A | O11: =IF(H11="Owned",IF((IF(((AB11-K11)/L11)>20,20,((AB11-K11)/L11))-J11)<0,0,(IF(((AB11-K11)/L11)>20,20,((AB11-K11)/L11))-J11)),"N/A") -> N/A | P11: =IF(H11="Owned",N11*((X11-Y11*(O11^0.5)-Z11*(L11^0.5)))^2,"N/A") -> N/A | Q11: =IF(H11="Owned",('User Page'!$C$19*(1+'User Page'!$C$19)^O11)/(((1+'User Page'!$C$19)^O11)-1),"N/A") -> N/A | R11: =IF(H11="Owned",((N11-P11)*Q11)+(P11*'User Page'!$C$19),"N/A") -> N/A | S11: =VLOOKUP($F11,$F$48:$V$66,12,FALSE) -> N/A | T11: =IF(H11="Owned",S11*M11/IF(((AB11-K11)/L11)>20,20,((AB11-K11)/L11)),0) -> 0 | U11: =IF(H11="Owned",$AS$3*AVERAGE(N11,P11),0) -> 0 | V11: =IF(H11="Owned",$AT$3*AVERAGE(N11,P11),0) -> 0 | W11: =IF(H11="Owned",(R11+T11+U11+V11)/L11,"N/A") -> N/A | X11: =IF(H11="Owned",VLOOKUP($F11,$F$48:$V$66,13,FALSE),"N/A") -> N/A | Y11: =IF(H11="Owned",VLOOKUP($F11,$F$48:$V$66,14,FALSE),"N/A") -> N/A | Z11: =IF(H11="Owned",VLOOKUP($F11,$F$48:$V$66,15,FALSE),"N/A") -> N/A | AA11: =VLOOKUP($F11,$F$48:$V$66,16,FALSE) -> N/A | AB11: =VLOOKUP($F11,$F$48:$V$66,17,FALSE) -> N/A | AK11: =IF(AND(F11=AL11,G11=AM11,H11=AN11,I11=AO11,J11=AP11,K11=AQ11,L11=AR11,M11=AS11,N11=AT11,O11=AU11,P11=AV11,Q11=AW11,R11=AX11,S11=AY11,T11=AZ11,U11=BA11,V11=BB11,W11=BC11,X11=BD11,Y11=BE11,Z11=BF11,AA11=BG11,AB11=BH11),FALSE,TRUE) -> FALSE | AL11: Custom spread fertilizer | AM11: =VLOOKUP($F11,$F$48:$V$66,2,FALSE) -> Custom spread fertilizer | AN11: Custom | AO11: =IF(H11="Owned","N/A",IF(H11="Custom",VLOOKUP(F11,$F$48:$I$66,4,FALSE),"Enter Fee")) -> 7 | AP11: =IF(H11="Owned",VLOOKUP($F11,$F$48:$V$66,5,FALSE),"N/A") -> N/A | AQ11: =IF(H11="Owned",VLOOKUP($F11,$F$48:$V$66,6,FALSE),"N/A") -> N/A | AR11: =IF(H11="Owned",VLOOKUP($F11,$F$48:$V$66,7,FALSE),"N/A") -> N/A | AS11: =IF(H11="Owned",VLOOKUP($F11,$F$48:$V$66,8,FALSE),"N/A") -> N/A | AT11: =IF(H11="Owned",IF(J11>0,M11*(X11-Y11*J11^0.5-Z11*(K11/J11)^0.5)^2,M11),"N/A") -> N/A | AU11: =IF(H11="Owned",IF((IF(((AB11-K11)/L11)>20,20,((AB11-K11)/L11))-J11)<0,0,(IF(((AB11-K11)/L11)>20,20,((AB11-K11)/L11))-J11)),"N/A") -> N/A | AV11: =IF(H11="Owned",N11*((X11-Y11*(O11^0.5)-Z11*(L11^0.5)))^2,"N/A") -> N/A | AW11: =IF(H11="Owned",('User Page'!$C$19*(1+'User Page'!$C$19)^O11)/(((1+'User Page'!$C$19)^O11)-1),"N/A") -> N/A | AX11: =IF(H11="Owned",((N11-P11)*Q11)+(P11*'User Page'!$C$19),"N/A") -> N/A | AY11: =VLOOKUP($F11,$F$48:$V$66,12,FALSE) -> N/A | AZ11: =IF(H11="Owned",S11*M11/IF(((AB11-K11)/L11)>20,20,((AB11-K11)/L11)),0) -> 0 | BA11: =IF(H11="Owned",$AS$3*AVERAGE(N11,P11),0) -> 0 | BB11: =IF(H11="Owned",$AT$3*AVERAGE(N11,P11),0) -> 0 | BC11: =IF(H11="Owned",(R11+T11+U11+V11)/L11,"N/A") -> N/A | BD11: =IF(H11="Owned",VLOOKUP($F11,$F$48:$V$66,13,FALSE),"N/A") -> N/A | BE11: =IF(H11="Owned",VLOOKUP($F11,$F$48:$V$66,14,FALSE),"N/A") -> N/A | BF11: =IF(H11="Owned",VLOOKUP($F11,$F$48:$V$66,15,FALSE),"N/A") -> N/A | BG11: =VLOOKUP($F11,$F$48:$V$66,16,FALSE) -> N/A | BH11: =VLOOKUP($F11,$F$48:$V$66,17,FALSE) -> N/A
E12: User Specified | F12: Miscellaneous | G12: Loader | H12: Owned | I12: =IF(H12="Owned","N/A",IF(H12="Custom",VLOOKUP(F12,$F$48:$I$66,4,FALSE),"Enter Fee")) -> N/A | J12: 1 | K12: 250 | L12: 500 | M12: 5000 | N12: =IF(H12="Owned",IF(J12>0,M12*(X12-Y12*J12^0.5-Z12*(K12/J12)^0.5)^2,M12),"N/A") -> 3461.12 | O12: =IF(H12="Owned",IF((IF(((AB12-K12)/L12)>20,20,((AB12-K12)/L12))-J12)<0,0,(IF(((AB12-K12)/L12)>20,20,((AB12-K12)/L12))-J12)),"N/A") -> 8.5 | P12: =IF(H12="Owned",N12*((X12-Y12*(O12^0.5)-Z12*(L12^0.5)))^2,"N/A") -> 1327.804253 | Q12: =IF(H12="Owned",('User Page'!$C$19*(1+'User Page'!$C$19)^O12)/(((1+'User Page'!$C$19)^O12)-1),"N/A") -> 0.1536085593 | R12: =IF(H12="Owned",((N12-P12)*Q12)+(P12*'User Page'!$C$19),"N/A") -> 407.3638136 | S12: =VLOOKUP($F12,$F$48:$V$66,12,FALSE) -> 0.35 | T12: =IF(H12="Owned",S12*M12/IF(((AB12-K12)/L12)>20,20,((AB12-K12)/L12)),0) -> 184.2105263 | U12: =IF(H12="Owned",$AS$3*AVERAGE(N12,P12),0) -> 13.16954169 | V12: =IF(H12="Owned",$AT$3*AVERAGE(N12,P12),0) -> 17.95846595 | W12: =IF(H12="Owned",(R12+T12+U12+V12)/L12,"N/A") -> 1.245404695 | X12: =IF(H12="Owned",VLOOKUP($F12,$F$48:$V$66,13,FALSE),"N/A") -> 0.943 | Y12: =IF(H12="Owned",VLOOKUP($F12,$F$48:$V$66,14,FALSE),"N/A") -> 0.111 | Z12: =IF(H12="Owned",VLOOKUP($F12,$F$48:$V$66,15,FALSE),"N/A") -> 0 | AA12: =VLOOKUP($F12,$F$48:$V$66,16,FALSE) -> 0 | AB12: 5000 | AK12: FALSE | AL12: Miscellaneous | AM12: Loader | AN12: Owned | AO12: =IF(H12="Owned","N/A",IF(H12="Custom",VLOOKUP(F12,$F$48:$I$66,4,FALSE),"Enter Fee")) -> N/A | AP12: 1 | AQ12: 250 | AR12: 500 | AS12: 5000 | AT12: =IF(H12="Owned",IF(J12>0,M12*(X12-Y12*J12^0.5-Z12*(K12/J12)^0.5)^2,M12),"N/A") -> 3461.12 | AU12: =IF(H12="Owned",IF((IF(((AB12-K12)/L12)>20,20,((AB12-K12)/L12))-J12)<0,0,(IF(((AB12-K12)/L12)>20,20,((AB12-K12)/L12))-J12)),"N/A") -> 8.5 | AV12: =IF(H12="Owned",N12*((X12-Y12*(O12^0.5)-Z12*(L12^0.5)))^2,"N/A") -> 1327.804253 | AW12: =IF(H12="Owned",('User Page'!$C$19*(1+'User Page'!$C$19)^O12)/(((1+'User Page'!$C$19)^O12)-1),"N/A") -> 0.1536085593 | AX12: =IF(H12="Owned",((N12-P12)*Q12)+(P12*'User Page'!$C$19),"N/A") -> 407.3638136 | AY12: =VLOOKUP($F12,$F$48:$V$66,12,FALSE) -> 0.35 | AZ12: =IF(H12="Owned",S12*M12/IF(((AB12-K12)/L12)>20,20,((AB12-K12)/L12)),0) -> 184.2105263 | BA12: =IF(H12="Owned",$AS$3*AVERAGE(N12,P12),0) -> 13.16954169 | BB12: =IF(H12="Owned",$AT$3*AVERAGE(N12,P12),0) -> 17.95846595 | BC12: =IF(H12="Owned",(R12+T12+U12+V12)/L12,"N/A") -> 1.245404695 | BD12: =IF(H12="Owned",VLOOKUP($F12,$F$48:$V$66,13,FALSE),"N/A") -> 0.943 | BE12: =IF(H12="Owned",VLOOKUP($F12,$F$48:$V$66,14,FALSE),"N/A") -> 0.111 | BF12: =IF(H12="Owned",VLOOKUP($F12,$F$48:$V$66,15,FALSE),"N/A") -> 0 | BG12: =VLOOKUP($F12,$F$48:$V$66,16,FALSE) -> 0 | BH12: 5000
F19: Equipment Type | G19: Name | H19: Rent/Lease or Owned? | I19: Rental/Lease Fee in $/hr or Custom Rate in $/acre | J19: Age of Equipment at time of purchase (years) | K19: Existing hours on equipment (at time of purchase) | L19: Annual hours of usage | M19: Default List Price (New) | N19: Est. Purchase Price | O19: Remaining Useful Life (Years) | P19: Expected Salvage Value (w/o inflation) | Q19: Capital Recovery Factor | R19: Capital Recovery | S19: Repair Factor (% of list price over useful life) | T19: Annual Repair & Maintenance | U19: =CONCATENATE("Insurance (",ROUND($AS$3*100,2)," % of avg. value)") -> Insurance (0.55 % of avg. value) | V19: =CONCATENATE("Property Tax (",ROUND($AT$3*100,2)," % of avg. value)") -> Property Tax (0.75 % of avg. value) | W19: Ownership Cost per hour | X19: C1 | Y19: C2 | Z19: C3 | AA19: Min HP | AB19: Useful Life in hours
F20: =+F6 -> MFWD55 | G20: =VLOOKUP($F20,$F$48:$V$66,2,FALSE) -> John Deere 5055e 4wd | H20: Owned | I20: =IF(H20="Owned","N/A",IF(H20="Custom",VLOOKUP(F20,$F$48:$I$66,4,FALSE),"Enter Fee")) -> N/A | J20: =IF(H20="Owned",VLOOKUP($F20,$F$48:$V$66,5,FALSE),"N/A") -> 0 | K20: =IF(H20="Owned",VLOOKUP($F20,$F$48:$V$66,6,FALSE),"N/A") -> 0 | L20: =IF(H20="Owned",VLOOKUP($F20,$F$48:$V$66,7,FALSE),"N/A") -> 600 | M20: =IF(H20="Owned",VLOOKUP($F20,$F$48:$V$66,8,FALSE),"N/A") -> 33000 | N20: =IF(H20="Owned",IF(J20>0,M20*(X20-Y20*J20^0.5-Z20*(K20/J20)^0.5)^2,M20),"N/A") -> 33000 | O20: =IF(H20="Owned",IF((IF(((AB20-K20)/L20)>20,20,((AB20-K20)/L20))-J20)<0,0,(IF(((AB20-K20)/L20)>20,20,((AB20-K20)/L20))-J20)),"N/A") -> 20 | P20: =IF(H20="Owned",N20*((X20-Y20*(O20^0.5)-Z20*(L20^0.5)))^2,"N/A") -> 5905.241927 | Q20: =IF(H20="Owned",('User Page'!$C$19*(1+'User Page'!$C$19)^O20)/(((1+'User Page'!$C$19)^O20)-1),"N/A") -> 0.08718455698 | R20: =IF(H20="Owned",((N20-P20)*Q20)+(P20*'User Page'!$C$19),"N/A") -> 2716.558995 | S20: =VLOOKUP($F20,$F$48:$V$66,12,FALSE) -> 0.8 | T20: =IF(H20="Owned",S20*M20/IF(((AB20-K20)/L20)>20,20,((AB20-K20)/L20)),0) -> 1320 | U20: =IF(H20="Owned",$AS$3*AVERAGE(N20,P20),0) -> 106.9894153 | V20: =IF(H20="Owned",$AT$3*AVERAGE(N20,P20),0) -> 145.8946572 | W20: =IF(H20="Owned",(R20+T20+U20+V20)/L20,"N/A") -> 7.149071779 | X20: =IF(H20="Owned",VLOOKUP($F20,$F$48:$V$66,13,FALSE),"N/A") -> 0.981 | Y20: =IF(H20="Owned",VLOOKUP($F20,$F$48:$V$66,14,FALSE),"N/A") -> 0.093 | Z20: =IF(H20="Owned",VLOOKUP($F20,$F$48:$V$66,15,FALSE),"N/A") -> 0.0058 | AA20: =VLOOKUP($F20,$F$48:$V$66,16,FALSE) -> - | AB20: =VLOOKUP($F20,$F$48:$V$66,17,FALSE) -> 16000
F21: =+F7 -> MFWD110 | G21: =VLOOKUP($F21,$F$48:$V$66,2,FALSE) -> John Deere 6110M 4wd | H21: Owned | I21: =IF(H21="Owned","N/A",IF(H21="Custom",VLOOKUP(F21,$F$48:$I$66,4,FALSE),"Enter Fee")) -> N/A | J21: =IF(H21="Owned",VLOOKUP($F21,$F$48:$V$66,5,FALSE),"N/A") -> 0 | K21: =IF(H21="Owned",VLOOKUP($F21,$F$48:$V$66,6,FALSE),"N/A") -> 0 | L21: =IF(H21="Owned",VLOOKUP($F21,$F$48:$V$66,7,FALSE),"N/A") -> 850 | M21: =IF(H21="Owned",VLOOKUP($F21,$F$48:$V$66,8,FALSE),"N/A") -> 110000 | N21: =IF(H21="Owned",IF(J21>0,M21*(X21-Y21*J21^0.5-Z21*(K21/J21)^0.5)^2,M21),"N/A") -> 110000 | O21: =IF(H21="Owned",IF((IF(((AB21-K21)/L21)>20,20,((AB21-K21)/L21))-J21)<0,0,(IF(((AB21-K21)/L21)>20,20,((AB21-K21)/L21))-J21)),"N/A") -> 18.82352941 | P21: =IF(H21="Owned",N21*((X21-Y21*(O21^0.5)-Z21*(L21^0.5)))^2,"N/A") -> 25855.04379 | Q21: =IF(H21="Owned",('User Page'!$C$19*(1+'User Page'!$C$19)^O21)/(((1+'User Page'!$C$19)^O21)-1),"N/A") -> 0.09008050397 | R21: =IF(H21="Owned",((N21-P21)*Q21)+(P21*'User Page'!$C$19),"N/A") -> 9131.122689 | S21: =VLOOKUP($F21,$F$48:$V$66,12,FALSE) -> 0.8 | T21: =IF(H21="Owned",S21*M21/IF(((AB21-K21)/L21)>20,20,((AB21-K21)/L21)),0) -> 4675 | U21: =IF(H21="Owned",$AS$3*AVERAGE(N21,P21),0) -> 373.6013704 | V21: =IF(H21="Owned",$AT$3*AVERAGE(N21,P21),0) -> 509.4564142 | W21: =IF(H21="Owned",(R21+T21+U21+V21)/L21,"N/A") -> 17.28138879 | X21: =IF(H21="Owned",VLOOKUP($F21,$F$48:$V$66,13,FALSE),"N/A") -> 0.942 | Y21: =IF(H21="Owned",VLOOKUP($F21,$F$48:$V$66,14,FALSE),"N/A") -> 0.1 | Z21: =IF(H21="Owned",VLOOKUP($F21,$F$48:$V$66,15,FALSE),"N/A") -> 0.0008 | AA21: =VLOOKUP($F21,$F$48:$V$66,16,FALSE) -> - | AB21: =VLOOKUP($F21,$F$48:$V$66,17,FALSE) -> 16000
F22: =+F8 -> Litter Drill (5 ton) | G22: =VLOOKUP($F22,$F$48:$V$66,2,FALSE) -> Litter Drill | H22: Owned | I22: N/A | J22: =IF(H22="Owned",VLOOKUP($F22,$F$48:$V$66,5,FALSE),"N/A") -> 0 | K22: =IF(H22="Owned",VLOOKUP($F22,$F$48:$V$66,6,FALSE),"N/A") -> 0 | L22: =IF(H22="Owned",VLOOKUP($F22,$F$48:$V$66,7,FALSE),"N/A") -> 50 | M22: =IF(H22="Owned",VLOOKUP($F22,$F$48:$V$66,8,FALSE),"N/A") -> 65000 | N22: =IF(H22="Owned",IF(J22>0,M22*(X22-Y22*J22^0.5-Z22*(K22/J22)^0.5)^2,M22),"N/A") -> 65000 | O22: =IF(H22="Owned",IF((IF(((AB22-K22)/L22)>20,20,((AB22-K22)/L22))-J22)<0,0,(IF(((AB22-K22)/L22)>20,20,((AB22-K22)/L22))-J22)),"N/A") -> 20 | P22: =IF(H22="Owned",N22*((X22-Y22*(O22^0.5)-Z22*(L22^0.5)))^2,"N/A") -> 18547.17907 | Q22: =IF(H22="Owned",('User Page'!$C$19*(1+'User Page'!$C$19)^O22)/(((1+'User Page'!$C$19)^O22)-1),"N/A") -> 0.08718455698 | R22: =IF(H22="Owned",((N22-P22)*Q22)+(P22*'User Page'!$C$19),"N/A") -> 5162.799357 | S22: =VLOOKUP($F22,$F$48:$V$66,12,FALSE) -> 0.5 | T22: =IF(H22="Owned",S22*M22/IF(((AB22-K22)/L22)>20,20,((AB22-K22)/L22)),0) -> 1625 | U22: 229.7547424 | V22: 313.3019215 | W22: 146.6171204 | X22: 0.883 | Y22: 0.078 | Z22: 0 | AA22: 100 | AB22: 2500
F23: =+F9 -> Fertilzer Spreader (4 ton) | G23: =VLOOKUP($F23,$F$48:$V$66,2,FALSE) -> BBI Spreader | H23: Owned | I23: N/A | J23: =IF(H23="Owned",VLOOKUP($F23,$F$48:$V$66,5,FALSE),"N/A") -> 0 | K23: =IF(H23="Owned",VLOOKUP($F23,$F$48:$V$66,6,FALSE),"N/A") -> 0 | L23: =IF(H23="Owned",VLOOKUP($F23,$F$48:$V$66,7,FALSE),"N/A") -> 100 | M23: =IF(H23="Owned",VLOOKUP($F23,$F$48:$V$66,8,FALSE),"N/A") -> 35000 | N23: =IF(H23="Owned",IF(J23>0,M23*(X23-Y23*J23^0.5-Z23*(K23/J23)^0.5)^2,M23),"N/A") -> 35000 | O23: =IF(H23="Owned",IF((IF(((AB23-K23)/L23)>20,20,((AB23-K23)/L23))-J23)<0,0,(IF(((AB23-K23)/L23)>20,20,((AB23-K23)/L23))-J23)),"N/A") -> 15 | P23: =IF(H23="Owned",N23*((X23-Y23*(O23^0.5)-Z23*(L23^0.5)))^2,"N/A") -> 9214.464994 | Q23: =IF(H23="Owned",('User Page'!$C$19*(1+'User Page'!$C$19)^O23)/(((1+'User Page'!$C$19)^O23)-1),"N/A") -> 0.102962764 | R23: =IF(H23="Owned",((N23-P23)*Q23)+(P23*'User Page'!$C$19),"N/A") -> 3207.817854 | S23: =VLOOKUP($F23,$F$48:$V$66,12,FALSE) -> 0.35 | T23: =IF(H23="Owned",S23*M23/IF(((AB23-K23)/L23)>20,20,((AB23-K23)/L23)),0) -> 816.6666667 | U23: 121.5897787 | V23: 165.8042437 | W23: 43.11878543 | X23: 0.943 | Y23: 0.111 | Z23: 0 | AA23: 45 | AB23: 1500
F25: =+F11 -> Custom spread fertilizer | G25: =VLOOKUP($F25,$F$48:$V$66,2,FALSE) -> Custom spread fertilizer | H25: Custom | I25: =IF(H25="Owned","N/A",IF(H25="Custom",VLOOKUP(F25,$F$48:$I$66,4,FALSE),"Enter Fee")) -> 7 | J25: =IF(H25="Owned",VLOOKUP($F25,$F$48:$V$66,5,FALSE),"N/A") -> N/A | K25: =IF(H25="Owned",VLOOKUP($F25,$F$48:$V$66,6,FALSE),"N/A") -> N/A | L25: =IF(H25="Owned",VLOOKUP($F25,$F$48:$V$66,7,FALSE),"N/A") -> N/A | M25: =IF(H25="Owned",VLOOKUP($F25,$F$48:$V$66,8,FALSE),"N/A") -> N/A | N25: =IF(H25="Owned",IF(J25>0,M25*(X25-Y25*J25^0.5-Z25*(K25/J25)^0.5)^2,M25),"N/A") -> N/A | O25: =IF(H25="Owned",IF((IF(((AB25-K25)/L25)>20,20,((AB25-K25)/L25))-J25)<0,0,(IF(((AB25-K25)/L25)>20,20,((AB25-K25)/L25))-J25)),"N/A") -> N/A | P25: =IF(H25="Owned",N25*((X25-Y25*(O25^0.5)-Z25*(L25^0.5)))^2,"N/A") -> N/A | Q25: =IF(H25="Owned",('User Page'!$C$19*(1+'User Page'!$C$19)^O25)/(((1+'User Page'!$C$19)^O25)-1),"N/A") -> N/A | R25: =IF(H25="Owned",((N25-P25)*Q25)+(P25*'User Page'!$C$19),"N/A") -> N/A | S25: =VLOOKUP($F25,$F$48:$V$66,12,FALSE) -> N/A | T25: =IF(H25="Owned",S25*M25/IF(((AB25-K25)/L25)>20,20,((AB25-K25)/L25)),0) -> 0 | U25: =IF(H25="Owned",$AS$3*AVERAGE(N25,P25),0) -> 0 | V25: =IF(H25="Owned",$AT$3*AVERAGE(N25,P25),0) -> 0 | W25: =IF(H25="Owned",(R25+T25+U25+V25)/L25,"N/A") -> N/A | X25: =IF(H25="Owned",VLOOKUP($F25,$F$48:$V$66,13,FALSE),"N/A") -> N/A | Y25: =IF(H25="Owned",VLOOKUP($F25,$F$48:$V$66,14,FALSE),"N/A") -> N/A | Z25: =IF(H25="Owned",VLOOKUP($F25,$F$48:$V$66,15,FALSE),"N/A") -> N/A | AA25: =VLOOKUP($F25,$F$48:$V$66,16,FALSE) -> N/A | AB25: =VLOOKUP($F25,$F$48:$V$66,17,FALSE) -> N/A
F26: =+F12 -> Miscellaneous | G26: =VLOOKUP($F26,$F$48:$V$66,2,FALSE) -> Miscellaneous equipment | H26: Owned | I26: N/A | J26: =IF(H26="Owned",VLOOKUP($F26,$F$48:$V$66,5,FALSE),"N/A") -> 0 | K26: =IF(H26="Owned",VLOOKUP($F26,$F$48:$V$66,6,FALSE),"N/A") -> 0 | L26: =IF(H26="Owned",VLOOKUP($F26,$F$48:$V$66,7,FALSE),"N/A") -> 50 | M26: =IF(H26="Owned",VLOOKUP($F26,$F$48:$V$66,8,FALSE),"N/A") -> 500 | N26: =IF(H26="Owned",IF(J26>0,M26*(X26-Y26*J26^0.5-Z26*(K26/J26)^0.5)^2,M26),"N/A") -> 500 | O26: =IF(H26="Owned",IF((IF(((AB26-K26)/L26)>20,20,((AB26-K26)/L26))-J26)<0,0,(IF(((AB26-K26)/L26)>20,20,((AB26-K26)/L26))-J26)),"N/A") -> 20 | P26: =IF(H26="Owned",N26*((X26-Y26*(O26^0.5)-Z26*(L26^0.5)))^2,"N/A") -> 99.72261318 | Q26: =IF(H26="Owned",('User Page'!$C$19*(1+'User Page'!$C$19)^O26)/(((1+'User Page'!$C$19)^O26)-1),"N/A") -> 0.08718455698 | R26: =IF(H26="Owned",((N26-P26)*Q26)+(P26*'User Page'!$C$19),"N/A") -> 40.88136343 | S26: =VLOOKUP($F26,$F$48:$V$66,12,FALSE) -> 0.35 | T26: =IF(H26="Owned",S26*M26/IF(((AB26-K26)/L26)>20,20,((AB26-K26)/L26)),0) -> 8.75 | U26: 1.649237186 | V26: 2.248959799 | W26: 1.070591208 | X26: 0.943 | Y26: 0.111 | Z26: 0 | AA26: 0 | AB26: 1500
A29: Owned
A30: Rent/Lease
A31: Custom
X43: http://abe-research.illinois.edu/Faculty/grift/TSM262_2017/Standards/ASAE_EP496_3.pdf
M44: https://www.tractorhouse.com/listings/farm-equipment/for-sale/17671109/2014-dm-machinery-galva-5800-us | X44: http://abe-research.illinois.edu/Faculty/grift/TSM262_2017/Standards/ASAE_D497_7.pdf
F47: Equipment Type | G47: Name | H47: Rent/Lease or Owned? | I47: Rental/Lease Fee in $/hr or Custom Rate in $/acre | J47: Age of Equipment (years) | K47: Existing hours on equipment (at time of purchase) | L47: Annual hours of usage | M47: Purchase Price | N47: Original Cost | O47: Useful Life (Years) | P47: Expected Salvage Value | Q47: RF1 | R47: C1 | S47: C2 | T47: C3 | U47: Min HP | V47: Useful Life in hours
F48: 2WD55 | G48: John Deere 5055e | H48: Owned | I48: =IF(H48="Owned","N/A","Enter cost") -> N/A | J48: 0 | K48: 0 | L48: 600 | M48: 27000 | N48: =IF(H48="Rent/Lease",0,M48) -> 27000 | O48: =IF((IF(((V48-K48)/L48)>20,20,((V48-K48)/L48))-J48)<0,0,(IF(((V48-K48)/L48)>20,20,((V48-K48)/L48))-J48)) -> 20 | P48: =IF(H48="Rent/Lease",0,M48*((R48-S48*(O48^0.5)-T48*(L48^0.5)))^2) -> 4831.561577 | Q48: 0.6 | R48: 0.981 | S48: 0.093 | T48: 0.0058 | U48: - | V48: 12000 | BA48: http://abe-research.illinois.edu/Faculty/grift/TSM262_2017/Standards/ASAE_EP496_3.pdf
F49: MFWD55 | G49: John Deere 5055e 4wd | H49: Owned | I49: =IF(H49="Owned","N/A","Enter cost") -> N/A | J49: 0 | K49: 0 | L49: 600 | M49: 33000 | N49: 33000 | O49: 20 | P49: 5905.241927 | Q49: 0.8 | R49: 0.981 | S49: 0.093 | T49: 0.0058 | U49: - | V49: 16000 | BA49: http://abe-research.illinois.edu/Faculty/grift/TSM262_2017/Standards/ASAE_D497_7.pdf
F50: 2WD90 | G50: John Deere 5090M | H50: Owned | I50: N/A | J50: 0 | K50: 0 | L50: 600 | M50: 57500 | N50: 57500 | O50: 20 | P50: 12983.84491 | Q50: 0.6 | R50: 0.942 | S50: 0.1 | T50: 0.0008 | U50: - | V50: 12000
F51: MFWD90 | G51: John Deere 5090M 4wd | H51: Owned | I51: N/A | J51: 0 | K51: 0 | L51: 600 | M51: 64500 | N51: 64500 | O51: 20 | P51: 14564.4869 | Q51: 0.8 | R51: 0.942 | S51: 0.1 | T51: 0.0008 | U51: - | V51: 16000
F52: 2WD110 | G52: John Deere 6110M | H52: Owned | I52: N/A | J52: 0 | K52: 0 | L52: 850 | M52: 98000 | N52: 98000 | O52: 14.11764706 | P52: 28888.98883 | Q52: 0.6 | R52: 0.942 | S52: 0.1 | T52: 0.0008 | U52: - | V52: 12000
F53: MFWD110 | G53: John Deere 6110M 4wd | H53: Owned | I53: N/A | J53: 0 | K53: 0 | L53: 850 | M53: 110000 | N53: 110000 | O53: 18.82352941 | P53: 25855.04379 | Q53: 0.8 | R53: 0.942 | S53: 0.1 | T53: 0.0008 | U53: - | V53: 16000
F54: MFWD150 | G54: John Deere 6155M | H54: Owned | I54: N/A | J54: 0 | K54: 0 | L54: 1000 | M54: 155000 | N54: 155000 | O54: 16 | P54: 29996.64229 | Q54: 0.7 | R54: 0.976 | S54: 0.119 | T54: 0.0019 | U54: - | V54: 16000
F55: MFWD195 | G55: John Deere 6195M | H55: Owned | I55: N/A | J55: 0 | K55: 0 | L55: 1000 | M55: 182000 | N55: 182000 | O55: 16 | P55: 35221.86385 | Q55: 0.7 | R55: 0.976 | S55: 0.119 | T55: 0.0019 | U55: - | V55: 16000
F56: Manure Spreader (175 bushel) | G56: Frontier MS1117 | H56: Owned | I56: N/A | J56: 0 | K56: 0 | L56: 200 | M56: 15000 | N56: 15000 | O56: 10 | P56: 5256.732314 | Q56: 0.5 | R56: 0.943 | S56: 0.111 | T56: 0 | U56: 50 | V56: 2000
F57: Manure Spreader (310 bushel) | G57: Frontier MS1231 | H57: Owned | I57: N/A | J57: 0 | K57: 0 | L57: 250 | M57: 27500 | N57: 27500 | O57: 10 | P57: 9637.342576 | Q57: 0.5 | R57: 0.943 | S57: 0.111 | T57: 0 | U57: 100 | V57: 2500
F58: Manure Spreader (550 bushel) | G58: Frontier MS1455 | H58: Owned | I58: N/A | J58: 0 | K58: 0 | L58: 250 | M58: 52500 | N58: 52500 | O58: 10 | P58: 18398.5631 | Q58: 0.5 | R58: 0.943 | S58: 0.111 | T58: 0 | U58: 150 | V58: 2500
F59: Slurry Spreader (3750 gallon) | G59: Calumet 3750 | H59: Owned | I59: N/A | J59: 0 | K59: 0 | L59: 300 | M59: 52000 | N59: 52000 | O59: 8.333333333 | P59: 20154.89594 | Q59: 0.5 | R59: 0.943 | S59: 0.111 | T59: 0 | U59: 150 | V59: 2500
F60: Litter Drill (5 ton) | G60: Litter Drill | H60: Owned | I60: N/A | J60: 0 | K60: 0 | L60: =IF(Litter!H54/Litter!B14=0,50,Litter!H54/Litter!B14) -> 50 | M60: 65000 | N60: 65000 | O60: 20 | P60: 18547.17907 | Q60: 0.5 | R60: 0.883 | S60: 0.078 | T60: 0 | U60: 100 | V60: 2500
F61: Fertilzer Spreader (4 ton) | G61: BBI Spreader | H61: Owned | I61: N/A | J61: 0 | K61: 0 | L61: 100 | M61: 35000 | N61: 35000 | O61: 15 | P61: 9214.464994 | Q61: 0.35 | R61: 0.943 | S61: 0.111 | T61: 0 | U61: 45 | V61: 1500
F62: Custom spread liquid | G62: =F62 -> Custom spread liquid | H62: Custom | I62: 7 | J62: N/A | K62: N/A | L62: N/A | M62: N/A | N62: N/A | O62: N/A | P62: N/A | Q62: N/A | R62: N/A | S62: N/A | T62: N/A | U62: N/A | V62: N/A
F63: Custom spread fertilizer | G63: =F63 -> Custom spread fertilizer | H63: Custom | I63: 7 | J63: N/A | K63: N/A | L63: N/A | M63: N/A | N63: N/A | O63: N/A | P63: N/A | Q63: N/A | R63: N/A | S63: N/A | T63: N/A | U63: N/A | V63: N/A
F64: Custom spread manure | G64: Custom spread manure | H64: Custom | I64: 15 | J64: N/A | K64: N/A | L64: N/A | M64: N/A | N64: N/A | O64: N/A | P64: N/A | Q64: N/A | R64: N/A | S64: N/A | T64: N/A | U64: N/A | V64: N/A
F65: Custom drill litter | G65: Custom drill litter | H65: Custom | I65: 40 | J65: N/A | K65: N/A | L65: N/A | M65: N/A | N65: N/A | O65: N/A | P65: N/A | Q65: N/A | R65: N/A | S65: N/A | T65: N/A | U65: N/A | V65: N/A
F66: Miscellaneous | G66: Miscellaneous equipment | H66: Owned | I66: =IF(H66="Owned","N/A","Enter cost") -> N/A | J66: 0 | K66: 0 | L66: 50 | M66: 500 | N66: 500 | O66: 5 | P66: =IF(H66="Rent/Lease",0,M66*((R66-S66*(O66^0.5)-T66*(L66^0.5)))^2) -> 241.3710566 | Q66: 0.35 | R66: 0.943 | S66: 0.111 | T66: 0 | U66: 0 | V66: 1500
G75: type | H75: hp
G76: 2WD55 | H76: 55
G77: MFWD55 | H77: 55 | J77: Equipment Type | K77: Useful hours | L77: R&M
G78: 2WD90 | H78: 90 | J78: 2 wheel drive tractor | K78: 12000 | L78: 1
G79: MFWD90 | H79: 90 | J79: 4 wheel drive tractor | K79: 16000 | L79: 0.8
G80: 2WD110 | H80: 110 | J80: Implement | K80: 2500 | L80: 0.6
G81: MFWD110 | H81: 110 | J81: Misc. | K81: 2000 | L81: 0.5
G82: MFWD150 | H82: 150
G83: MFWD195 | H83: 195 | J83: Equipment Type | K83: C1 | L83: C2 | M83: C3
G84: =F56 -> Manure Spreader (175 bushel) | H84: 50 | J84: Small tractor (80hp>) | K84: 0.981 | L84: 0.093 | M84: 0.0058
G85: Manure Spreader (310 bushel) | H85: 100 | J85: Medium tractor (80-150hp) | K85: 0.942 | L85: 0.1 | M85: 0.0008
G86: Manure Spreader (550 bushel) | H86: 145 | J86: Large tractor (150hp+) | K86: 0.976 | L86: 0.119 | M86: 0.0019
G87: Slurry Spreader (3750 gallon) | H87: 190 | J87: Implement (150hp>) | K87: 0.891 | L87: 0.11 | M87: 0
G88: Litter Drill (5 ton) | H88: 100 | J88: Implement (150hp<) | K88: 0.738 | L88: 0.051 | M88: 0
G89: Fertilzer Spreader (4 ton) | H89: 45
G90: Custom spread liquid | H90: 0 | K90: List of equipment pieces w/ cost per hour
G91: Custom spread fertilizer | H91: 0 | J91: =F6 -> MFWD55 | K91: John Deere 5055e 4wd | L91: =IF(H6="Owned",W6,I6) -> 7.149071779
G92: Custom spread manure | H92: 0 | J92: MFWD110 | K92: John Deere 6110M 4wd | L92: =IF(H7="Owned",W7,I7) -> 17.28138879
G93: Custom drill litter | H93: 0 | J93: Litter Drill (5 ton) | K93: Litter Drill | L93: 146.6171204
G94: Miscellaneous | H94: 0 | J94: Fertilzer Spreader (4 ton) | K94: BBI Spreader | L94: 0
J95: =F11 -> Custom spread fertilizer | K95: =G11 -> Custom spread fertilizer | L95: =IF(H11="Owned",W11,I11) -> 7
J96: =F12 -> Miscellaneous | K96: =G12 -> Loader | L96: =IF(H12="Owned",W12,I12) -> 1.245404695
J97: None | K97: None | L97: 0
G102: =F6 -> MFWD55 | H102: =G6 -> John Deere 5055e 4wd | I102: =VLOOKUP(G102,$G$76:$H$94,2,FALSE) -> 55
G103: =F7 -> MFWD110 | H103: =G7 -> John Deere 6110M 4wd | I103: 110
G104: Litter Drill (5 ton) | H104: Litter Drill | I104: 100
G105: Fertilzer Spreader (4 ton) | H105: BBI Spreader | I105: 45
G107: Custom spread fertilizer | H107: Custom spread fertilizer | I107: 0
G108: Miscellaneous | H108: Loader | I108: 0

Sheet Litter
P1: Tractor List | Q1: hp | R1: Implement List | S1: hp | U1: Tractor list filtered | Y1: Implement | AD1: Tractor Asset costs | AF1: implement asset costs
P2: =D54 -> John Deere 6110M 4wd | Q2: =IFERROR(VLOOKUP(P2,Equipment!$H$102:$I$108,2,FALSE),0) -> 110 | R2: =E54 -> Litter Drill | S2: =IFERROR(VLOOKUP(R2,Equipment!$H$102:$I$108,2,FALSE),0) -> 100 | U2: =P2 -> John Deere 6110M 4wd | V2: =IFERROR(VLOOKUP(U2,Equipment!$G$6:$N$12,7,FALSE),0) -> 110000 | Y2: =R2 -> Litter Drill | Z2: =IFERROR(VLOOKUP(Y2,Equipment!$G$6:$N$12,7,FALSE),0) -> 65000 | AD2: =SUM(V2:V8) -> 143000 | AF2: =SUM(Z2:Z8) -> 70000
P3: =D55 -> John Deere 5055e 4wd | Q3: =IFERROR(VLOOKUP(P3,Equipment!$H$102:$I$108,2,FALSE),0) -> 55 | R3: =E55 -> Loader | S3: =IFERROR(VLOOKUP(R3,Equipment!$H$102:$I$108,2,FALSE),0) -> 0 | U3: =P3 -> John Deere 5055e 4wd | V3: =IFERROR(VLOOKUP(U3,Equipment!$G$6:$N$12,7,FALSE),0) -> 33000 | Y3: =R3 -> Loader | Z3: =IFERROR(VLOOKUP(Y3,Equipment!$G$6:$N$12,7,FALSE),0) -> 5000
B4: Litter & Fertilizer Application Details | P4: =D59 -> John Deere 5055e 4wd | Q4: =IFERROR(VLOOKUP(P4,Equipment!$H$102:$I$108,2,FALSE),0) -> 55 | R4: =E59 -> BBI Spreader | S4: =IFERROR(VLOOKUP(R4,Equipment!$H$102:$I$108,2,FALSE),0) -> 45 | Y4: =R4 -> BBI Spreader | Z4: =IFERROR(VLOOKUP(Y4,Equipment!$G$6:$N$12,7,FALSE),0) -> N/A | AY4: Percent Probabilty of suitable days
P5: =D67 -> None | Q5: =IFERROR(VLOOKUP(P5,Equipment!$H$102:$I$108,2,FALSE),0) -> 0 | R5: =E67 -> None | S5: =IFERROR(VLOOKUP(R5,Equipment!$H$102:$I$108,2,FALSE),0) -> 0 | AX5: Month | AY5: 0.15 | AZ5: 0.35 | BA5: 0.5 | BB5: 0.65 | BC5: 0.85
B6: Acres fertilized | C6: Cost of Litter / Ton | D6: Tons of litter needed | E6: Truckloads | G6: Refill time (minutes) (1) | H6: Refills needed | J6: Litter | N6: Broadcast Litter Applied in Tons | P6: =D68 -> None | Q6: =IFERROR(VLOOKUP(P6,Equipment!$H$102:$I$108,2,FALSE),0) -> 0 | R6: =E68 -> None | S6: =IFERROR(VLOOKUP(R6,Equipment!$H$102:$I$108,2,FALSE),0) -> 0 | AX6: April | AY6: =(AVERAGE(AZ17:AZ19)+AVERAGE(AZ48:AZ50))/2 -> 3.166666667 | AZ6: =(AVERAGE(BA17:BA19)+AVERAGE(BA48:BA50))/2 -> 4.033333333 | BA6: =(AVERAGE(BB17:BB19)+AVERAGE(BB48:BB50))/2 -> 4.633333333 | BB6: =(AVERAGE(BC17:BC19)+AVERAGE(BC48:BC50))/2 -> 5.2 | BC6: =(AVERAGE(BD17:BD19)+AVERAGE(BD48:BD50))/2 -> 6
B7: =+'User Page'!C5 -> 300 | C7: ='User Page'!C7 -> 45 | D7: =B16*B7 -> 400 | E7: =ROUNDUP(D7/25,0) -> 16 | G7: 15 | H7: =ROUNDUP(B7*B16/B18,0) -> 80 | N7: =+B7*N15 -> 400 | P7: =D69 -> None | Q7: =IFERROR(VLOOKUP(P7,Equipment!$H$102:$I$108,2,FALSE),0) -> 0 | R7: =E69 -> None | S7: =IFERROR(VLOOKUP(R7,Equipment!$H$102:$I$108,2,FALSE),0) -> 0 | AD7: Annualized Equipment Cost (Dep., Opp. Cost, Ins., Taxes) | AE7: Repair & Maintenance | AX7: May | AY7: =SUM(AZ20:AZ24) -> 15.7 | AZ7: =SUM(BA20:BA24) -> 20.3 | BA7: =SUM(BB20:BB24) -> 23.2 | BB7: =SUM(BC20:BC24) -> 26.2 | BC7: =SUM(BD20:BD24) -> 30.9
P8: =D70 -> None | Q8: =IFERROR(VLOOKUP(P8,Equipment!$H$102:$I$108,2,FALSE),0) -> 0 | R8: =E70 -> None | S8: =IFERROR(VLOOKUP(R8,Equipment!$H$102:$I$108,2,FALSE),0) -> 0 | AC8: =U2 -> John Deere 6110M 4wd | AD8: =IFERROR(VLOOKUP(AC8,Equipment!$G$6:$AB$12,12,FALSE)+VLOOKUP(AC8,Equipment!$G$6:$AB$12,15,FALSE)+VLOOKUP(AC8,Equipment!$G$6:$AB$12,16,FALSE)+VLOOKUP(AC8,Equipment!$G$6:$AB$12,17,FALSE),0) -> 10031.46186 | AE8: =IFERROR(VLOOKUP(AC8,Equipment!$G$6:$AB$12,14,FALSE),0) -> 4675 | AX8: June | AY8: =SUM(AZ25:AZ28) -> 14.9 | AZ8: =SUM(BA25:BA28) -> 20.8 | BA8: =SUM(BB25:BB28) -> 22.5 | BB8: =SUM(BC25:BC28) -> 23.7 | BC8: =SUM(BD25:BD28) -> 26
B9: Total Cost of Litter ONLY | C9: Delivery Charge (if any for all litter) | D9: Litter + Delivery | G9: Refill needed every x minutes | N9: Mod. Litter Cost (Delivered) | AC9: John Deere 5055e 4wd | AD9: =IFERROR(VLOOKUP(AC9,Equipment!$G$6:$AB$12,12,FALSE)+VLOOKUP(AC9,Equipment!$G$6:$AB$12,15,FALSE)+VLOOKUP(AC9,Equipment!$G$6:$AB$12,16,FALSE)+VLOOKUP(AC9,Equipment!$G$6:$AB$12,17,FALSE),0) -> 2976.592139 | AE9: =IFERROR(VLOOKUP(AC9,Equipment!$G$6:$AB$12,14,FALSE),0) -> 1320 | AX9: July | AY9: =SUM(AZ29:AZ32) -> 19.7 | AZ9: =SUM(BA29:BA32) -> 22.9 | BA9: =SUM(BB29:BB32) -> 24 | BB9: =SUM(BC29:BC32) -> 25.4 | BC9: =SUM(BD29:BD32) -> 27.6
B10: =D7*C7 -> 18000 | C10: 0 | D10: =B10+C10 -> 18000 | G10: =B18/B16/B20*60 -> 75 | AC10: 0 | AD10: =IFERROR(VLOOKUP(AC10,Equipment!$G$6:$AB$12,12,FALSE)+VLOOKUP(AC10,Equipment!$G$6:$AB$12,15,FALSE)+VLOOKUP(AC10,Equipment!$G$6:$AB$12,17,FALSE)+VLOOKUP(AC10,Equipment!$G$6:$AB$12,18,FALSE)+VLOOKUP(AC10,Equipment!$G$6:$AB$12,19,FALSE),0) -> 0 | AE10: =IFERROR(VLOOKUP(AC10,Equipment!$G$6:$AB$12,17,FALSE),0) -> 0 | AX10: August | AY10: =SUM(AZ33:AZ37) -> 25.6 | AZ10: =SUM(BA33:BA37) -> 29.6 | BA10: =SUM(BB33:BB37) -> 31.3 | BB10: =SUM(BC33:BC37) -> 33.2 | BC10: =SUM(BD33:BD37) -> 35
AC11: 0 | AD11: =IFERROR(VLOOKUP(AC11,Equipment!$G$6:$AB$12,12,FALSE)+VLOOKUP(AC11,Equipment!$G$6:$AB$12,15,FALSE)+VLOOKUP(AC11,Equipment!$G$6:$AB$12,17,FALSE)+VLOOKUP(AC11,Equipment!$G$6:$AB$12,18,FALSE)+VLOOKUP(AC11,Equipment!$G$6:$AB$12,19,FALSE),0) -> 0 | AE11: =IFERROR(VLOOKUP(AC11,Equipment!$G$6:$AB$12,17,FALSE),0) -> 0 | AX11: September | AY11: =SUM(AZ38:AZ41) -> 18.5 | AZ11: =SUM(BA38:BA41) -> 22.5 | BA11: =SUM(BB38:BB41) -> 23.8 | BB11: =SUM(BC38:BC41) -> 25.1 | BC11: =SUM(BD38:BD41) -> 27.6
N12: =+N7*C7+C10 -> 18000 | P12: Default values | AC12: 0 | AD12: =IFERROR(VLOOKUP(AC12,Equipment!$G$6:$AB$12,12,FALSE)+VLOOKUP(AC12,Equipment!$G$6:$AB$12,15,FALSE)+VLOOKUP(AC12,Equipment!$G$6:$AB$12,17,FALSE)+VLOOKUP(AC12,Equipment!$G$6:$AB$12,18,FALSE)+VLOOKUP(AC12,Equipment!$G$6:$AB$12,19,FALSE),0) -> 0 | AE12: =IFERROR(VLOOKUP(AC12,Equipment!$G$6:$AB$12,17,FALSE),0) -> 0 | AX12: October | AY12: =SUM(AY42:AY46) -> 0 | AZ12: =SUM(AZ42:AZ46) -> 19.9 | BA12: =SUM(BA42:BA46) -> 25.7 | BB12: =SUM(BB42:BB46) -> 28.6 | BC12: =SUM(BC42:BC46) -> 30.8
B13: How many years worth? (2) | D13: Nitrogen (N) | E13: Phosphate (P2O5) | F13: Potash (K2O) | N13: Mod. litter application rate with broadcasting | O13: How many years worth? | P13: 15 | Q13: litter drill refill time | AC13: 0 | AD13: =IFERROR(VLOOKUP(AC13,Equipment!$G$6:$AB$12,12,FALSE)+VLOOKUP(AC13,Equipment!$G$6:$AB$12,15,FALSE)+VLOOKUP(AC13,Equipment!$G$6:$AB$12,17,FALSE)+VLOOKUP(AC13,Equipment!$G$6:$AB$12,18,FALSE)+VLOOKUP(AC13,Equipment!$G$6:$AB$12,19,FALSE),0) -> 0 | AE13: =IFERROR(VLOOKUP(AC13,Equipment!$G$6:$AB$12,17,FALSE),0) -> 0 | AX13: November | AY13: =SUM(AZ47) -> 3.3 | AZ13: =SUM(BA47) -> 4.3 | BA13: =SUM(BB47) -> 4.9 | BB13: =SUM(BC47) -> 5.6 | BC13: =SUM(BD47) -> 6.3
B14: 2 | C14: 2.3) | D14: 60 | E14: 40 | F14: 60 | G14: Desired nutrient/yr in (lbs/acre) | J14: Total Time to apply (hours) | K14: How many days (10 hour work days) | P14: 0 | Q14: delivery charge for litter | S14: Broadcast | AC14: =Y2 -> Litter Drill | AD14: =IFERROR(VLOOKUP(AC14,Equipment!$G$6:$AB$12,12,FALSE)+VLOOKUP(AC14,Equipment!$G$6:$AB$12,15,FALSE)+VLOOKUP(AC14,Equipment!$G$6:$AB$12,17,FALSE)+VLOOKUP(AC14,Equipment!$G$6:$AB$12,18,FALSE)+VLOOKUP(AC14,Equipment!$G$6:$AB$12,19,FALSE),0) -> 5540.13222 | AE14: =IFERROR(VLOOKUP(AC14,Equipment!$G$6:$AB$12,17,FALSE),0) -> 146.6171204
B15: Application Rate (tons/ac.) | C15: 2.3) | D15: 3 | E15: 3 | F15: 2.5 | G15: Litter nutrient analysis in % | J15: =(B7/B20)+(H7*(G7/60)) -> 120 | K15: =ROUNDUP(J15/10,0) -> 12 | N15: =MIN(MIN(+E14*O15/(20*E15),D14*O15/(20*D15*MAX(C18:C19)),F14*O15/(20*F15)),D14*(1/C18)/(D16*(1-C16)),3.5) -> 1.333333333 | O15: 2 | P15: 2 | Q15: Interval between litter applications | S15: 2 | AC15: =Y3 -> Loader | AD15: =IFERROR(VLOOKUP(AC15,Equipment!$G$6:$AB$12,12,FALSE)+VLOOKUP(AC15,Equipment!$G$6:$AB$12,15,FALSE)+VLOOKUP(AC15,Equipment!$G$6:$AB$12,17,FALSE)+VLOOKUP(AC15,Equipment!$G$6:$AB$12,18,FALSE)+VLOOKUP(AC15,Equipment!$G$6:$AB$12,19,FALSE),0) -> 422.83276 | AE15: =IFERROR(VLOOKUP(AC15,Equipment!$G$6:$AB$12,17,FALSE),0) -> 1.245404695 | AX15: Week ending | AZ15: Percentile probability of days suitable
B16: =MIN(MIN(+E14*B14/(20*E15),D14*B14/(20*D15*MAX(C18:C19)),F14*B14/(20*F15)),D14*(1/C18)/D16,3.5) -> 1.333333333 | C16: 0.4 | D16: =D15*20 -> 60 | E16: =E15*20 -> 60 | F16: =F15*20 -> 50 | G16: Lbs of nutrient per ton | J16: Application Month(s) | K16: Suitable work days (35% chance of fewer) | L16: Can I get the litter applied this month? | N16: Mod. Supplemental N Fertilizer Needs with Broadcasting | P16: 5 | Q16: litter drill load capacity in tons | AC16: BBI Spreader | AD16: =IFERROR(VLOOKUP(AC16,Equipment!$G$6:$AB$12,12,FALSE)+VLOOKUP(AC16,Equipment!$G$6:$AB$12,15,FALSE)+VLOOKUP(AC16,Equipment!$G$6:$AB$12,17,FALSE)+VLOOKUP(AC16,Equipment!$G$6:$AB$12,18,FALSE)+VLOOKUP(AC16,Equipment!$G$6:$AB$12,19,FALSE),0) -> 0 | AE16: =IFERROR(VLOOKUP(AC16,Equipment!$G$6:$AB$12,17,FALSE),0) -> N/A | AZ16: 0.15 | BA16: 0.35 | BB16: 0.5 | BC16: 0.65 | BD16: 0.85
B17: Applicator Capacity (tons) (2.1) | C17: N Timing | D17: With sub-surfacing, surplus N (if any) is available in Yr 3 | E17: All needed P&K is applied in Yr 1 | G17: Lbs of nutrient / year | J17: April | K17: =VLOOKUP(J17,AX6:$BA$13,3,FALSE) -> 4.033333333 | L17: =IF((K17*10)>=$J$15,"Yes","No") -> No | O17: Mod. P (Yr 1) | P17: 3 | Q17: litter drill speed (should be lower with greater litter distance from field, small/irregular field, high application rate) | AC17: 0 | AD17: =IFERROR(VLOOKUP(AC17,Equipment!$G$6:$AB$12,12,FALSE)+VLOOKUP(AC17,Equipment!$G$6:$AB$12,15,FALSE)+VLOOKUP(AC17,Equipment!$G$6:$AB$12,17,FALSE)+VLOOKUP(AC17,Equipment!$G$6:$AB$12,18,FALSE)+VLOOKUP(AC17,Equipment!$G$6:$AB$12,19,FALSE),0) -> 0 | AE17: =IFERROR(VLOOKUP(AC17,Equipment!$G$6:$AB$12,17,FALSE),0) -> 0 | AX17: 11-Apr | AZ17: 2.7 | BA17: 3.6 | BB17: 4.3 | BC17: 4.9 | BD17: 5.9
B18: 5 | C18: 0.5 | D18: =IF((+$D$14-$D$16*$B$16*C18)<0,0,(+$D$14-$D$16*$B$16*C18)) -> 20 | E18: =+E14*$B$14-$B$16*E16 -> 0 | F18: =+F14*$B$14-$B$16*F16 -> 53.33333333 | G18: Supplemental Fertilizer needed (Yr 1) | J18: May | K18: =VLOOKUP(J18,AX7:$BA$13,3,FALSE) -> 20.3 | L18: =IF((K18*10)>=$J$15,"Yes","No") -> Yes | M18: Year 1 | N18: =IF(($D$14-$D$16*(1-C16)*$N$15*C18)<0,0,$D$14-$D$16*(1-C16)*$N$15*C18) -> 36 | O18: =+E14*$O$15-$N$15*E16 -> 0 | P18: 60 | Q18: refill time for fertilizer buggy | AC18: 0 | AD18: =IFERROR(VLOOKUP(AC18,Equipment!$G$6:$AB$12,12,FALSE)+VLOOKUP(AC18,Equipment!$G$6:$AB$12,15,FALSE)+VLOOKUP(AC18,Equipment!$G$6:$AB$12,17,FALSE)+VLOOKUP(AC18,Equipment!$G$6:$AB$12,18,FALSE)+VLOOKUP(AC18,Equipment!$G$6:$AB$12,19,FALSE),0) -> 0 | AE18: =IFERROR(VLOOKUP(AC18,Equipment!$G$6:$AB$12,17,FALSE),0) -> 0 | AX18: 18-Apr | AZ18: 3.2 | BA18: 4.1 | BB18: 4.8 | BC18: 5.5 | BD18: 6.1
B19: Applicator Speed (acres/hr.) (2.2) | C19: =100%-C18 -> 0.5 | D19: =IF((+$D$14-$D$16*$B$16*C19)<0,0,(+$D$14-$D$16*$B$16*C19)) -> 20 | E19: 0 | F19: 0 | G19: Supplemental Fertilizer needed (Yr 2) | J19: June | K19: =VLOOKUP(J19,AX8:$BA$13,3,FALSE) -> 20.8 | L19: =IF((K19*10)>=$J$15,"Yes","No") -> Yes | M19: Year 2 | N19: =IF(($D$14-$D$16*(1-C16)*$N$15*C19)<0,0,($D$14-$D$16*(1-C16)*$N$15*C19)) -> 36 | O19: Mod. K (Yr 1) | P19: 4 | Q19: fertilizer buggy load capacity in tons | AC19: 0 | AD19: =IFERROR(VLOOKUP(AC19,Equipment!$G$6:$AB$12,12,FALSE)+VLOOKUP(AC19,Equipment!$G$6:$AB$12,15,FALSE)+VLOOKUP(AC19,Equipment!$G$6:$AB$12,17,FALSE)+VLOOKUP(AC19,Equipment!$G$6:$AB$12,18,FALSE)+VLOOKUP(AC19,Equipment!$G$6:$AB$12,19,FALSE),0) -> 0 | AE19: =IFERROR(VLOOKUP(AC19,Equipment!$G$6:$AB$12,17,FALSE),0) -> 0 | AX19: 25-Apr | AZ19: 3.6 | BA19: 4.4 | BB19: 4.8 | BC19: 5.2 | BD19: 6
B20: 3 | D20: =IF((+$D$14-$D$16*$B$16*C20)<0,0,+$D$14-$D$16*$B$16*C20)+IF((+$D$14-$D$16*$B$16*C19)<0,(+$D$14-$D$16*$B$16*C19),0)*0.9+IF((+$D$14-$D$16*$B$16*C18)<0,(+$D$14-$D$16*$B$16*C18),0)*0.8 -> 60 | E20: 0 | F20: 0 | G20: =IF($B$14=2,"","Supplemental Fertilizer needed (Yr 3)") ->  | J20: Total Annual Suitable Days | K20: =SUM(AZ6:AZ13) -> 144.3333333 | M20: =IF($O$15=2,"","Year 3") ->  | N20: =IF($D$14-$D$16*(1-C16)*$N$15*C20<0,0,D14-D16*(1-C16)*N15*C20)+IF(+$D$14-$D$16*(1-C16)*$N$15*C19<0,(D14-$D$16*(1-C16)*$N$15*C19),0)*0.9+IF((+$D$14-$D$16*(1-C16)*$N$15*C18)<0,(D14-$D$16*(1-C16)*$N$15*C18),0)*0.8 -> 60 | O20: =+F14*$O$15-$N$15*F16 -> 53.33333333 | P20: 10 | Q20: fertilizer application speed (acres/hr) | AC20: =Y8 -> 0 | AD20: =IFERROR(VLOOKUP(AC20,Equipment!$G$6:$AB$12,12,FALSE)+VLOOKUP(AC20,Equipment!$G$6:$AB$12,15,FALSE)+VLOOKUP(AC20,Equipment!$G$6:$AB$12,17,FALSE)+VLOOKUP(AC20,Equipment!$G$6:$AB$12,18,FALSE)+VLOOKUP(AC20,Equipment!$G$6:$AB$12,19,FALSE),0) -> 0 | AE20: =IFERROR(VLOOKUP(AC20,Equipment!$G$6:$AB$12,18,FALSE),0) -> 0 | AX20: 2-May | AZ20: 2.6 | BA20: 3.5 | BB20: 4.1 | BC20: 4.7 | BD20: 5.8
D21: Labor Cost | E21: Pay /hr. | N21: Exp. Yearly N Loss/acre | P21: 7 | Q21: custom fertilizer app fee ($/acre) | AX21: 9-May | AZ21: 3 | BA21: 3.9 | BB21: 4.4 | BC21: 5.1 | BD21: 6.1
D22: Operator 1 | E22: ='User Page'!F14*1.1 -> 22 | AX22: 16-May | AZ22: 3.2 | BA22: 4.2 | BB22: 4.8 | BC22: 5.4 | BD22: 6.4
D23: Operator 2 | E23: ='User Page'!F15*1.1 -> 16.5 | AX23: 23-May | AZ23: 3.6 | BA23: 4.6 | BB23: 5.1 | BC23: 5.8 | BD23: 6.6
D24: Operator 3 | E24: ='User Page'!F16*1.1 -> 11 | AX24: 30-May | AZ24: 3.3 | BA24: 4.1 | BB24: 4.8 | BC24: 5.2 | BD24: 6
AX25: 6-Jun | AZ25: 3 | BA25: 4.8 | BB25: 5.2 | BC25: 5.7 | BD25: 6.3
O26: =+N15/O15*D15*20*C16 -> 16 | P26: 6 | Q26: custom litter app fee ($/acre) | AX26: 13-Jun | AZ26: 3.7 | BA26: 5.4 | BB26: 5.8 | BC26: 6 | BD26: 6.5
N27: Mod. Total Fertilizer | P27: 0.4 | Q27: default N loss rate for broadcast fertilizer | AX27: 20-Jun | AZ27: 3.9 | BA27: 5.1 | BB27: 5.6 | BC27: 6 | BD27: 6.5
Q28: custom litter drill rate is in the Equipment tab in row 65 | AX28: 27-Jun | AZ28: 4.3 | BA28: 5.5 | BB28: 5.9 | BC28: 6 | BD28: 6.7
B29: Acres applying | C29: Tons of fertilizer needed | D29: Refill time (minutes) | F29: Total cost of fertilizer | G29: Added Charge ($) | H29: Fertilizer + Added Charge | K29: Supplemental Fertilizer | P29: 0.5 | Q29: N Timing `1st year | AX29: 4-Jul | AZ29: 4.2 | BA29: 5.2 | BB29: 5.8 | BC29: 6.2 | BD29: 6.7
B30: =+'User Page'!C5 -> 300 | C30: =SUM(F34:H34,F36:H36,F38:H38) -> 26.37681159 | D30: 60 | F30: =SUM(F35:H35) -> 8919.754941 | G30: =IF(F30>0,'User Page'!$F$10,0) -> 0 | H30: =F30+G30 -> 8919.754941 | I30: Year 1 | N30: =+IF(N18>D45,N18/0.46*B30/2000*L44,0)+G30+O18*B30/0.46/2000*L45+O20*B30/0.6/2000*L46 -> 11010.03162 | O30: Year 1 | AX30: 11-Jul | AZ30: 5 | BA30: 5.9 | BB30: 6 | BC30: 6.1 | BD30: 6.9
F31: =SUM(F37:H37) -> 2612.84585 | G31: =IF(F31>0,'User Page'!$F$10,0) -> 0 | H31: =F31+G31 -> 2612.84585 | I31: Year 2 | N31: =+IF(N19>D45,N19*B30/0.46/2000*L44+G30,0) -> 4703.12253 | O31: Year 2 | AX31: 18-Jul | AZ31: 5.5 | BA31: 5.9 | BB31: 6.1 | BC31: 6.6 | BD31: 7
F32: =IF($B$14=2,0,SUM(F39:H39)) -> 0 | G32: =IF(F32>0,'User Page'!$F$10,0) -> 0 | H32: =F32+G32 -> 0 | I32: =IF($B$14=2,"","Year 3") ->  | N32: =IF($O$15=2,0,IF(N20>D45,N20*B30/0.46/2000*L44+G30,0)) -> 0 | O32: =IF($O$15=2,"","Year 3") ->  | AX32: 25-Jul | AZ32: 5 | BA32: 5.9 | BB32: 6.1 | BC32: 6.5 | BD32: 7
B33: Fertilizer Spreader Capacity (tons) | C33: Implement Speed (acres/hr.) | D33: Refill needed every x hours | F33: Urea needed (tons & $) | G33: Phosphate needed (tons & $) | H33: Muriate of Potash needed (tons & $) | N33: Mod. Tons Applied | AX33: 1-Aug | AZ33: 4.8 | BA33: 5.8 | BB33: 6.1 | BC33: 6.5 | BD33: 7
B34: 4 | C34: 10 | D34: =IFERROR(+$B$34/(SUM(F34:H34)/$B$30)/$C$34,"N/A") -> 6.04379562 | E34: Year 1 | F34: =(F44/0.46)*$B$30/2000 -> 6.52173913 | G34: =(G44/0.46)*$B$30/2000 -> 0 | H34: =(H44/0.6)*$B$30/2000 -> 13.33333333 | I34: Year 1 | N34: =+IF(N18>D45,N18/0.46*B30/2000,0)+O18*B30/0.46/2000+O20*B30/0.6/2000 -> 25.07246377 | O34: Year 1 | AX34: 8-Aug | AZ34: 5.4 | BA34: 5.9 | BB34: 6.1 | BC34: 6.5 | BD34: 7
D35: =IFERROR(+$B$34/(SUM(F36:H36)/$B$30)/$C$34,"N/A") -> 18.4 | E35: Year 2 | F35: =L44*F34 -> 2612.84585 | G35: =L45*G34 -> 0 | H35: =L46*H34 -> 6306.909091 | N35: =+IF(N19>D45,N19*B30/0.46/2000,0) -> 11.73913043 | O35: Year 2 | AX35: 15-Aug | AZ35: 5.1 | BA35: 6 | BB35: 6.3 | BC35: 6.8 | BD35: 7
D36: =IFERROR(+$B$34/(SUM(F38:H38)/$B$30)/$C$34,"N/A") -> N/A | E36: =IF($B$14=2,"","Year 3") ->  | F36: =(F45/0.46)*$B$30/2000 -> 6.52173913 | G36: =(G45/0.46)*$B$30/2000 -> 0 | H36: =(H45/0.6)*$B$30/2000 -> 0 | I36: Year 2 | N36: =IF($O$15=2,0,IF(N20>D45,N20*B30/0.46/2000,0)) -> 0 | O36: =IF($O$15=2,"","Year 3") ->  | AX36: 22-Aug | AZ36: 5 | BA36: 6 | BB36: 6.6 | BC36: 6.8 | BD36: 7
F37: =L44*F36 -> 2612.84585 | G37: =L45*G36 -> 0 | H37: =L46*H36 -> 0 | N37: Mod. Time to Apply | AX37: 29-Aug | AZ37: 5.3 | BA37: 5.9 | BB37: 6.2 | BC37: 6.6 | BD37: 7
B38: Total Time to apply (hours) | C38: How many days (10 hr/day) | D38: Refills needed | F38: =IF($B$14=2,0,+F46/0.46*$B$30/2000) -> 0 | G38: =IF($B$14=2,0,+G46/0.46*$B$30/2000) -> 0 | H38: =IF($B$14=2,0,+H46/0.6*$B$30/2000) -> 0 | I38: =IF($B$14=2,"","Year 3") ->  | AX38: 5-Sep | AZ38: 4.7 | BA38: 5.8 | BB38: 6.1 | BC38: 6.5 | BD38: 7
B39: =IF(SUM(F34:H34)>0,($B$30/$C$34)+(D39*($D$30/60)),0) -> 35 | C39: =ROUNDUP(B39/10,0) -> 4 | D39: =IFERROR(ROUNDUP(SUM(F34:H34)*1/$B$34,0),0) -> 5 | E39: Year 1 | F39: =+F38*L44 -> 0 | G39: =+G38*L45 -> 0 | H39: =+H38*L46 -> 0 | N39: =IF(N34>0,($B$30/$C$34)+(IFERROR(ROUNDUP(N34*1/$B$34,0),0)*($D$30/60)),0) -> 37 | O39: Year 1 | AX39: 12-Sep | AZ39: 4.8 | BA39: 5.7 | BB39: 6 | BC39: 6.2 | BD39: 6.9
B40: =IF(SUM(F36:H36)>0,($B$30/$C$34)+(D40*($D$30/60)),0) -> 32 | C40: =ROUNDUP(B40/10,0) -> 4 | D40: =IFERROR(ROUNDUP(SUM(F36:H36)*1/$B$34,0),0) -> 2 | E40: Year 2 | K40: Diesel Fuel Price | L40: ='User Page'!$F$18 -> 2 | N40: =IF(N35>0,($B$30/$C$34)+(IFERROR(ROUNDUP(N35*1/$B$34,0),0)*($D$30/60)),0) -> 33 | O40: Year 2 | AX40: 19-Sep | AZ40: 4 | BA40: 5.2 | BB40: 5.7 | BC40: 6.2 | BD40: 6.9
B41: =IF($B$14=2,0,IF(SUM(F38:H38)>0,($B$30/$C$34)+(D41*($D$30/60)),0)) -> 0 | C41: 0 | D41: =IFERROR(ROUNDUP(SUM(F38:H38)*1/$B$34,0),0) -> 0 | E41: =IF($B$14=2,"","Year 3") ->  | N41: =IF(N36>0,($B$30/$C$34)+(IFERROR(ROUNDUP(N36*1/$B$34,0),0)*($D$30/60)),0) -> 0 | O41: =IF($O$15=2,"","Year 3") ->  | AX41: 26-Sep | AZ41: 5 | BA41: 5.8 | BB41: 6 | BC41: 6.2 | BD41: 6.8
F42: Fertilizer needed (lbs./acre) | AX42: 3-Oct | AZ42: 5 | BA42: 5.9 | BB42: 6.1 | BC42: 6.5 | BD42: 7
F43: Nitrogen | G43: Phosphate | H43: Potash | L43: $/ton | T43: Labor Cost | U43: Pay /hr. | AX43: 10-Oct | AZ43: 4.3 | BA43: 5.4 | BB43: 6 | BC43: 6.5 | BD43: 7
F44: =IF(D18<$D$45,0,D18) -> 20 | G44: =E18 -> 0 | H44: =F18 -> 53.33333333 | I44: Year 1 | K44: Price of Urea (46 - 0 - 0) | L44: =Fertilizer!$K$12 -> 400.6363636 | T44: =D22 -> Operator 1 | U44: 22 | AX44: 17-Oct | AZ44: 4 | BA44: 5.2 | BB44: 5.8 | BC44: 6 | BD44: 6.8
C45: Apply no N if needs are less than | D45: 5 | E45: lbs./acre | F45: =IF(D19<$D$45,0,D19) -> 20 | G45: =E19 -> 0 | H45: =F19 -> 0 | I45: Year 2 | K45: Price of TSP (0 - 46 - 0) | L45: =Fertilizer!$K$13 -> 456.9454545 | T45: Operator 2 | U45: 16.5 | AX45: 24-Oct | AZ45: 3.4 | BA45: 4.5 | BB45: 5.4 | BC45: 5.9 | BD45: 6.4
F46: =IF($B$14=2,0,IF(D20<$D$45,0,D20)) -> 0 | G46: =IF($B$14=2,0,E20) -> 0 | H46: =IF($B$14=2,0,F20) -> 0 | I46: =IF($B$14=2,"","Year 3") ->  | K46: Price of Muriate of Potash (0 - 0 - 60) | L46: =Fertilizer!$K$14 -> 473.0181818 | T46: Operator 3 | U46: 11 | AX46: 31-Oct | AZ46: 3.2 | BA46: 4.7 | BB46: 5.3 | BC46: 5.9 | BD46: 6.7
T47: Custom Activity | U47: 0 | AX47: 7-Nov | AZ47: 3.3 | BA47: 4.3 | BB47: 4.9 | BC47: 5.6 | BD47: 6.3
T48: FALSE | U48: custom litter or owner applied litter | AX48: 11-Apr | AZ48: 2.7 | BA48: 3.6 | BB48: 4.3 | BC48: 4.9 | BD48: 5.9
T49: FALSE | U49: custom fertilizer or owner applied for supplmental fertilizer | AX49: 18-Apr | AZ49: 3.2 | BA49: 4.1 | BB49: 4.8 | BC49: 5.5 | BD49: 6.1
B50: Category | C50: Description | D50: Tractor Used | E50: Implement Used | F50: Fuel Consumption (GPH) | G50: Operator | H50: Time Cost (Hours) | I50: Equipment Cost | J50: Fuel Cost | K50: Labor Cost | L50: Cost / Acre | M50: Total Cost | N50: Mod. Cost | AX50: 25-Apr | AZ50: 3.6 | BA50: 4.4 | BB50: 4.8 | BC50: 5.2 | BD50: 6
O51: Custom Broadcasting ($/ton) | AX51: 2-May | AZ51: 2.6 | BA51: 3.5 | BB51: 4.1 | BC51: 4.7 | BD51: 5.8
B52: Purchase | C52: Litter Purchased | G52: Operator 1 | H52: 2 | I52: 0 | J52: 0 | K52: =VLOOKUP(G52,$T$44:$U$47,2,FALSE)*H52 -> 44 | L52: =M52/$B$7 -> 0.1466666667 | M52: =J52+I52+K52 -> 44 | N52: =+M52 -> 44
B54: =CONCATENATE(B14,"-yr Litter Application Cost") -> 2-yr Litter Application Cost | C54: Litter Application | D54: John Deere 6110M 4wd | E54: =+Equipment!G8 -> Litter Drill | F54: 6 | G54: Operator 2 | H54: =IF(T48,0,B7/B20) -> 100 | I54: =(VLOOKUP(D54,Equipment!$K$91:$L$97,2,FALSE)+VLOOKUP(Litter!E54,Equipment!$K$91:$L$97,2,FALSE))*H54 -> 16389.85092 | J54: =F54*H54*$L$40 -> 1200 | K54: =VLOOKUP(G54,$T$44:$U$47,2,FALSE)*H54 -> 1650 | L54: =M54/$B$7 -> 64.13283641 | M54: =J54+I54+K54 -> 19239.85092 | N54: =IF(T48,0,+O56*N7) -> 2400
C55: Load Litter (idle during application) | D55: John Deere 5055e 4wd | E55: Loader | F55: 2 | G55: Operator 2 | H55: =IF(T48,0,J15-H54) -> 20 | I55: =(VLOOKUP(D55,Equipment!$K$91:$L$97,2,FALSE)+VLOOKUP(Litter!E55,Equipment!$K$91:$L$97,2,FALSE))*H55 -> 167.8895295 | J55: =F55*H55*$L$40 -> 80 | K55: =VLOOKUP(G55,$T$44:$U$47,2,FALSE)*H55 -> 330 | L55: 1.926298432 | M55: =J55+I55+K55 -> 577.8895295 | AH55: =AD2+AF2 -> 213000
C56: =IF(T48,"Litter & Custom application charge","Litter") -> Litter | E56: =IF(T48,"Please specify the custom charge for litter application:","") ->  | L56: =M56/$B$7 -> 60 | M56: =D10+IF($T$48,$B$7*$F$57,0) -> 18000 | N56: =+N12+IF(T48,N7*O56) -> 18000 | O56: 6
F57: 40 | G57: $/acre | O57: Mod. Equip. Cost
P58: Mod. Fuel | Q58: Mod. Labor
C59: Broadcast Fertilizer (Yr 1) | D59: John Deere 5055e 4wd | E59: =+Equipment!G9 -> BBI Spreader | F59: 3 | G59: Operator 1 | H59: =IF(T49,0,B39) -> 35 | I59: =(VLOOKUP(D59,Equipment!$K$91:$L$97,2,FALSE)+VLOOKUP(Litter!E59,Equipment!$K$91:$L$97,2,FALSE))*H59 -> 250.2175122 | J59: =F59*H59*$L$40 -> 210 | K59: =VLOOKUP(G59,$T$44:$U$47,2,FALSE)*H59 -> 770 | L59: =M59/$B$7 -> 4.100725041 | M59: =IF(T49,0,J59+I59+K59) -> 1230.217512 | N59: =IF($T$49,0,N39)*((VLOOKUP(D59,Equipment!$K$91:$L$97,2,FALSE)+VLOOKUP(Litter!E59,Equipment!$K$91:$L$97,2,FALSE))+F59*$L$40+VLOOKUP(G59,$T$44:$U$47,2,FALSE)) -> 1300.515656 | O59: =IF($T$49,0,N39)*(VLOOKUP(D59,Equipment!$K$91:$L$97,2,FALSE)+VLOOKUP(Litter!E59,Equipment!$K$91:$L$97,2,FALSE)) -> 264.5156558 | P59: =F59*N39*$L$40 -> 222 | Q59: =IF($T$49,0,N39)*VLOOKUP(G59,T44:U47,2,FALSE) -> 814
C60: Broadcast Fertilizer (Yr 2) | D60: =D59 -> John Deere 5055e 4wd | E60: =E59 -> BBI Spreader | F60: 3 | G60: Operator 1 | H60: =IF(T49,0,B40) -> 32 | I60: =(VLOOKUP(D60,Equipment!$K$91:$L$97,2,FALSE)+VLOOKUP(Litter!E60,Equipment!$K$91:$L$97,2,FALSE))*H60 -> 228.7702969 | J60: =F60*H60*$L$40 -> 192 | K60: =VLOOKUP(G60,$T$44:$U$47,2,FALSE)*H60 -> 704 | L60: 3.749234323 | M60: =IF(T49,0,J60+I60+K60) -> 1124.770297 | N60: =IF($T$49,0,N40)*((VLOOKUP(D60,Equipment!$K$91:$L$97,2,FALSE)+VLOOKUP(Litter!E60,Equipment!$K$91:$L$97,2,FALSE))+F60*$L$40+VLOOKUP(G60,$T$44:$U$47,2,FALSE)) -> 1159.919369 | O60: =IF($T$49,0,N40)*(VLOOKUP(D60,Equipment!$K$91:$L$97,2,FALSE)+VLOOKUP(Litter!E60,Equipment!$K$91:$L$97,2,FALSE)) -> 235.9193687 | P60: =F60*N40*$L$40 -> 198 | Q60: =IF($T$49,0,N40)*VLOOKUP(G60,T44:U47,2,FALSE) -> 726
B61: =IF(T49,"Custom Fertilizer","") ->  | C61: =IF($B$14=2,"","Broadcast Fertilizer (Yr 3)") ->  | D61: =D60 -> John Deere 5055e 4wd | E61: BBI Spreader | F61: 3 | G61: Operator 1 | H61: =IF(T49,0,B41) -> 0 | I61: =(VLOOKUP(D61,Equipment!$K$91:$L$97,2,FALSE)+VLOOKUP(Litter!E61,Equipment!$K$91:$L$97,2,FALSE))*H61 -> 0 | J61: =F61*H61*$L$40 -> 0 | K61: =VLOOKUP(G61,$T$44:$U$47,2,FALSE)*H61 -> 0 | L61: =M61/$B$7 -> 0 | M61: =IF(T49,0,J61+I61+K61) -> 0 | N61: =IF($T$49,0,N41)*((VLOOKUP(D61,Equipment!$K$91:$L$97,2,FALSE)+VLOOKUP(Litter!E61,Equipment!$K$91:$L$97,2,FALSE))+F61*$L$40+VLOOKUP(G61,$T$44:$U$47,2,FALSE)) -> 0 | O61: =IF($T$49,0,N41)*(VLOOKUP(D61,Equipment!$K$91:$L$97,2,FALSE)+VLOOKUP(Litter!E61,Equipment!$K$91:$L$97,2,FALSE)) -> 0 | P61: =F61*N41*$L$40 -> 0 | Q61: =IF($T$49,0,N41)*VLOOKUP(G61,T44:U47,2,FALSE) -> 0
B62: Supplemental Fertilizer | C62: =IF($T$49,"Fertilizer & Custom application charge (Yr 1)","Fertilizer (Yr 1)") -> Fertilizer (Yr 1) | E62: =IF(T49,"Please specify the custom charge for fertilizer application:","") ->  | L62: =M62/$B$7 -> 29.73251647 | M62: =H30+IF(AND(D34<>"N/A",$T$49),$B$7*$F$63,0) -> 8919.754941 | N62: =N30+IF(AND(D34<>"N/A",$T$49),$B$7*$F$63,0) -> 11010.03162 | O62: Mod. Fuel Cost
C63: =IF($T$49,"Fertilizer & Custom application charge (Yr 2)","Fertilizer (Yr 2)") -> Fertilizer (Yr 2) | F63: 7 | G63: $/acre | L63: =M63/$B$7 -> 8.709486166 | M63: =H31+IF(AND(D35<>"N/A",$T$49),$B$7*$F$63,0) -> 2612.84585 | N63: =N31+IF(AND(D35<>"N/A",$T$49),$B$7*$F$63,0) -> 4703.12253 | O63: =SUM(P59:P61) -> 420
C64: =IF($B$14=2,"",IF($T$49,"Fertilizer & Custom application charge (Yr 3)","Fertilizer (Yr 3)")) ->  | L64: =IF($B$14=2,"",M64/$B$7) ->  | M64: =IF($B$14=2,0,+H32+IF(AND(D36<>"N/A",$T$49),$B$7*$F$63,0)) -> 0 | N64: =IF($O$15=2,0,N32+IF(AND(D36<>"N/A",$T$49),$B$7*$F$63,0)) -> 0 | O64: Mod. Labor Cost
O65: =SUM(Q59:Q61)+N52 -> 1584
D66: Tractor Used
B67: Additional user added activities | D67: None | E67: None | F67: 0 | G67: Operator 1 | H67: 0 | I67: =IFERROR((VLOOKUP(D67,Equipment!$K$91:$L$97,2,FALSE)+VLOOKUP(Litter!E67,Equipment!$K$91:$L$97,2,FALSE))*H67,"Add equipment") -> 0 | J67: =F67*H67*$L$40 -> 0 | K67: =VLOOKUP(G67,$T$44:$U$47,2,FALSE)*H67 -> 0 | L67: =M67/$B$7 -> 0 | M67: =I67+K67 -> 0
D68: None | E68: None | F68: 0 | G68: Operator 1 | H68: 0 | I68: =IFERROR((VLOOKUP(D68,Equipment!$K$91:$L$97,2,FALSE)+VLOOKUP(Litter!E68,Equipment!$K$91:$L$97,2,FALSE))*H68,"Add equipment") -> 0 | J68: =F68*H68*$L$40 -> 0 | K68: 0 | L68: =M68/$B$7 -> 0 | M68: =I68+K68 -> 0
D69: None | E69: None | F69: 0 | G69: Operator 1 | H69: 0 | I69: =IFERROR((VLOOKUP(D69,Equipment!$K$91:$L$97,2,FALSE)+VLOOKUP(Litter!E69,Equipment!$K$91:$L$97,2,FALSE))*H69,"Add equipment") -> 0 | J69: =F69*H69*$L$40 -> 0 | K69: 0 | L69: 0 | M69: =I69+K69 -> 0
D70: None | E70: None | F70: 0 | G70: Operator 1 | H70: 0 | I70: =IFERROR((VLOOKUP(D70,Equipment!$K$91:$L$97,2,FALSE)+VLOOKUP(Litter!E70,Equipment!$K$91:$L$97,2,FALSE))*H70,"Add equipment") -> 0 | J70: =F70*H70*$L$40 -> 0 | K70: 0 | L70: 0 | M70: =I70+K70 -> 0
H72: =H50 -> Time Cost (Hours) | I72: =I50 -> Equipment Cost | J72: Fuel Cost | K72: =K50 -> Labor Cost | L72: =L50 -> Cost / Acre | M72: =M50 -> Total Cost | N72: Mod. Total Cost
D73: TOTAL | E73: =CONCATENATE("over ",B14," years") -> over 2 years | H73: =SUM(H52:H70) -> 189 | I73: =SUMIF(I52:I70,"<>#N/A") -> 17036.72826 | J73: 1682 | K73: 3498 | L73: 172.4977635 | M73: 51749.32905 | N73: =SUMIF(N52:N70,"<>#N/A") -> 38617.58917
K78: Commercial Fertilizer Only
B79: Acres applying | C79: Tons of fertilizer needed annually | D79: Refill time (minutes) | F79: Total cost of fertilizer | G79: Added Charge ($) | H79: Fertilizer + Application
B80: =+'User Page'!C5 -> 300 | C80: =SUM(F83:H83) -> 47.60869565 | D80: =+D30 -> 60 | F80: =SUM(F84:H84) -> 20893.96838 | G80: =IF(F80>0,'User Page'!$F$10,0) -> 0 | H80: =F80+G80 -> 20893.96838 | I80: Annually
B82: Fertilizer Spreader Capacity (tons) | C82: Implement Speed (acres/hr.) | D82: Refill needed every x hours | F82: Urea needed (tons & $) | G82: Phosphate needed (tons & $) | H82: Muriate of Potash needed (tons & $)
B83: =B34 -> 4 | C83: =+C34 -> 10 | D83: =IFERROR(+$B$34/(SUM(F83:H83)/$B$30)/$C$34,"N/A") -> 2.520547945 | F83: =+D14/0.46*B80/2000 -> 19.56521739 | G83: =+E14/0.46*B80/2000 -> 13.04347826 | H83: =+F14/0.6*B80/2000 -> 15 | I83: Annually
F84: =L88*F83 -> 7838.537549 | G84: =L89*G83 -> 5960.158103 | H84: =L90*H83 -> 7095.272727
B85: Time reqrd. (hours) | C85: How many days (10 hr/day) | D85: Refills needed | K85: Diesel Fuel Price | L85: ='User Page'!$F$18 -> 2
B86: =IF(SUM(F83:H83)>0,($B$30/$C$34)+(D86*($D$30/60)),0) -> 42 | C86: =ROUNDUP(B86/10,0) -> 5 | D86: =IFERROR(ROUNDUP(SUM(F83:H83)*1/$B$34,0),0) -> 12 | E86: Annually
L87: $/ton
F88: Fertilizer needed (lbs./acre) | K88: Price of Urea (46 - 0 - 0) | L88: =Fertilizer!$K$12 -> 400.6363636
F89: Nitrogen | G89: Phosphate | H89: Potash | K89: Price of TSP (0 - 46 - 0) | L89: =Fertilizer!$K$13 -> 456.9454545
C90: Apply no N if needs <= | D90: =+D45 -> 5 | E90: lbs./acre | F90: =IF(D14<$D$90,0,D14) -> 60 | G90: =IF(E14<$D$90,0,E14) -> 40 | H90: =IF(F14<$D$90,0,F14) -> 60 | I90: Annually | K90: Price of Muriate of Potash (0 - 0 - 60) | L90: =Fertilizer!$K$14 -> 473.0181818
C97: Broadcast Fertilizer | D97: =+D59 -> John Deere 5055e 4wd | E97: =+Equipment!G9 -> BBI Spreader | F97: =+F59 -> 3 | G97: =+G59 -> Operator 1 | H97: =IF(T49,0,B86) -> 42 | I97: =(VLOOKUP(D97,Equipment!$K$91:$L$97,2,FALSE)+VLOOKUP(Litter!E97,Equipment!$K$91:$L$97,2,FALSE))*H97 -> 300.2610147 | J97: =F97*H97*$L$40 -> 252 | K97: =VLOOKUP(G97,$T$44:$U$47,2,FALSE)*H97 -> 924 | L97: =M97/$B$7 -> 4.920870049 | M97: =IF(T84,0,J97+I97+K97) -> 1476.261015
B98: Commercial Fertilizer | C98: =IF(T49,"Fertilizer & Custom charge (annual)","Fertilizer (annual)") -> Fertilizer (annual) | E98: =IF(T99,"Custom charge for fertilizer application:","") ->  | L98: =M98/$B$7 -> 69.64656126 | M98: =H80+IF(AND(D83<>"N/A",T49),$B$7*$F$99,0) -> 20893.96838
F99: =+F63 -> 7
D101: Tractor Used
B102: Additional user added activities | D102: None | E102: None | F102: 0 | G102: Operator 1 | H102: 0 | I102: =IFERROR((VLOOKUP(D102,Equipment!$K$91:$L$97,2,FALSE)+VLOOKUP(Litter!E102,Equipment!$K$91:$L$97,2,FALSE))*H102,"Add equipment") -> 0 | J102: =F102*H102*$L$40 -> 0 | K102: =VLOOKUP(G102,$T$44:$U$47,2,FALSE)*H102 -> 0 | L102: =M102/$B$7 -> 0 | M102: =I102+K102 -> 0
D103: None | E103: None | F103: 0 | G103: Operator 1 | H103: 0 | I103: =IFERROR((VLOOKUP(D103,Equipment!$K$91:$L$97,2,FALSE)+VLOOKUP(Litter!E103,Equipment!$K$91:$L$97,2,FALSE))*H103,"Add equipment") -> 0 | J103: =F103*H103*$L$40 -> 0 | K103: 0 | L103: =M103/$B$7 -> 0 | M103: =I103+K103 -> 0
D104: None | E104: None | F104: 0 | G104: Operator 1 | H104: 0 | I104: =IFERROR((VLOOKUP(D104,Equipment!$K$91:$L$97,2,FALSE)+VLOOKUP(Litter!E104,Equipment!$K$91:$L$97,2,FALSE))*H104,"Add equipment") -> 0 | J104: =F104*H104*$L$40 -> 0 | K104: 0 | L104: 0 | M104: =I104+K104 -> 0
D105: None | E105: None | F105: 0 | G105: Operator 1 | H105: 0 | I105: =IFERROR((VLOOKUP(D105,Equipment!$K$91:$L$97,2,FALSE)+VLOOKUP(Litter!E105,Equipment!$K$91:$L$97,2,FALSE))*H105,"Add equipment") -> 0 | J105: =F105*H105*$L$40 -> 0 | K105: 0 | L105: 0 | M105: =I105+K105 -> 0
H107: =H50 -> Time Cost (Hours) | I107: =I50 -> Equipment Cost | J107: Fuel Cost | K107: =K50 -> Labor Cost | L107: =L50 -> Cost / Acre | M107: =M50 -> Total Cost
D108: TOTAL | E108: =CONCATENATE("over ",B14," years") -> over 2 years | H108: =SUM(H97:H105)*B14 -> 84 | I108: =SUMIF(I97:I105,"<>#N/A")*B14 -> 600.5220294 | J108: =SUMIF(J97:J105,"<>#N/A")*B14 -> 504 | K108: =SUMIF(K97:K105,"<>#N/A")*B14 -> 1848 | L108: =SUMIF(L97:L105,"<>#N/A")*B14 -> 149.1348626 | M108: =SUMIF(M97:M105,"<>#N/A")*B14 -> 44740.45879
O121: =D68 -> None | P121: =IFERROR(VLOOKUP(O121,Equipment!#REF!,2,FALSE),0) -> 0 | Q121: =E68 -> None | R121: =IFERROR(VLOOKUP(Q121,Equipment!#REF!,2,FALSE),0) -> 0
O122: =D69 -> None | P122: =IFERROR(VLOOKUP(O122,Equipment!#REF!,2,FALSE),0) -> 0 | Q122: =E69 -> None | R122: =IFERROR(VLOOKUP(Q122,Equipment!#REF!,2,FALSE),0) -> 0
B123: Subsurfaced Poultry Litter Cost Analysis | AY123: Percent Probabilty of suitable days
AX124: Month | AY124: 0.15 | AZ124: 0.35 | BA124: 0.5 | BB124: 0.65 | BC124: 0.85
B125: Acres applied | C125: Cost of Litter / Ton | D125: Tons of litter needed | E125: Truckloads | G125: Refill time (minutes) | H125: Refills needed | AX125: April | AY125: =(AVERAGE(AZ136:AZ138)+AVERAGE(AZ167:AZ169))/2 -> 3.166666667 | AZ125: =(AVERAGE(BA136:BA138)+AVERAGE(BA167:BA169))/2 -> 4.033333333 | BA125: =(AVERAGE(BB136:BB138)+AVERAGE(BB167:BB169))/2 -> 4.633333333 | BB125: =(AVERAGE(BC136:BC138)+AVERAGE(BC167:BC169))/2 -> 5.2 | BC125: =(AVERAGE(BD136:BD138)+AVERAGE(BD167:BD169))/2 -> 6
B126: ='User Page'!C76 -> 0 | C126: ='User Page'!C78 -> 0 | D126: =B136*B126 ->  | E126: =ROUNDUP(D126/25,0) ->  | G126: 15 | H126: =B126*B136/B139 ->  | AX126: May | AY126: =SUM(AZ139:AZ143) -> 15.7 | AZ126: =SUM(BA139:BA143) -> 20.3 | BA126: =SUM(BB139:BB143) -> 23.2 | BB126: =SUM(BC139:BC143) -> 26.2 | BC126: =SUM(BD139:BD143) -> 30.9
AX127: June | AY127: =SUM(AZ144:AZ147) -> 14.9 | AZ127: =SUM(BA144:BA147) -> 20.8 | BA127: =SUM(BB144:BB147) -> 22.5 | BB127: =SUM(BC144:BC147) -> 23.7 | BC127: =SUM(BD144:BD147) -> 26
B128: Total Cost of Litter ONLY | C128: Delivery Charge (if any) | D128: Litter + Delivery | G128: Refill needed every x minutes | AX128: July | AY128: =SUM(AZ148:AZ151) -> 19.7 | AZ128: =SUM(BA148:BA151) -> 22.9 | BA128: =SUM(BB148:BB151) -> 24 | BB128: =SUM(BC148:BC151) -> 25.4 | BC128: =SUM(BD148:BD151) -> 27.6
B129: =D126*C126 ->  | C129: ='User Page'!C79 -> 0 | D129: =B129+C129 ->  | G129: =B139/B136/B142*60 ->  | AX129: August | AY129: =SUM(AZ152:AZ156) -> 25.6 | AZ129: =SUM(BA152:BA156) -> 29.6 | BA129: =SUM(BB152:BB156) -> 31.3 | BB129: =SUM(BC152:BC156) -> 33.2 | BC129: =SUM(BD152:BD156) -> 35
AX130: September | AY130: =SUM(AZ157:AZ160) -> 18.5 | AZ130: =SUM(BA157:BA160) -> 22.5 | BA130: =SUM(BB157:BB160) -> 23.8 | BB130: =SUM(BC157:BC160) -> 25.1 | BC130: =SUM(BD157:BD160) -> 27.6
AX131: October | AY131: =SUM(AY161:AY165) -> 0 | AZ131: =SUM(AZ161:AZ165) -> 19.9 | BA131: =SUM(BA161:BA165) -> 25.7 | BB131: =SUM(BB161:BB165) -> 28.6 | BC131: =SUM(BC161:BC165) -> 30.8
B132: How many years worth? | D132: N | E132: P2O5 | F132: K2O | AX132: November | AY132: =SUM(AZ166) -> 3.3 | AZ132: =SUM(BA166) -> 4.3 | BA132: =SUM(BB166) -> 4.9 | BB132: =SUM(BC166) -> 5.6 | BC132: =SUM(BD166) -> 6.3
B133: 2 | D133: ='User Page'!C87 -> 0 | E133: ='User Page'!C88 -> 0 | F133: ='User Page'!C89 -> 0 | G133: Desired nutrient/yr in (lbs/acre)
D134: 3 | E134: ='User Page'!C83 -> 0 | F134: ='User Page'!C84 -> 0 | G134: Litter nutrient analysis in % | AX134: Week ending | AZ134: Percentile probability of days suitable
B135: Application Rate (tons/ac.) | D135: =D134*20 -> 60 | E135: =E134*20 -> 0 | F135: =F134*20 -> 0 | G135: Lbs of nutrient per ton | AZ135: 0.15 | BA135: 0.35 | BB135: 0.5 | BC135: 0.65 | BD135: 0.85
B136: =MIN(+E133*B133/(20*E134),D133*B133/(20*D134),F133*B133/(20*F134)) ->  | D136: =+D135*$B$16/B133 -> 40 | E136: =+E135*$B$16/B133 -> 0 | F136: =+F135*$B$16/B133 -> 0 | G136: Lbs of nutrient applied / year | AX136: 11-Apr | AZ136: 2.7 | BA136: 3.6 | BB136: 4.3 | BC136: 4.9 | BD136: 5.9
D137: =(+D133-D136)*(1+0.36) -> -54.4 | E137: =+E133-E136 -> 0 | F137: =+F133-F136 -> 0 | G137: Supplemental Fertilizer needed (year 1) | AX137: 18-Apr | AZ137: 3.2 | BA137: 4.1 | BB137: 4.8 | BC137: 5.5 | BD137: 6.1
B138: Implement Capacity (tons) | D138: =(D133-D136)*(1-0.36) -> -25.6 | E138: =+E133-E136 -> 0 | F138: =F137 -> 0 | G138: Supplemental Fertilizer needed (year 2) | AX138: 25-Apr | AZ138: 3.6 | BA138: 4.4 | BB138: 4.8 | BC138: 5.2 | BD138: 6
B139: 5 | AX139: 2-May | AZ139: 2.6 | BA139: 3.5 | BB139: 4.1 | BC139: 4.7 | BD139: 5.8
D140: Labor Cost | E140: Pay /hr. | AX140: 9-May | AZ140: 3 | BA140: 3.9 | BB140: 4.4 | BC140: 5.1 | BD140: 6.1
B141: Implement Speed (acres/hr.) | D141: Operator 1 | E141: ='User Page'!F89*1.1 -> 0 | AX141: 16-May | AZ141: 3.2 | BA141: 4.2 | BB141: 4.8 | BC141: 5.4 | BD141: 6.4
B142: 3 | D142: Operator 2 | E142: ='User Page'!F90*1.1 -> 0 | AX142: 23-May | AZ142: 3.6 | BA142: 4.6 | BB142: 5.1 | BC142: 5.8 | BD142: 6.6
D143: Operator 3 | E143: ='User Page'!F91*1.1 -> 0 | AX143: 30-May | AZ143: 3.3 | BA143: 4.1 | BB143: 4.8 | BC143: 5.2 | BD143: 6
AX144: 6-Jun | AZ144: 3 | BA144: 4.8 | BB144: 5.2 | BC144: 5.7 | BD144: 6.3
AX145: 13-Jun | AZ145: 3.7 | BA145: 5.4 | BB145: 5.8 | BC145: 6 | BD145: 6.5
AX146: 20-Jun | AZ146: 3.9 | BA146: 5.1 | BB146: 5.6 | BC146: 6 | BD146: 6.5
AX147: 27-Jun | AZ147: 4.3 | BA147: 5.5 | BB147: 5.9 | BC147: 6 | BD147: 6.7
B148: Acres applying | C148: Tons of fertilizer needed | D148: Refill time (minutes) | F148: Total cost of fertilizer | G148: Fees | H148: Fertilizer + Application | AX148: 4-Jul | AZ148: 4.2 | BA148: 5.2 | BB148: 5.8 | BC148: 6.2 | BD148: 6.7
B149: =IF((D137+E137+F137)=0,0,B126) -> 0 | C149: =(F160+G160+H160)*B149/2000 -> 0 | D149: 10 | F149: =SUM(F154:H154) -> -7106.940711 | G149: ='User Page'!F84 -> 0 | H149: =F149+G149 -> -7106.940711 | I149: Year 1 | AX149: 11-Jul | AZ149: 5 | BA149: 5.9 | BB149: 6 | BC149: 6.1 | BD149: 6.9
F150: =SUM(F156:H156) -> -3344.442688 | G150: =G149 -> 0 | H150: =F150+G150 -> -3344.442688 | I150: Year 2 | AX150: 18-Jul | AZ150: 5.5 | BA150: 5.9 | BB150: 6.1 | BC150: 6.6 | BD150: 7
AX151: 25-Jul | AZ151: 5 | BA151: 5.9 | BB151: 6.1 | BC151: 6.5 | BD151: 7
B152: Implement Capacity (tons) | C152: Implement Speed (acres/hr.) | D152: Refill needed every x minutes | F152: Urea needed (tons) | G152: Phosphorus needed (tons) | H152: Muriate of Potash needed (tons) | AX152: 1-Aug | AZ152: 4.8 | BA152: 5.8 | BB152: 6.1 | BC152: 6.5 | BD152: 7
B153: 6 | C153: 10 | D153: =B153/1/C153*60 -> 36 | F153: =(F160/0.46)*$B$30/2000 -> -17.73913043 | G153: =(G160/0.46)*$B$30/2000 -> 0 | H153: =(H160/0.6)*$B$30/2000 -> 0 | I153: Year 1 | AX153: 8-Aug | AZ153: 5.4 | BA153: 5.9 | BB153: 6.1 | BC153: 6.5 | BD153: 7
F154: =D164*F153 -> -7106.940711 | G154: =D165*G153 -> 0 | H154: =D166*H153 -> 0 | AX154: 15-Aug | AZ154: 5.1 | BA154: 6 | BB154: 6.3 | BC154: 6.8 | BD154: 7
B155: Total Time to apply (hours) | C155: How many days (10 hour work days) | D155: Refills needed | F155: =(F161/0.46)*$B$30/2000 -> -8.347826087 | G155: =(G161/0.46)*$B$30/2000 -> 0 | H155: =(H161/0.6)*$B$30/2000 -> 0 | I155: Year 2 | AX155: 22-Aug | AZ155: 5 | BA155: 6 | BB155: 6.6 | BC155: 6.8 | BD155: 7
B156: =(B149/C153)+(D156*(D149/60)) -> 0 | C156: =ROUNDUP(B156/10,0) -> 0 | D156: =B149*1/B153 -> 0 | F156: =D164*F155 -> -3344.442688 | G156: =D165*G155 -> 0 | H156: =D166*H155 -> 0 | AX156: 29-Aug | AZ156: 5.3 | BA156: 5.9 | BB156: 6.2 | BC156: 6.6 | BD156: 7
AX157: 5-Sep | AZ157: 4.7 | BA157: 5.8 | BB157: 6.1 | BC157: 6.5 | BD157: 7
C158: Diesel Fuel Price | D158: ='User Page'!$F$18 -> 2 | F158: Fertilizer mix (lbs./acre) | AX158: 12-Sep | AZ158: 4.8 | BA158: 5.7 | BB158: 6 | BC158: 6.2 | BD158: 6.9
C159: N price per lb. | D159: =Fertilizer!$K$7 -> 0.4354743083 | F159: N | G159: P | H159: K | K159: Total Time to apply (hours) | L159: How many days (10 hour work days) | AX159: 19-Sep | AZ159: 4 | BA159: 5.2 | BB159: 5.7 | BC159: 6.2 | BD159: 6.9
C160: P price per lb. | D160: =Fertilizer!$K$8 -> 0.4966798419 | E160: Nutrient level desired | F160: =D137 -> -54.4 | G160: =E137 -> 0 | H160: =F137 -> 0 | I160: Year 1 | K160: =(B126/B142)+(H126*(G126/60)) ->  | L160: =ROUNDUP(K160/10,0) ->  | AX160: 26-Sep | AZ160: 5 | BA160: 5.8 | BB160: 6 | BC160: 6.2 | BD160: 6.8
C161: K price per lb. | D161: =Fertilizer!$K$9 -> 0.3941818182 | F161: =D138 -> -25.6 | G161: =E138 -> 0 | H161: =F138 -> 0 | I161: Year 2 | AX161: 3-Oct | AZ161: 5 | BA161: 5.9 | BB161: 6.1 | BC161: 6.5 | BD161: 7
K162: Application Month(s) | L162: Suitable work days (35% probability) | M162: Can I sub surface this month? | T162: Labor Cost | U162: Pay /hr. | AX162: 10-Oct | AZ162: 4.3 | BA162: 5.4 | BB162: 6 | BC162: 6.5 | BD162: 7
D163: =Fertilizer!$K$11 -> $/ton | K163: April | L163: =VLOOKUP(K163,AX$13:$BA125,3,FALSE) -> 4.033333333 | M163: =IF((L163*10)>=$J$15,"Yes","No") -> No | T163: =D141 -> Operator 1 | U163: =E141 -> 0 | AX163: 17-Oct | AZ163: 4 | BA163: 5.2 | BB163: 5.8 | BC163: 6 | BD163: 6.8
C164: Price of Urea (46 - 0 - 0) | D164: =Fertilizer!$K$12 -> 400.6363636 | K164: June | L164: =VLOOKUP(K164,AX$13:$BA126,3,FALSE) ->  | M164: =IF((L164*10)>=$J$15,"Yes","No") ->  | T164: =D142 -> Operator 2 | U164: =E142 -> 0 | AX164: 24-Oct | AZ164: 3.4 | BA164: 4.5 | BB164: 5.4 | BC164: 5.9 | BD164: 6.4
C165: Price of Phosphorus (0 - 46 - 0) | D165: =Fertilizer!$K$13 -> 456.9454545 | K165: July | L165: =VLOOKUP(K165,AX$13:$BA127,3,FALSE) ->  | M165: =IF((L165*10)>=$J$15,"Yes","No") ->  | T165: Operator 3 | U165: 0 | AX165: 31-Oct | AZ165: 3.2 | BA165: 4.7 | BB165: 5.3 | BC165: 5.9 | BD165: 6.7
C166: Price of Muriate of Potash (0 - 0 - 60) | D166: =Fertilizer!$K$14 -> 473.0181818 | K166: Total Suitable Days | L166: =SUM(AZ125:AZ132) -> 144.3333333 | T166: Custom Activity | U166: 0 | AX166: 7-Nov | AZ166: 3.3 | BA166: 4.3 | BB166: 4.9 | BC166: 5.6 | BD166: 6.3
AX167: 11-Apr | AZ167: 2.7 | BA167: 3.6 | BB167: 4.3 | BC167: 4.9 | BD167: 5.9
AX168: 18-Apr | AZ168: 3.2 | BA168: 4.1 | BB168: 4.8 | BC168: 5.5 | BD168: 6.1
B169: Category | C169: Description | D169: Tractor Used | E169: Implement Used | F169: Fuel Consumption (GPH) | G169: Operator | H169: Time Cost (Hours) | I169: Equipment Operating Cost | J169: Fuel Cost | K169: Labor Cost | L169: Cost / Acre | M169: Total Cost | AX169: 25-Apr | AZ169: 3.6 | BA169: 4.4 | BB169: 4.8 | BC169: 5.2 | BD169: 6
AX170: 2-May | AZ170: 2.6 | BA170: 3.5 | BB170: 4.1 | BC170: 4.7 | BD170: 5.8
B171: Purchase | C171: Litter Purchased | G171: Operator 1 | H171: 2 | I171: 0 | J171: 0 | K171: =VLOOKUP(G171,$T$44:$U$47,2,FALSE)*H171 -> 44 | L171: =M171/$B$7 -> 0.1466666667 | M171: =J171+I171+K171 -> 44
B173: Application | C173: Application | D173: John Deere 6110M 4wd | E173: Litter Drill | F173: 6 | G173: Operator 1 | H173: =K160 ->  | I173: =(VLOOKUP(D173,Equipment!$K$91:$L$97,2,FALSE)+VLOOKUP(Litter!E173,Equipment!$K$91:$L$97,2,FALSE))*H173 ->  | J173: =F173*H173*$L$40 ->  | K173: =VLOOKUP(G173,$T$44:$U$47,2,FALSE)*H173 ->  | L173: =M173/$B$7 ->  | M173: =J173+I173+K173 ->  | O173: Tractor List | P173: hp | Q173: Implement List | R173: hp | T173: Tractor list filtered | X173: Implement | AC173: Tractor Asset costs | AE173: implement asset costs
C174: Load Litter (idle during application) | D174: John Deere 5055e 4wd | E174: None | F174: 2 | G174: Operator 1 | H174: =K160 ->  | I174: =(VLOOKUP(D174,Equipment!$K$91:$L$97,2,FALSE)+VLOOKUP(Litter!E174,Equipment!$K$91:$L$97,2,FALSE))*H174 ->  | J174: =F174*H174*$L$40 ->  | K174: =VLOOKUP(G174,$T$44:$U$47,2,FALSE)*H174 ->  | M174: =J174+I174+K174 ->  | O174: =D173 -> John Deere 6110M 4wd | P174: =IFERROR(VLOOKUP(O174,Equipment!$H$102:$I$108,2,FALSE),0) -> 110 | Q174: =E173 -> Litter Drill | R174: =IFERROR(VLOOKUP(Q174,Equipment!$H$102:$I$108,2,FALSE),0) -> 100 | T174: =O174 -> John Deere 6110M 4wd | U174: =IFERROR(VLOOKUP(T174,Equipment!$G$6:$N$12,7,FALSE),0) -> 110000 | X174: =Q174 -> Litter Drill | Y174: =IFERROR(VLOOKUP(X174,Equipment!$G$6:$N$12,7,FALSE),0) -> 65000 | AC174: =SUM(U174:U180) -> 176000 | AE174: =SUM(Y174:Y180) -> 65000 | AH174: =AC174+AE174 -> 241000
C175: Litter material | H175: 0 | I175: 0 | J175: 0 | K175: 0 | L175: =M175/$B$7 -> 60 | M175: =$D$10 -> 18000 | O175: =D174 -> John Deere 5055e 4wd | P175: =IFERROR(VLOOKUP(O175,Equipment!$H$102:$I$108,2,FALSE),0) -> 55 | Q175: =E174 -> None | R175: =IFERROR(VLOOKUP(Q175,Equipment!$H$102:$I$108,2,FALSE),0) -> 0 | T175: John Deere 5055e 4wd | U175: =IFERROR(VLOOKUP(T175,Equipment!$G$6:$N$12,7,FALSE),0) -> 33000 | X175: None | Y175: =IFERROR(VLOOKUP(X175,Equipment!$G$6:$N$12,7,FALSE),0) -> 0
O176: =D178 -> John Deere 5055e 4wd | P176: =IFERROR(VLOOKUP(O176,Equipment!$H$102:$I$108,2,FALSE),0) -> 55 | Q176: =E178 -> BBI Spreader | R176: =IFERROR(VLOOKUP(Q176,Equipment!$H$102:$I$108,2,FALSE),0) -> 45 | T176: John Deere 5055e 4wd | U176: =IFERROR(VLOOKUP(T176,Equipment!$G$6:$N$12,7,FALSE),0) -> 33000 | X176: BBI Spreader | Y176: =IFERROR(VLOOKUP(X176,Equipment!$G$6:$N$12,7,FALSE),0) -> N/A
O177: =D185 -> None | P177: =IFERROR(VLOOKUP(O177,Equipment!$H$102:$I$108,2,FALSE),0) -> 0 | Q177: =E185 -> None | R177: =IFERROR(VLOOKUP(Q177,Equipment!$H$102:$I$108,2,FALSE),0) -> 0 | T177: None | U177: =IFERROR(VLOOKUP(T177,Equipment!$G$6:$N$12,7,FALSE),0) -> 0 | X177: None | Y177: =IFERROR(VLOOKUP(X177,Equipment!$G$6:$N$12,7,FALSE),0) -> 0
B178: Supplemental Fertilizer | C178: Broadcast Supplement (Year 1) | D178: John Deere 5055e 4wd | E178: BBI Spreader | F178: 4 | G178: Operator 1 | H178: =B156 -> 0 | I178: =(VLOOKUP(D178,Equipment!$K$91:$L$97,2,FALSE)+VLOOKUP(Litter!E178,Equipment!$K$91:$L$97,2,FALSE))*H178 -> 0 | J178: =F178*H178*$L$40 -> 0 | K178: =VLOOKUP(G178,$T$44:$U$47,2,FALSE)*H178 -> 0 | L178: =M178/$B$7 -> 0 | M178: =J178+I178+K178 -> 0 | O178: =D186 -> None | P178: =IFERROR(VLOOKUP(O178,Equipment!$H$102:$I$108,2,FALSE),0) -> 0 | Q178: =E186 -> None | R178: =IFERROR(VLOOKUP(Q178,Equipment!$H$102:$I$108,2,FALSE),0) -> 0 | T178: None | U178: =IFERROR(VLOOKUP(T178,Equipment!$G$6:$N$12,7,FALSE),0) -> 0 | X178: None | Y178: =IFERROR(VLOOKUP(X178,Equipment!$G$6:$N$12,7,FALSE),0) -> 0
C179: Broadcast Supplement (Year 2) | D179: =D178 -> John Deere 5055e 4wd | E179: =E178 -> BBI Spreader | F179: 4 | G179: Operator 1 | H179: =H178 -> 0 | I179: =(VLOOKUP(D179,Equipment!$K$91:$L$97,2,FALSE)+VLOOKUP(Litter!E179,Equipment!$K$91:$L$97,2,FALSE))*H179 -> 0 | J179: =F179*H179*$L$40 -> 0 | K179: =VLOOKUP(G179,$T$44:$U$47,2,FALSE)*H179 -> 0 | L179: 0 | M179: =J179+I179+K179 -> 0 | O179: =D187 -> None | P179: =IFERROR(VLOOKUP(O179,Equipment!$H$102:$I$108,2,FALSE),0) -> 0 | Q179: =E187 -> None | R179: =IFERROR(VLOOKUP(Q179,Equipment!$H$102:$I$108,2,FALSE),0) -> 0 | T179: None | U179: =IFERROR(VLOOKUP(T179,Equipment!$G$6:$N$12,7,FALSE),0) -> 0 | X179: None | Y179: =IFERROR(VLOOKUP(X179,Equipment!$G$6:$N$12,7,FALSE),0) -> 0 | AC179: Annualized Equipment Cost (Dep., Opp. Cost, Ins., Taxes) | AD179: Repair & Maintenance
C180: Fertilizer material (Year 1) | H180: 0 | I180: 0 | J180: 0 | K180: 0 | L180: =M180/$B$7 -> 29.73251647 | M180: =$H$30 -> 8919.754941 | O180: =D188 -> None | P180: =IFERROR(VLOOKUP(O180,Equipment!$H$102:$I$108,2,FALSE),0) -> 0 | Q180: =E188 -> None | R180: =IFERROR(VLOOKUP(Q180,Equipment!$H$102:$I$108,2,FALSE),0) -> 0 | T180: None | U180: =IFERROR(VLOOKUP(T180,Equipment!$G$6:$N$12,7,FALSE),0) -> 0 | X180: None | Y180: =IFERROR(VLOOKUP(X180,Equipment!$G$6:$N$12,7,FALSE),0) -> 0 | AB180: =T174 -> John Deere 6110M 4wd | AC180: =IFERROR(VLOOKUP(AB180,Equipment!$G$6:$AB$12,12,FALSE)+VLOOKUP(AB180,Equipment!$G$6:$AB$12,15,FALSE)+VLOOKUP(AB180,Equipment!$G$6:$AB$12,17,FALSE)+VLOOKUP(AB180,Equipment!$G$6:$AB$12,18,FALSE)+VLOOKUP(AB180,Equipment!$G$6:$AB$12,19,FALSE),0) -> 9523.047448 | AD180: =IFERROR(VLOOKUP(AB180,Equipment!$G$6:$AB$12,17,FALSE),0) -> 17.28138879
C181: Fertilizer material (Year 2) | H181: 0 | I181: 0 | J181: 0 | K181: 0 | L181: =M181/$B$7 -> 8.709486166 | M181: =$H$31 -> 2612.84585 | AB181: John Deere 5055e 4wd | AC181: =IFERROR(VLOOKUP(AB181,Equipment!$G$6:$AB$12,12,FALSE)+VLOOKUP(AB181,Equipment!$G$6:$AB$12,15,FALSE)+VLOOKUP(AB181,Equipment!$G$6:$AB$12,17,FALSE)+VLOOKUP(AB181,Equipment!$G$6:$AB$12,18,FALSE)+VLOOKUP(AB181,Equipment!$G$6:$AB$12,19,FALSE),0) -> 2831.771482 | AD181: =IFERROR(VLOOKUP(AB181,Equipment!$G$6:$AB$12,17,FALSE),0) -> 7.149071779
AB182: John Deere 5055e 4wd | AC182: =IFERROR(VLOOKUP(AB182,Equipment!$G$6:$AB$12,12,FALSE)+VLOOKUP(AB182,Equipment!$G$6:$AB$12,15,FALSE)+VLOOKUP(AB182,Equipment!$G$6:$AB$12,17,FALSE)+VLOOKUP(AB182,Equipment!$G$6:$AB$12,18,FALSE)+VLOOKUP(AB182,Equipment!$G$6:$AB$12,19,FALSE),0) -> 2831.771482 | AD182: =IFERROR(VLOOKUP(AB182,Equipment!$G$6:$AB$12,17,FALSE),0) -> 7.149071779
AB183: None | AC183: =IFERROR(VLOOKUP(AB183,Equipment!$G$6:$AB$12,12,FALSE)+VLOOKUP(AB183,Equipment!$G$6:$AB$12,15,FALSE)+VLOOKUP(AB183,Equipment!$G$6:$AB$12,17,FALSE)+VLOOKUP(AB183,Equipment!$G$6:$AB$12,18,FALSE)+VLOOKUP(AB183,Equipment!$G$6:$AB$12,19,FALSE),0) -> 0 | AD183: =IFERROR(VLOOKUP(AB183,Equipment!$G$6:$AB$12,17,FALSE),0) -> 0
D184: Tractor Used | AB184: None | AC184: =IFERROR(VLOOKUP(AB184,Equipment!$G$6:$AB$12,12,FALSE)+VLOOKUP(AB184,Equipment!$G$6:$AB$12,15,FALSE)+VLOOKUP(AB184,Equipment!$G$6:$AB$12,17,FALSE)+VLOOKUP(AB184,Equipment!$G$6:$AB$12,18,FALSE)+VLOOKUP(AB184,Equipment!$G$6:$AB$12,19,FALSE),0) -> 0 | AD184: =IFERROR(VLOOKUP(AB184,Equipment!$G$6:$AB$12,17,FALSE),0) -> 0
B185: Additional user added activities | D185: None | E185: None | F185: 0 | G185: Operator 1 | H185: 0 | I185: =IFERROR((VLOOKUP(D185,Equipment!$K$91:$L$97,2,FALSE)+VLOOKUP(Litter!E185,Equipment!$K$91:$L$97,2,FALSE))*H185,"Add equipment") -> 0 | J185: =F185*H185*$L$40 -> 0 | K185: =VLOOKUP(G185,$T$44:$U$47,2,FALSE)*H185 -> 0 | L185: =M185/$B$7 -> 0 | M185: =I185+K185 -> 0 | AB185: None | AC185: =IFERROR(VLOOKUP(AB185,Equipment!$G$6:$AB$12,12,FALSE)+VLOOKUP(AB185,Equipment!$G$6:$AB$12,15,FALSE)+VLOOKUP(AB185,Equipment!$G$6:$AB$12,17,FALSE)+VLOOKUP(AB185,Equipment!$G$6:$AB$12,18,FALSE)+VLOOKUP(AB185,Equipment!$G$6:$AB$12,19,FALSE),0) -> 0 | AD185: =IFERROR(VLOOKUP(AB185,Equipment!$G$6:$AB$12,17,FALSE),0) -> 0
D186: None | E186: None | F186: 0 | G186: Operator 1 | H186: 0 | I186: =IFERROR((VLOOKUP(D186,Equipment!$K$91:$L$97,2,FALSE)+VLOOKUP(Litter!E186,Equipment!$K$91:$L$97,2,FALSE))*H186,"Add equipment") -> 0 | J186: =F186*H186*$L$40 -> 0 | K186: 0 | L186: =M186/$B$7 -> 0 | M186: =I186+K186 -> 0 | AB186: =X174 -> Litter Drill | AC186: =IFERROR(VLOOKUP(AB186,Equipment!$G$6:$AB$12,12,FALSE)+VLOOKUP(AB186,Equipment!$G$6:$AB$12,15,FALSE)+VLOOKUP(AB186,Equipment!$G$6:$AB$12,17,FALSE)+VLOOKUP(AB186,Equipment!$G$6:$AB$12,18,FALSE)+VLOOKUP(AB186,Equipment!$G$6:$AB$12,19,FALSE),0) -> 5540.13222 | AD186: =IFERROR(VLOOKUP(AB186,Equipment!$G$6:$AB$12,17,FALSE),0) -> 146.6171204
D187: None | E187: None | F187: 0 | G187: Operator 1 | H187: 0 | I187: =IFERROR((VLOOKUP(D187,Equipment!$K$91:$L$97,2,FALSE)+VLOOKUP(Litter!E187,Equipment!$K$91:$L$97,2,FALSE))*H187,"Add equipment") -> 0 | J187: =F187*H187*$L$40 -> 0 | K187: 0 | L187: 0 | M187: =I187+K187 -> 0 | AB187: =X175 -> None | AC187: =IFERROR(VLOOKUP(AB187,Equipment!$G$6:$AB$12,12,FALSE)+VLOOKUP(AB187,Equipment!$G$6:$AB$12,15,FALSE)+VLOOKUP(AB187,Equipment!$G$6:$AB$12,17,FALSE)+VLOOKUP(AB187,Equipment!$G$6:$AB$12,18,FALSE)+VLOOKUP(AB187,Equipment!$G$6:$AB$12,19,FALSE),0) -> 0 | AD187: =IFERROR(VLOOKUP(AB187,Equipment!$G$6:$AB$12,17,FALSE),0) -> 0
D188: None | E188: None | F188: 0 | G188: Operator 1 | H188: 0 | I188: =IFERROR((VLOOKUP(D188,Equipment!$K$91:$L$97,2,FALSE)+VLOOKUP(Litter!E188,Equipment!$K$91:$L$97,2,FALSE))*H188,"Add equipment") -> 0 | J188: =F188*H188*$L$40 -> 0 | K188: 0 | L188: 0 | M188: =I188+K188 -> 0 | AB188: BBI Spreader | AC188: =IFERROR(VLOOKUP(AB188,Equipment!$G$6:$AB$12,12,FALSE)+VLOOKUP(AB188,Equipment!$G$6:$AB$12,15,FALSE)+VLOOKUP(AB188,Equipment!$G$6:$AB$12,17,FALSE)+VLOOKUP(AB188,Equipment!$G$6:$AB$12,18,FALSE)+VLOOKUP(AB188,Equipment!$G$6:$AB$12,19,FALSE),0) -> 0 | AD188: =IFERROR(VLOOKUP(AB188,Equipment!$G$6:$AB$12,17,FALSE),0) -> N/A
AB189: None | AC189: =IFERROR(VLOOKUP(AB189,Equipment!$G$6:$AB$12,12,FALSE)+VLOOKUP(AB189,Equipment!$G$6:$AB$12,15,FALSE)+VLOOKUP(AB189,Equipment!$G$6:$AB$12,17,FALSE)+VLOOKUP(AB189,Equipment!$G$6:$AB$12,18,FALSE)+VLOOKUP(AB189,Equipment!$G$6:$AB$12,19,FALSE),0) -> 0 | AD189: =IFERROR(VLOOKUP(AB189,Equipment!$G$6:$AB$12,17,FALSE),0) -> 0
H190: =H169 -> Time Cost (Hours) | I190: =I169 -> Equipment Operating Cost | J190: Fuel Cost | K190: =K169 -> Labor Cost | L190: =L169 -> Cost / Acre | M190: =M169 -> Total Cost | AB190: None | AC190: =IFERROR(VLOOKUP(AB190,Equipment!$G$6:$AB$12,12,FALSE)+VLOOKUP(AB190,Equipment!$G$6:$AB$12,15,FALSE)+VLOOKUP(AB190,Equipment!$G$6:$AB$12,17,FALSE)+VLOOKUP(AB190,Equipment!$G$6:$AB$12,18,FALSE)+VLOOKUP(AB190,Equipment!$G$6:$AB$12,19,FALSE),0) -> 0 | AD190: =IFERROR(VLOOKUP(AB190,Equipment!$G$6:$AB$12,17,FALSE),0) -> 0
D191: TOTAL | E191: Activity Costs | H191: =SUM(H171:H188) ->  | I191: =SUMIF(I171:I188,"<>#N/A") ->  | J191: =SUMIF(J171:J188,"<>#N/A") ->  | K191: =SUMIF(K171:K188,"<>#N/A") ->  | L191: =SUMIF(L171:L188,"<>#N/A") ->  | M191: =SUMIF(M171:M188,"<>#N/A") ->  | AB191: None | AC191: =IFERROR(VLOOKUP(AB191,Equipment!$G$6:$AB$12,12,FALSE)+VLOOKUP(AB191,Equipment!$G$6:$AB$12,15,FALSE)+VLOOKUP(AB191,Equipment!$G$6:$AB$12,17,FALSE)+VLOOKUP(AB191,Equipment!$G$6:$AB$12,18,FALSE)+VLOOKUP(AB191,Equipment!$G$6:$AB$12,19,FALSE),0) -> 0 | AD191: =IFERROR(VLOOKUP(AB191,Equipment!$G$6:$AB$12,17,FALSE),0) -> 0
AB192: =X180 -> None | AC192: =IFERROR(VLOOKUP(AB192,Equipment!$G$6:$AB$12,12,FALSE)+VLOOKUP(AB192,Equipment!$G$6:$AB$12,15,FALSE)+VLOOKUP(AB192,Equipment!$G$6:$AB$12,17,FALSE)+VLOOKUP(AB192,Equipment!$G$6:$AB$12,18,FALSE)+VLOOKUP(AB192,Equipment!$G$6:$AB$12,19,FALSE),0) -> 0 | AD192: =IFERROR(VLOOKUP(AB192,Equipment!$G$6:$AB$12,17,FALSE),0) -> 0

Sheet Fertilizer (hidden)
AJ3: Acreage Numbers | AL3: Cost of Litter Prices
B4: Commerical Fertilizer cost analysis | AG4: List of parameters | AJ4: 10 | AL4: 25
AJ5: 25 | AL5: 35
B6: Acres applying | C6: Tons of fertilizer needed | D6: Truckloads | F6: Total cost of fertilizer | G6: Added Charge | H6: Fertilizer + Application | J6: Diesel Fuel Price ($/gal) | K6: =Litter!$L$40 -> 2 | V6: Labor Cost | W6: Pay /hr. | AJ6: 50 | AL6: 45
B7: =+Litter!B7 -> 300 | C7: =(F14+G14+H14)*B7/2000 -> 24 | D7: =ROUNDUP(C7/35,0) -> 1 | F7: =SUM(F11:H11) -> 20893.96838 | G7: ='User Page'!F10 -> 0 | H7: =F7+G7*B7 -> 20893.96838 | J7: N price per lb. | K7: =K12/2000/0.46 -> 0.4354743083 | V7: =J17 -> Operator 1 | W7: =K17 -> 22 | AJ7: 100
J8: P price per lb. | K8: =K13/2000/0.46 -> 0.4966798419 | V8: =J18 -> Operator 2 | W8: =K18 -> 16.5 | AJ8: 200
B9: Application Rate (tons/ac.) | C9: Implement Capacity (tons) | D9: Implement Speed (acres/hr.) | F9: Urea needed (tons) | G9: Phosphorus needed (tons) | H9: Muriate of Potash needed (tons) | J9: K price per lb. | K9: =K14/2000/0.6 -> 0.3941818182 | V9: Operator 3 | W9: 11 | AJ9: 300
B10: =SUM(F10:H10)/B7 -> 0.1586956522 | C10: =+Litter!B34 -> 4 | D10: =+Litter!C34 -> 10 | F10: =(F14/0.46)*$B$7/2000 -> 19.56521739 | G10: =(G14/0.46)*$B$7/2000 -> 13.04347826 | H10: =(H14/0.6)*$B$7/2000 -> 15 | V10: Custom Activity | W10: 0 | AJ10: 400
F11: =K12*F10 -> 7838.537549 | G11: =K13*G10 -> 5960.158103 | H11: =K14*H10 -> 7095.272727 | K11: $/ton | AJ11: 500
B12: Refill needed every x minutes | C12: Refills needed | D12: Refill time (minutes) | J12: Price of Urea (46 - 0 - 0) | K12: ='User Page'!F6 -> 400.6363636 | AJ12: 1000
B13: =C10/B10/D10*60 -> 151.2328767 | C13: =ROUNDUP(B7*B10/C10,0) -> 12 | D13: =+Litter!D30 -> 60 | F13: N (lbs/acre) | G13: P (lbs/acre) | H13: K (lbs/acre) | J13: Price of Phosphorus (0 - 46 - 0) | K13: ='User Page'!F7 -> 456.9454545 | AJ13: 2000
F14: =+Litter!D14 -> 60 | G14: =+Litter!E14 -> 40 | H14: =+Litter!F14 -> 60 | J14: Price of Muriate of Potash (0 - 0 - 60) | K14: ='User Page'!F8 -> 473.0181818 | AU14: N | AV14: P | AW14: K
B15: Application Month(s) | C15: Suitable work days (35% probability of fewer days) | D15: Can I apply this month? | V15: Percent Probabilty of suitable days | AJ15: Week ending | AL15: Percentile probability of days suitable | AS15: Prices in $/cwt | AU15: Urea (46% N) | AV15: Phosphorus (46% P2O5) | AW15: Potash (60% K2O)
B16: =Litter!$J$17 -> April | C16: =Litter!$K$17 -> 4.033333333 | D16: =IF($F$17<=C16*10,"Yes","No") -> No | F16: Total Time to apply (hours) | G16: How many days (10 hour days) | J16: Labor Cost | K16: Pay /hr. | U16: Month | V16: 0.15 | W16: 0.35 | X16: 0.5 | Y16: 0.65 | Z16: 0.85 | AL16: 0.15 | AM16: 0.35 | AN16: 0.5 | AO16: 0.65 | AP16: 0.85 | AT16: 2009 | AU16: 16.29 | AV16: 15.35 | AW16: 26.1
B17: =Litter!$J$18 -> May | C17: =Litter!$K$18 -> 20.3 | D17: =IF($F$17<=C17*10,"Yes","No") -> Yes | F17: =(B7/D10)+(C13*(D13/60)) -> 42 | G17: =ROUNDUP(F17/10,0) -> 5 | J17: Operator 1 | K17: =Litter!E22 -> 22 | U17: April | V17: =Litter!AY6 -> 3.166666667 | W17: =Litter!AZ6 -> 4.033333333 | X17: =Litter!BA6 -> 4.633333333 | Y17: =Litter!BB6 -> 5.2 | Z17: =Litter!BC6 -> 6 | AJ17: 11-Apr | AL17: 2.7 | AM17: 3.6 | AN17: 4.3 | AO17: 4.9 | AP17: 5.9 | AT17: =AT16+1 -> 2010 | AU17: 19 | AV17: 22 | AW17: 23
B18: =Litter!$J$19 -> June | C18: =Litter!$K$19 -> 20.8 | D18: Yes | J18: Operator 2 | K18: =Litter!E23 -> 16.5 | U18: May | V18: =Litter!AY7 -> 15.7 | W18: =Litter!AZ7 -> 20.3 | X18: =Litter!BA7 -> 23.2 | Y18: =Litter!BB7 -> 26.2 | Z18: =Litter!BC7 -> 30.9 | AJ18: 18-Apr | AL18: 3.2 | AM18: 4.1 | AN18: 4.8 | AO18: 5.5 | AP18: 6.1 | AT18: =AT17+1 -> 2011 | AU18: 22.29 | AV18: 28.65 | AW18: 29.19
B19: =Litter!$J$20 -> Total Annual Suitable Days | C19: =Litter!$K$20 -> 144.3333333 | J19: Operator 3 | K19: =Litter!E24 -> 11 | U19: June | V19: =Litter!AY8 -> 14.9 | W19: =Litter!AZ8 -> 20.8 | X19: =Litter!BA8 -> 22.5 | Y19: =Litter!BB8 -> 23.7 | Z19: =Litter!BC8 -> 26 | AJ19: 25-Apr | AL19: 3.6 | AM19: 4.4 | AN19: 4.8 | AO19: 5.2 | AP19: 6 | AT19: =AT18+1 -> 2012 | AU19: 28.4 | AV19: 29.3 | AW19: 29.8
U20: July | V20: =Litter!AY9 -> 19.7 | W20: =Litter!AZ9 -> 22.9 | X20: =Litter!BA9 -> 24 | Y20: =Litter!BB9 -> 25.4 | Z20: =Litter!BC9 -> 27.6 | AJ20: 2-May | AL20: 2.6 | AM20: 3.5 | AN20: 4.1 | AO20: 4.7 | AP20: 5.8 | AT20: 2013 | AU20: 22.6 | AV20: 24 | AW20: 23.75
U21: August | V21: =Litter!AY10 -> 25.6 | W21: =Litter!AZ10 -> 29.6 | X21: =Litter!BA10 -> 31.3 | Y21: =Litter!BB10 -> 33.2 | Z21: =Litter!BC10 -> 35 | AJ21: 9-May | AL21: 3 | AM21: 3.9 | AN21: 4.4 | AO21: 5.1 | AP21: 6.1 | AT21: 2014 | AU21: 25.25 | AV21: 24.5 | AW21: 23.6
U22: September | V22: =Litter!AY11 -> 18.5 | W22: =Litter!AZ11 -> 22.5 | X22: =Litter!BA11 -> 23.8 | Y22: =Litter!BB11 -> 25.1 | Z22: =Litter!BC11 -> 27.6 | AJ22: 16-May | AL22: 3.2 | AM22: 4.2 | AN22: 4.8 | AO22: 5.4 | AP22: 6.4 | AT22: 2015 | AU22: 20.83 | AV22: 25 | AW22: 21.27
U23: October | V23: =Litter!AY12 -> 0 | W23: =Litter!AZ12 -> 19.9 | X23: =Litter!BA12 -> 25.7 | Y23: =Litter!BB12 -> 28.6 | Z23: =Litter!BC12 -> 30.8 | AJ23: 23-May | AL23: 3.6 | AM23: 4.6 | AN23: 5.1 | AO23: 5.8 | AP23: 6.6 | AT23: 2016 | AU23: 16.78 | AV23: 21.88 | AW23: 16.97
U24: November | V24: =Litter!AY13 -> 3.3 | W24: =Litter!AZ13 -> 4.3 | X24: =Litter!BA13 -> 4.9 | Y24: =Litter!BB13 -> 5.6 | Z24: =Litter!BC13 -> 6.3 | AJ24: 30-May | AL24: 3.3 | AM24: 4.1 | AN24: 4.8 | AO24: 5.2 | AP24: 6 | AT24: 2017 | AU24: 14.19 | AV24: 18.78 | AW24: 18.98
AJ25: 6-Jun | AL25: 3 | AM25: 4.8 | AN25: 5.2 | AO25: 5.7 | AP25: 6.3 | AT25: 2018 | AU25: 14.5 | AV25: 23.75 | AW25: 20
B26: Category | C26: Description | D26: Tractor Used | E26: Implement Used | F26: Fuel Consumption (GPH) | G26: Operator | H26: Time Cost (Hours) | I26: Equipment Operating Cost | J26: Fuel Cost | K26: Labor Cost | L26: Cost / Acre | M26: Total Cost | AJ26: 13-Jun | AL26: 3.7 | AM26: 5.4 | AN26: 5.8 | AO26: 6 | AP26: 6.5 | AT26: 2019 | AU26: 20.22 | AV26: 18.11 | AW26: 27.5
AA27: Tractor Asset costs | AC27: implement asset costs | AF27: TOTAL | AJ27: 20-Jun | AL27: 3.9 | AM27: 5.1 | AN27: 5.6 | AO27: 6 | AP27: 6.5 | AR27: 10 yr avg. (converted to tons) | AU27: =AVERAGE(AU16:AU26)*20 -> 400.6363636 | AV27: =AVERAGE(AV16:AV26)*20 -> 456.9454545 | AW27: 473.0181818
B28: Purchase | C28: Fertilizer Purchased | G28: Operator 1 | H28: 2 | I28: 0 | J28: 0 | K28: =VLOOKUP(G28,$V$7:$W$10,2,FALSE)*H28 -> 44 | L28: =M28/$B$7 -> 0.1466666667 | M28: =J28+I28+K28 -> 44 | AA28: =SUM(V32:V37) -> 33000 | AC28: =SUM(Y32:Y37) -> 0 | AF28: =AA28+AC28 -> 33000 | AJ28: 27-Jun | AL28: 4.3 | AM28: 5.5 | AN28: 5.9 | AO28: 6 | AP28: 6.7
AJ29: 4-Jul | AL29: 4.2 | AM29: 5.2 | AN29: 5.8 | AO29: 6.2 | AP29: 6.7 | AS29: Price per lb. | AU29: =AU27/100 -> 4.006363636 | AV29: =AV27/100 -> 4.569454545 | AW29: 4.730181818
AJ30: 11-Jul | AL30: 5 | AM30: 5.9 | AN30: 6 | AO30: 6.1 | AP30: 6.9 | AS30: Price of element per lb. | AU30: =AU29/0.46 -> 8.709486166 | AV30: =AV29/0.46 -> 9.933596838 | AW30: =AW29/0.6 -> 7.883636364
B31: Fertilizer | C31: Broadcast Supplement | D31: John Deere 5055e 4wd | E31: BBI Spreader | F31: 4 | G31: Operator 2 | H31: =F17 -> 42 | I31: =(VLOOKUP(D31,Equipment!$K$91:$L$97,2,FALSE)+VLOOKUP(E31,Equipment!$K$91:$L$97,2,FALSE))*H31 -> 300.2610147 | J31: =F31*H31*$K$6 -> 336 | K31: =VLOOKUP(G31,$V$7:$W$10,2,FALSE)*H31 -> 693 | L31: =M31/$B$7 -> 4.430870049 | M31: =J31+I31+K31 -> 1329.261015 | P31: Tractor List | Q31: hp | R31: Implement List | S31: hp | U31: Tractor List filtered | X31: Implement List filtered | AJ31: 18-Jul | AL31: 5.5 | AM31: 5.9 | AN31: 6.1 | AO31: 6.6 | AP31: 7
C32: Fertilizer material | L32: =M32/$B$7 -> 69.64656126 | M32: =$H$7 -> 20893.96838 | P32: =D31 -> John Deere 5055e 4wd | Q32: =IFERROR(VLOOKUP(P32,Equipment!$H$102:$I$108,2,FALSE),0) -> 55 | R32: =E31 -> BBI Spreader | S32: =IFERROR(VLOOKUP(R32,Equipment!$H$102:$I$108,2,FALSE),0) -> 45 | U32: =P32 -> John Deere 5055e 4wd | V32: =IFERROR(VLOOKUP(U32,Equipment!$G$6:$N$12,7,FALSE),0) -> 33000 | X32: =R32 -> BBI Spreader | Y32: =IFERROR(VLOOKUP(X32,Equipment!$G$6:$N$12,7,FALSE),0) -> N/A | AJ32: 25-Jul | AL32: 5 | AM32: 5.9 | AN32: 6.1 | AO32: 6.5 | AP32: 7
C33: Year 2 Supplement | D33: John Deere 5055e 4wd | E33: BBI Spreader | F33: 4 | G33: Operator 2 | H33: =H31 -> 42 | I33: =I31 -> 300.2610147 | J33: =J31 -> 336 | K33: =VLOOKUP(G33,$V$7:$W$10,2,FALSE)*H33 -> 693 | L33: =L31 -> 4.430870049 | M33: 1329.261015 | P33: =D33 -> John Deere 5055e 4wd | Q33: =IFERROR(VLOOKUP(P33,Equipment!$H$102:$I$108,2,FALSE),0) -> 55 | R33: =E33 -> BBI Spreader | S33: =IFERROR(VLOOKUP(R33,Equipment!$H$102:$I$108,2,FALSE),0) -> 45 | AB33: Annualized Equipment Cost (Dep., Opp. Cost, Ins., Taxes) | AC33: Repair & Maintenance | AJ33: 1-Aug | AL33: 4.8 | AM33: 5.8 | AN33: 6.1 | AO33: 6.5 | AP33: 7
C34: Year 2 Fertilizer cost | H34: 0 | I34: =I32 -> 0 | J34: =J32 -> 0 | K34: 0 | L34: 69.64656126 | M34: 20893.96838 | P34: =D38 -> None | Q34: =IFERROR(VLOOKUP(P34,Equipment!$H$102:$I$108,2,FALSE),0) -> 0 | R34: =E38 -> None | S34: =IFERROR(VLOOKUP(R34,Equipment!$H$102:$I$108,2,FALSE),0) -> 0 | AA34: =U32 -> John Deere 5055e 4wd | AB34: =IFERROR(VLOOKUP(AA34,Equipment!$G$6:$AB$12,12,FALSE)+VLOOKUP(AA34,Equipment!$G$6:$AB$12,15,FALSE)+VLOOKUP(AA34,Equipment!$G$6:$AB$12,17,FALSE)+VLOOKUP(AA34,Equipment!$G$6:$AB$12,18,FALSE)+VLOOKUP(AA34,Equipment!$G$6:$AB$12,19,FALSE),0) -> 2831.771482 | AC34: =IFERROR(VLOOKUP(AA34,Equipment!$G$6:$AB$12,17,FALSE),0) -> 7.149071779 | AJ34: 8-Aug | AL34: 5.4 | AM34: 5.9 | AN34: 6.1 | AO34: 6.5 | AP34: 7
P35: =D39 -> None | Q35: =IFERROR(VLOOKUP(P35,Equipment!$H$102:$I$108,2,FALSE),0) -> 0 | R35: =E39 -> None | S35: =IFERROR(VLOOKUP(R35,Equipment!$H$102:$I$108,2,FALSE),0) -> 0 | AA35: =U33 -> 0 | AB35: =IFERROR(VLOOKUP(AA35,Equipment!$G$6:$AB$12,12,FALSE)+VLOOKUP(AA35,Equipment!$G$6:$AB$12,15,FALSE)+VLOOKUP(AA35,Equipment!$G$6:$AB$12,17,FALSE)+VLOOKUP(AA35,Equipment!$G$6:$AB$12,18,FALSE)+VLOOKUP(AA35,Equipment!$G$6:$AB$12,19,FALSE),0) -> 0 | AC35: =IFERROR(VLOOKUP(AA35,Equipment!$G$6:$AB$12,17,FALSE),0) -> 0 | AJ35: 15-Aug | AL35: 5.1 | AM35: 6 | AN35: 6.3 | AO35: 6.8 | AP35: 7
P36: None | Q36: =IFERROR(VLOOKUP(P36,Equipment!$H$102:$I$108,2,FALSE),0) -> 0 | R36: None | S36: =IFERROR(VLOOKUP(R36,Equipment!$H$102:$I$108,2,FALSE),0) -> 0 | AA36: 0 | AB36: =IFERROR(VLOOKUP(AA36,Equipment!$G$6:$AB$12,12,FALSE)+VLOOKUP(AA36,Equipment!$G$6:$AB$12,15,FALSE)+VLOOKUP(AA36,Equipment!$G$6:$AB$12,17,FALSE)+VLOOKUP(AA36,Equipment!$G$6:$AB$12,18,FALSE)+VLOOKUP(AA36,Equipment!$G$6:$AB$12,19,FALSE),0) -> 0 | AC36: =IFERROR(VLOOKUP(AA36,Equipment!$G$6:$AB$12,17,FALSE),0) -> 0 | AJ36: 22-Aug | AL36: 5 | AM36: 6 | AN36: 6.6 | AO36: 6.8 | AP36: 7
D37: Tractor Used | P37: None | Q37: =IFERROR(VLOOKUP(P37,Equipment!$H$102:$I$108,2,FALSE),0) -> 0 | R37: None | S37: =IFERROR(VLOOKUP(R37,Equipment!$H$102:$I$108,2,FALSE),0) -> 0 | AA37: 0 | AB37: =IFERROR(VLOOKUP(AA37,Equipment!$G$6:$AB$12,12,FALSE)+VLOOKUP(AA37,Equipment!$G$6:$AB$12,15,FALSE)+VLOOKUP(AA37,Equipment!$G$6:$AB$12,17,FALSE)+VLOOKUP(AA37,Equipment!$G$6:$AB$12,18,FALSE)+VLOOKUP(AA37,Equipment!$G$6:$AB$12,19,FALSE),0) -> 0 | AC37: =IFERROR(VLOOKUP(AA37,Equipment!$G$6:$AB$12,17,FALSE),0) -> 0 | AJ37: 29-Aug | AL37: 5.3 | AM37: 5.9 | AN37: 6.2 | AO37: 6.6 | AP37: 7
B38: Additional user added activities | D38: None | E38: None | F38: 0 | G38: Operator 1 | H38: 0 | I38: =IFERROR((VLOOKUP(D38,Equipment!$K$91:$L$97,2,FALSE)+VLOOKUP(E38,Equipment!$K$91:$L$97,2,FALSE))*H38, "Add equipment") -> 0 | J38: =F38*H38*$K$6 -> 0 | K38: =VLOOKUP(G38,$V$7:$W$10,2,FALSE)*H38 -> 0 | L38: =M38/$B$7 -> 0 | M38: =I38+K38 -> 0 | AA38: 0 | AB38: =IFERROR(VLOOKUP(AA38,Equipment!$G$6:$AB$12,12,FALSE)+VLOOKUP(AA38,Equipment!$G$6:$AB$12,15,FALSE)+VLOOKUP(AA38,Equipment!$G$6:$AB$12,17,FALSE)+VLOOKUP(AA38,Equipment!$G$6:$AB$12,18,FALSE)+VLOOKUP(AA38,Equipment!$G$6:$AB$12,19,FALSE),0) -> 0 | AC38: =IFERROR(VLOOKUP(AA38,Equipment!$G$6:$AB$12,17,FALSE),0) -> 0 | AJ38: 5-Sep | AL38: 4.7 | AM38: 5.8 | AN38: 6.1 | AO38: 6.5 | AP38: 7
D39: None | E39: None | F39: 0 | G39: Operator 1 | H39: 0 | I39: =IFERROR((VLOOKUP(D39,Equipment!$K$91:$L$97,2,FALSE)+VLOOKUP(E39,Equipment!$K$91:$L$97,2,FALSE))*H39, "Add equipment") -> 0 | J39: =F39*H39*$K$6 -> 0 | K39: 0 | L39: =M39/$B$7 -> 0 | M39: =I39+K39 -> 0 | AA39: 0 | AB39: =IFERROR(VLOOKUP(AA39,Equipment!$G$6:$AB$12,12,FALSE)+VLOOKUP(AA39,Equipment!$G$6:$AB$12,15,FALSE)+VLOOKUP(AA39,Equipment!$G$6:$AB$12,17,FALSE)+VLOOKUP(AA39,Equipment!$G$6:$AB$12,18,FALSE)+VLOOKUP(AA39,Equipment!$G$6:$AB$12,19,FALSE),0) -> 0 | AC39: =IFERROR(VLOOKUP(AA39,Equipment!$G$6:$AB$12,17,FALSE),0) -> 0 | AJ39: 12-Sep | AL39: 4.8 | AM39: 5.7 | AN39: 6 | AO39: 6.2 | AP39: 6.9 | AU39: =400/20 -> 20
D40: None | E40: None | F40: 0 | G40: Operator 1 | H40: 0 | I40: =IFERROR((VLOOKUP(D40,Equipment!$K$91:$L$97,2,FALSE)+VLOOKUP(E40,Equipment!$K$91:$L$97,2,FALSE))*H40, "Add equipment") -> 0 | J40: =F40*H40*$K$6 -> 0 | K40: 0 | L40: =M40/$B$7 -> 0 | M40: =I40+K40 -> 0 | AA40: =X32 -> BBI Spreader | AB40: =IFERROR(VLOOKUP(AA40,Equipment!$G$6:$AB$12,12,FALSE)+VLOOKUP(AA40,Equipment!$G$6:$AB$12,15,FALSE)+VLOOKUP(AA40,Equipment!$G$6:$AB$12,17,FALSE)+VLOOKUP(AA40,Equipment!$G$6:$AB$12,18,FALSE)+VLOOKUP(AA40,Equipment!$G$6:$AB$12,19,FALSE),0) -> 0 | AC40: =IFERROR(VLOOKUP(AA40,Equipment!$G$6:$AB$12,17,FALSE),0) -> N/A | AJ40: 19-Sep | AL40: 4 | AM40: 5.2 | AN40: 5.7 | AO40: 6.2 | AP40: 6.9
D41: None | E41: None | F41: 0 | G41: Operator 1 | H41: 0 | I41: =IFERROR((VLOOKUP(D41,Equipment!$K$91:$L$97,2,FALSE)+VLOOKUP(E41,Equipment!$K$91:$L$97,2,FALSE))*H41, "Add equipment") -> 0 | J41: =F41*H41*$K$6 -> 0 | K41: 0 | L41: =M41/$B$7 -> 0 | M41: =I41+K41 -> 0 | AA41: =X33 -> 0 | AB41: =IFERROR(VLOOKUP(AA41,Equipment!$G$6:$AB$12,12,FALSE)+VLOOKUP(AA41,Equipment!$G$6:$AB$12,15,FALSE)+VLOOKUP(AA41,Equipment!$G$6:$AB$12,17,FALSE)+VLOOKUP(AA41,Equipment!$G$6:$AB$12,18,FALSE)+VLOOKUP(AA41,Equipment!$G$6:$AB$12,19,FALSE),0) -> 0 | AC41: =IFERROR(VLOOKUP(AA41,Equipment!$G$6:$AB$12,17,FALSE),0) -> 0 | AJ41: 26-Sep | AL41: 5 | AM41: 5.8 | AN41: 6 | AO41: 6.2 | AP41: 6.8
AA42: 0 | AB42: =IFERROR(VLOOKUP(AA42,Equipment!$G$6:$AB$12,12,FALSE)+VLOOKUP(AA42,Equipment!$G$6:$AB$12,15,FALSE)+VLOOKUP(AA42,Equipment!$G$6:$AB$12,17,FALSE)+VLOOKUP(AA42,Equipment!$G$6:$AB$12,18,FALSE)+VLOOKUP(AA42,Equipment!$G$6:$AB$12,19,FALSE),0) -> 0 | AC42: =IFERROR(VLOOKUP(AA42,Equipment!$G$6:$AB$12,17,FALSE),0) -> 0 | AJ42: 3-Oct | AL42: 5 | AM42: 5.9 | AN42: 6.1 | AO42: 6.5 | AP42: 7
H43: =H26 -> Time Cost (Hours) | I43: =I26 -> Equipment Operating Cost | J43: Fuel Cost | K43: =K26 -> Labor Cost | L43: =L26 -> Cost / Acre | M43: =M26 -> Total Cost | AA43: 0 | AB43: =IFERROR(VLOOKUP(AA43,Equipment!$G$6:$AB$12,12,FALSE)+VLOOKUP(AA43,Equipment!$G$6:$AB$12,15,FALSE)+VLOOKUP(AA43,Equipment!$G$6:$AB$12,17,FALSE)+VLOOKUP(AA43,Equipment!$G$6:$AB$12,18,FALSE)+VLOOKUP(AA43,Equipment!$G$6:$AB$12,19,FALSE),0) -> 0 | AC43: =IFERROR(VLOOKUP(AA43,Equipment!$G$6:$AB$12,17,FALSE),0) -> 0 | AJ43: 10-Oct | AL43: 4.3 | AM43: 5.4 | AN43: 6 | AO43: 6.5 | AP43: 7
D44: TOTAL | E44: Activity Costs | H44: =SUM(H28:H41) -> 86 | I44: =SUMIF(I28:I41,"<>#N/A") -> 600.5220294 | J44: =SUMIF(J28:J41,"<>#N/A") -> 672 | K44: =SUMIF(K28:K41,"<>#N/A") -> 1430 | L44: =SUMIF(L28:L41,"<>#N/A") -> 148.3015293 | M44: =SUMIF(M28:M41,"<>#N/A") -> 44490.45879 | AA44: =X36 -> 0 | AB44: =IFERROR(VLOOKUP(AA44,Equipment!$G$6:$AB$12,12,FALSE)+VLOOKUP(AA44,Equipment!$G$6:$AB$12,15,FALSE)+VLOOKUP(AA44,Equipment!$G$6:$AB$12,17,FALSE)+VLOOKUP(AA44,Equipment!$G$6:$AB$12,18,FALSE)+VLOOKUP(AA44,Equipment!$G$6:$AB$12,19,FALSE),0) -> 0 | AC44: =IFERROR(VLOOKUP(AA44,Equipment!$G$6:$AB$12,17,FALSE),0) -> 0 | AJ44: 17-Oct | AL44: 4 | AM44: 5.2 | AN44: 5.8 | AO44: 6 | AP44: 6.8
AA45: =X37 -> 0 | AB45: =IFERROR(VLOOKUP(AA45,Equipment!$G$6:$AB$12,12,FALSE)+VLOOKUP(AA45,Equipment!$G$6:$AB$12,15,FALSE)+VLOOKUP(AA45,Equipment!$G$6:$AB$12,17,FALSE)+VLOOKUP(AA45,Equipment!$G$6:$AB$12,18,FALSE)+VLOOKUP(AA45,Equipment!$G$6:$AB$12,19,FALSE),0) -> 0 | AC45: =IFERROR(VLOOKUP(AA45,Equipment!$G$6:$AB$12,18,FALSE),0) -> 0
B55: Commerical Fertilizer cost analysis | AG55: List of parameters | AJ55: 10 | AL55: 25
AJ56: 25 | AL56: 35
B57: Acres applying | C57: Tons of fertilizer needed | D57: Truckloads | F57: Total cost of fertilizer | G57: Misc. Fees | H57: Fertilizer + Application | J57: Diesel Fuel Price ($/gal) | K57: =Litter!$L$40 -> 2 | V57: Labor Cost | W57: Pay /hr. | AJ57: 50 | AL57: 45
B58: =+Litter!B58 -> 0 | C58: =(F65+G65+H65)*B58/2000 ->  | D58: =ROUNDUP(C58/35,0) ->  | F58: =SUM(F62:H62) ->  | G58: ='User Page'!F60 -> 0 | H58: =F58+G58 ->  | J58: N price per lb. | K58: =K63/2000/0.46 -> 0 | V58: =J68 -> Operator 1 | W58: =K68 -> 0 | AJ58: 100
J59: P price per lb. | K59: =K64/2000/0.46 -> 0 | V59: =J69 -> Operator 2 | W59: =K69 -> 0 | AJ59: 200
B60: Application Rate (tons/ac.) | C60: Implement Capacity (tons) | D60: Implement Speed (acres/hr.) | F60: Urea needed (tons) | G60: Phosphorus needed (tons) | H60: Muriate of Potash needed (tons) | J60: K price per lb. | K60: =K65/2000/0.6 -> 0 | V60: Operator 3 | W60: 0 | AJ60: 300
B61: 1 | C61: 4 | D61: 10 | F61: =(F65/0.46)*$B$7/2000 ->  | G61: =(G65/0.46)*$B$7/2000 -> 0 | H61: =(H65/0.6)*$B$7/2000 -> 0 | V61: Custom Activity | W61: 0 | AJ61: 400
F62: =K63*F61 ->  | G62: =K64*G61 -> 0 | H62: =K65*H61 -> 0 | K62: $/ton | AJ62: 500
B63: Refill needed every x minutes | C63: Refills needed | D63: Refill time (minutes) | J63: Price of Urea (46 - 0 - 0) | K63: ='User Page'!F55 -> 0 | AJ63: 1000
B64: =C61/B61/D61*60 -> 24 | C64: =B58*B61/C61 -> 0 | D64: 10 | F64: N (lbs/acre) | G64: P (lbs/acre) | H64: K (lbs/acre) | J64: Price of Phosphorus (0 - 46 - 0) | K64: ='User Page'!F56 -> 0 | AJ64: 2000
F65: =+Litter!D66 -> Tractor Used | G65: =+Litter!E66 -> 0 | H65: =+Litter!F66 -> 0 | J65: Price of Muriate of Potash (0 - 0 - 60) | K65: ='User Page'!F57 -> 0 | AU65: N | AV65: P | AW65: K
B66: Application Month(s) | C66: Suitable work days (35% probability) | D66: Can I apply this month? | V66: Percent Probabilty of suitable days | AJ66: Week ending | AL66: Percentile probability of days suitable | AS66: Prices in $/cwt | AU66: Urea (46% N) | AV66: Phosphorus (46% P2O5) | AW66: Potash (60% K2O)
B67: =Litter!$J$17 -> April | C67: =Litter!$K$17 -> 4.033333333 | D67: =Litter!$L$17 -> No | F67: Total Time to apply (hours) | G67: How many days (10 hour work days) | J67: Labor Cost | K67: Pay /hr. | U67: Month | V67: 0.15 | W67: 0.35 | X67: 0.5 | Y67: 0.65 | Z67: 0.85 | AL67: 0.15 | AM67: 0.35 | AN67: 0.5 | AO67: 0.65 | AP67: 0.85 | AT67: 2009 | AU67: 16.29 | AV67: 15.35 | AW67: 26.1
B68: =Litter!$J$18 -> May | C68: =Litter!$K$18 -> 20.3 | D68: =Litter!$L$18 -> Yes | F68: =(B58/D61)+(C64*(D64/60)) -> 0 | G68: =ROUNDUP(F68/10,0) -> 0 | J68: Operator 1 | K68: =Litter!E74 -> 0 | U68: April | V68: =Litter!AY57 -> 0 | W68: =Litter!AZ57 -> 0 | X68: =Litter!BA57 -> 0 | Y68: =Litter!BB57 -> 0 | Z68: =Litter!BC57 -> 0 | AJ68: 11-Apr | AL68: 2.7 | AM68: 3.6 | AN68: 4.3 | AO68: 4.9 | AP68: 5.9 | AT68: =AT67+1 -> 2010 | AU68: 19 | AV68: 22 | AW68: 23
B69: =Litter!$J$19 -> June | C69: =Litter!$K$19 -> 20.8 | D69: =Litter!$L$19 -> Yes | J69: Operator 2 | K69: =Litter!E75 -> 0 | U69: May | V69: =Litter!AY58 -> 0 | W69: =Litter!AZ58 -> 0 | X69: =Litter!BA58 -> 0 | Y69: =Litter!BB58 -> 0 | Z69: =Litter!BC58 -> 0 | AJ69: 18-Apr | AL69: 3.2 | AM69: 4.1 | AN69: 4.8 | AO69: 5.5 | AP69: 6.1 | AT69: =AT68+1 -> 2011 | AU69: 22.29 | AV69: 28.65 | AW69: 29.19
B70: =Litter!$J$20 -> Total Annual Suitable Days | C70: =Litter!$K$20 -> 144.3333333 | D70: =Litter!$L$20 -> 0 | J70: Operator 3 | K70: =Litter!E76 -> 0 | U70: June | V70: =Litter!AY59 -> 0 | W70: =Litter!AZ59 -> 0 | X70: =Litter!BA59 -> 0 | Y70: =Litter!BB59 -> 0 | Z70: =Litter!BC59 -> 0 | AJ70: 25-Apr | AL70: 3.6 | AM70: 4.4 | AN70: 4.8 | AO70: 5.2 | AP70: 6 | AT70: =AT69+1 -> 2012 | AU70: 28.4 | AV70: 29.3 | AW70: 29.8
U71: July | V71: =Litter!AY60 -> 0 | W71: =Litter!AZ60 -> 0 | X71: =Litter!BA60 -> 0 | Y71: =Litter!BB60 -> 0 | Z71: =Litter!BC60 -> 0 | AJ71: 2-May | AL71: 2.6 | AM71: 3.5 | AN71: 4.1 | AO71: 4.7 | AP71: 5.8 | AT71: 2013 | AU71: 22.6 | AV71: 24 | AW71: 23.75
U72: August | V72: =Litter!AY61 -> 0 | W72: =Litter!AZ61 -> 0 | X72: =Litter!BA61 -> 0 | Y72: =Litter!BB61 -> 0 | Z72: =Litter!BC61 -> 0 | AJ72: 9-May | AL72: 3 | AM72: 3.9 | AN72: 4.4 | AO72: 5.1 | AP72: 6.1 | AT72: 2014 | AU72: 25.25 | AV72: 24.5 | AW72: 23.6
U73: September | V73: =Litter!AY62 -> 0 | W73: =Litter!AZ62 -> 0 | X73: =Litter!BA62 -> 0 | Y73: =Litter!BB62 -> 0 | Z73: =Litter!BC62 -> 0 | AJ73: 16-May | AL73: 3.2 | AM73: 4.2 | AN73: 4.8 | AO73: 5.4 | AP73: 6.4 | AT73: 2015 | AU73: 20.83 | AV73: 25 | AW73: 21.27
U74: October | V74: =Litter!AY63 -> 0 | W74: =Litter!AZ63 -> 0 | X74: =Litter!BA63 -> 0 | Y74: =Litter!BB63 -> 0 | Z74: =Litter!BC63 -> 0 | AJ74: 23-May | AL74: 3.6 | AM74: 4.6 | AN74: 5.1 | AO74: 5.8 | AP74: 6.6 | AT74: 2016 | AU74: 16.78 | AV74: 21.88 | AW74: 16.97
U75: November | V75: =Litter!AY65 -> 0 | W75: =Litter!AZ65 -> 0 | X75: =Litter!BA65 -> 0 | Y75: =Litter!BB65 -> 0 | Z75: =Litter!BC65 -> 0 | AJ75: 30-May | AL75: 3.3 | AM75: 4.1 | AN75: 4.8 | AO75: 5.2 | AP75: 6 | AT75: 2017 | AU75: 14.19 | AV75: 18.78 | AW75: 18.98
AJ76: 6-Jun | AL76: 3 | AM76: 4.8 | AN76: 5.2 | AO76: 5.7 | AP76: 6.3 | AT76: 2018 | AU76: 14.5 | AV76: 23.75 | AW76: 20
B77: Category | C77: Description | D77: Tractor Used | E77: Implement Used | F77: Fuel Consumption (GPH) | G77: Operator | H77: Time Cost (Hours) | I77: Equipment Operating Cost | J77: Fuel Cost | K77: Labor Cost | L77: Cost / Acre | M77: Total Cost | AJ77: 13-Jun | AL77: 3.7 | AM77: 5.4 | AN77: 5.8 | AO77: 6 | AP77: 6.5 | AT77: 2019 | AU77: 20.22 | AV77: 18.11 | AW77: 27.5
AA78: Tractor Asset costs | AC78: implement asset costs | AF78: TOTAL | AJ78: 20-Jun | AL78: 3.9 | AM78: 5.1 | AN78: 5.6 | AO78: 6 | AP78: 6.5 | AR78: 10 yr avg. (converted to tons) | AU78: =AVERAGE(AU67:AU77)*20 -> 400.6363636 | AV78: =AVERAGE(AV67:AV77)*20 -> 456.9454545 | AW78: 473.0181818
B79: Purchase | C79: Fertilizer Purchased | G79: Operator 1 | H79: 2 | I79: 0 | J79: 0 | K79: =VLOOKUP(G79,$V$7:$W$10,2,FALSE)*H79 -> 44 | L79: =M79/$B$7 -> 0.1466666667 | M79: =J79+I79+K79 -> 44 | AA79: =SUM(V83:V88) -> 66000 | AC79: =SUM(Y83:Y88) -> 0 | AF79: =AA79+AC79 -> 66000 | AJ79: 27-Jun | AL79: 4.3 | AM79: 5.5 | AN79: 5.9 | AO79: 6 | AP79: 6.7
L80: =M80/$B$7 -> 0 | AJ80: 4-Jul | AL80: 4.2 | AM80: 5.2 | AN80: 5.8 | AO80: 6.2 | AP80: 6.7 | AS80: Price per lb. | AU80: =AU78/100 -> 4.006363636 | AV80: =AV78/100 -> 4.569454545 | AW80: 4.730181818
AJ81: 11-Jul | AL81: 5 | AM81: 5.9 | AN81: 6 | AO81: 6.1 | AP81: 6.9 | AS81: Price of element per lb. | AU81: =AU80/0.46 -> 8.709486166 | AV81: =AV80/0.46 -> 9.933596838 | AW81: =AW80/0.6 -> 7.883636364
B82: Supplemental Fertilizer Cost | C82: Broadcast Supplement | D82: John Deere 5055e 4wd | E82: BBI Spreader | F82: 4 | G82: Operator 2 | H82: =F68 -> 0 | I82: =(VLOOKUP(D82,Equipment!$K$91:$L$97,2,FALSE)+VLOOKUP(E82,Equipment!$K$91:$L$97,2,FALSE))*H82 -> 0 | J82: =F82*H82*$K$6 -> 0 | K82: =VLOOKUP(G82,$V$7:$W$10,2,FALSE)*H82 -> 0 | L82: =M82/$B$7 -> 0 | M82: =J82+I82+K82 -> 0 | P82: Tractor List | Q82: hp | R82: Implement List | S82: hp | U82: Tractor List filtered | X82: Implement List filtered | AJ82: 18-Jul | AL82: 5.5 | AM82: 5.9 | AN82: 6.1 | AO82: 6.6 | AP82: 7
C83: Fertilizer material | H83: 0 | I83: 0 | J83: 0 | K83: 0 | L83: =M83/$B$7 -> 69.64656126 | M83: =$H$7 -> 20893.96838 | P83: =D82 -> John Deere 5055e 4wd | Q83: =IFERROR(VLOOKUP(P83,Equipment!$H$102:$I$108,2,FALSE),0) -> 55 | R83: =E82 -> BBI Spreader | S83: =IFERROR(VLOOKUP(R83,Equipment!$H$102:$I$108,2,FALSE),0) -> 45 | U83: =P83 -> John Deere 5055e 4wd | V83: =IFERROR(VLOOKUP(U83,Equipment!$G$6:$N$12,7,FALSE),0) -> 33000 | X83: =R83 -> BBI Spreader | Y83: =IFERROR(VLOOKUP(X83,Equipment!$G$6:$N$12,7,FALSE),0) -> N/A | AJ83: 25-Jul | AL83: 5 | AM83: 5.9 | AN83: 6.1 | AO83: 6.5 | AP83: 7
C84: Year 2 Supplement | D84: John Deere 5055e 4wd | E84: BBI Spreader | F84: 4 | G84: Operator 2 | H84: =H82 -> 0 | I84: =I82 -> 0 | J84: =J82 -> 0 | K84: =VLOOKUP(G84,$V$7:$W$10,2,FALSE)*H84 -> 0 | L84: =L82 -> 0 | M84: 0 | P84: =D84 -> John Deere 5055e 4wd | Q84: =IFERROR(VLOOKUP(P84,Equipment!$H$102:$I$108,2,FALSE),0) -> 55 | R84: =E84 -> BBI Spreader | S84: =IFERROR(VLOOKUP(R84,Equipment!$H$102:$I$108,2,FALSE),0) -> 45 | U84: =P84 -> John Deere 5055e 4wd | V84: =IFERROR(VLOOKUP(U84,Equipment!$G$6:$N$12,7,FALSE),0) -> 33000 | X84: =R84 -> BBI Spreader | Y84: =IFERROR(VLOOKUP(X84,Equipment!$G$6:$N$12,7,FALSE),0) -> N/A | AB84: Annualized Equipment Cost (Dep., Opp. Cost, Ins., Taxes) | AC84: Repair & Maintenance | AJ84: 1-Aug | AL84: 4.8 | AM84: 5.8 | AN84: 6.1 | AO84: 6.5 | AP84: 7
C85: Year 2 Fertilizer cost | H85: 0 | I85: =I83 -> 0 | J85: =J83 -> 0 | K85: 0 | L85: 69.64656126 | M85: 20893.96838 | P85: =D89 -> None | Q85: =IFERROR(VLOOKUP(P85,Equipment!$H$102:$I$108,2,FALSE),0) -> 0 | R85: =E89 -> None | S85: =IFERROR(VLOOKUP(R85,Equipment!$H$102:$I$108,2,FALSE),0) -> 0 | U85: None | V85: =IFERROR(VLOOKUP(U85,Equipment!$G$6:$N$12,7,FALSE),0) -> 0 | X85: None | Y85: =IFERROR(VLOOKUP(X85,Equipment!$G$6:$N$12,7,FALSE),0) -> 0 | AA85: =U83 -> John Deere 5055e 4wd | AB85: =IFERROR(VLOOKUP(AA85,Equipment!$G$6:$AB$12,12,FALSE)+VLOOKUP(AA85,Equipment!$G$6:$AB$12,15,FALSE)+VLOOKUP(AA85,Equipment!$G$6:$AB$12,17,FALSE)+VLOOKUP(AA85,Equipment!$G$6:$AB$12,18,FALSE)+VLOOKUP(AA85,Equipment!$G$6:$AB$12,19,FALSE),0) -> 2831.771482 | AC85: =IFERROR(VLOOKUP(AA85,Equipment!$G$6:$AB$12,17,FALSE),0) -> 7.149071779 | AJ85: 8-Aug | AL85: 5.4 | AM85: 5.9 | AN85: 6.1 | AO85: 6.5 | AP85: 7
P86: =D90 -> None | Q86: =IFERROR(VLOOKUP(P86,Equipment!$H$102:$I$108,2,FALSE),0) -> 0 | R86: =E90 -> None | S86: =IFERROR(VLOOKUP(R86,Equipment!$H$102:$I$108,2,FALSE),0) -> 0 | U86: None | V86: =IFERROR(VLOOKUP(U86,Equipment!$G$6:$N$12,7,FALSE),0) -> 0 | X86: None | Y86: =IFERROR(VLOOKUP(X86,Equipment!$G$6:$N$12,7,FALSE),0) -> 0 | AA86: =U84 -> John Deere 5055e 4wd | AB86: =IFERROR(VLOOKUP(AA86,Equipment!$G$6:$AB$12,12,FALSE)+VLOOKUP(AA86,Equipment!$G$6:$AB$12,15,FALSE)+VLOOKUP(AA86,Equipment!$G$6:$AB$12,17,FALSE)+VLOOKUP(AA86,Equipment!$G$6:$AB$12,18,FALSE)+VLOOKUP(AA86,Equipment!$G$6:$AB$12,19,FALSE),0) -> 2831.771482 | AC86: =IFERROR(VLOOKUP(AA86,Equipment!$G$6:$AB$12,17,FALSE),0) -> 7.149071779 | AJ86: 15-Aug | AL86: 5.1 | AM86: 6 | AN86: 6.3 | AO86: 6.8 | AP86: 7
P87: None | Q87: =IFERROR(VLOOKUP(P87,Equipment!$H$102:$I$108,2,FALSE),0) -> 0 | R87: None | S87: =IFERROR(VLOOKUP(R87,Equipment!$H$102:$I$108,2,FALSE),0) -> 0 | U87: None | V87: =IFERROR(VLOOKUP(U87,Equipment!$G$6:$N$12,7,FALSE),0) -> 0 | X87: None | Y87: =IFERROR(VLOOKUP(X87,Equipment!$G$6:$N$12,7,FALSE),0) -> 0 | AA87: None | AB87: =IFERROR(VLOOKUP(AA87,Equipment!$G$6:$AB$12,12,FALSE)+VLOOKUP(AA87,Equipment!$G$6:$AB$12,15,FALSE)+VLOOKUP(AA87,Equipment!$G$6:$AB$12,17,FALSE)+VLOOKUP(AA87,Equipment!$G$6:$AB$12,18,FALSE)+VLOOKUP(AA87,Equipment!$G$6:$AB$12,19,FALSE),0) -> 0 | AC87: =IFERROR(VLOOKUP(AA87,Equipment!$G$6:$AB$12,17,FALSE),0) -> 0 | AJ87: 22-Aug | AL87: 5 | AM87: 6 | AN87: 6.6 | AO87: 6.8 | AP87: 7
D88: Tractor Used | P88: None | Q88: =IFERROR(VLOOKUP(P88,Equipment!$H$102:$I$108,2,FALSE),0) -> 0 | R88: None | S88: =IFERROR(VLOOKUP(R88,Equipment!$H$102:$I$108,2,FALSE),0) -> 0 | U88: None | V88: =IFERROR(VLOOKUP(U88,Equipment!$G$6:$N$12,7,FALSE),0) -> 0 | X88: None | Y88: =IFERROR(VLOOKUP(X88,Equipment!$G$6:$N$12,7,FALSE),0) -> 0 | AA88: None | AB88: =IFERROR(VLOOKUP(AA88,Equipment!$G$6:$AB$12,12,FALSE)+VLOOKUP(AA88,Equipment!$G$6:$AB$12,15,FALSE)+VLOOKUP(AA88,Equipment!$G$6:$AB$12,17,FALSE)+VLOOKUP(AA88,Equipment!$G$6:$AB$12,18,FALSE)+VLOOKUP(AA88,Equipment!$G$6:$AB$12,19,FALSE),0) -> 0 | AC88: =IFERROR(VLOOKUP(AA88,Equipment!$G$6:$AB$12,17,FALSE),0) -> 0 | AJ88: 29-Aug | AL88: 5.3 | AM88: 5.9 | AN88: 6.2 | AO88: 6.6 | AP88: 7
B89: Additional user added activities | D89: None | E89: None | F89: 0 | G89: Operator 1 | H89: 0 | I89: =IFERROR((VLOOKUP(D89,Equipment!$K$91:$L$97,2,FALSE)+VLOOKUP(E89,Equipment!$K$91:$L$97,2,FALSE))*H89, "Add equipment") -> 0 | J89: =F89*H89*$K$6 -> 0 | K89: =VLOOKUP(G89,$V$7:$W$10,2,FALSE)*H89 -> 0 | L89: =M89/$B$7 -> 0 | M89: =I89+K89 -> 0 | AA89: None | AB89: =IFERROR(VLOOKUP(AA89,Equipment!$G$6:$AB$12,12,FALSE)+VLOOKUP(AA89,Equipment!$G$6:$AB$12,15,FALSE)+VLOOKUP(AA89,Equipment!$G$6:$AB$12,17,FALSE)+VLOOKUP(AA89,Equipment!$G$6:$AB$12,18,FALSE)+VLOOKUP(AA89,Equipment!$G$6:$AB$12,19,FALSE),0) -> 0 | AC89: =IFERROR(VLOOKUP(AA89,Equipment!$G$6:$AB$12,17,FALSE),0) -> 0 | AJ89: 5-Sep | AL89: 4.7 | AM89: 5.8 | AN89: 6.1 | AO89: 6.5 | AP89: 7
D90: None | E90: None | F90: 0 | G90: Operator 1 | H90: 0 | I90: =IFERROR((VLOOKUP(D90,Equipment!$K$91:$L$97,2,FALSE)+VLOOKUP(E90,Equipment!$K$91:$L$97,2,FALSE))*H90, "Add equipment") -> 0 | J90: =F90*H90*$K$6 -> 0 | K90: 0 | L90: =M90/$B$7 -> 0 | M90: =I90+K90 -> 0 | AA90: None | AB90: =IFERROR(VLOOKUP(AA90,Equipment!$G$6:$AB$12,12,FALSE)+VLOOKUP(AA90,Equipment!$G$6:$AB$12,15,FALSE)+VLOOKUP(AA90,Equipment!$G$6:$AB$12,17,FALSE)+VLOOKUP(AA90,Equipment!$G$6:$AB$12,18,FALSE)+VLOOKUP(AA90,Equipment!$G$6:$AB$12,19,FALSE),0) -> 0 | AC90: =IFERROR(VLOOKUP(AA90,Equipment!$G$6:$AB$12,17,FALSE),0) -> 0 | AJ90: 12-Sep | AL90: 4.8 | AM90: 5.7 | AN90: 6 | AO90: 6.2 | AP90: 6.9 | AU90: =400/20 -> 20
D91: None | E91: None | F91: 0 | G91: Operator 1 | H91: 0 | I91: =IFERROR((VLOOKUP(D91,Equipment!$K$91:$L$97,2,FALSE)+VLOOKUP(E91,Equipment!$K$91:$L$97,2,FALSE))*H91, "Add equipment") -> 0 | J91: =F91*H91*$K$6 -> 0 | K91: 0 | L91: =M91/$B$7 -> 0 | M91: =I91+K91 -> 0 | AA91: =X83 -> BBI Spreader | AB91: =IFERROR(VLOOKUP(AA91,Equipment!$G$6:$AB$12,12,FALSE)+VLOOKUP(AA91,Equipment!$G$6:$AB$12,15,FALSE)+VLOOKUP(AA91,Equipment!$G$6:$AB$12,17,FALSE)+VLOOKUP(AA91,Equipment!$G$6:$AB$12,18,FALSE)+VLOOKUP(AA91,Equipment!$G$6:$AB$12,19,FALSE),0) -> 0 | AC91: =IFERROR(VLOOKUP(AA91,Equipment!$G$6:$AB$12,17,FALSE),0) -> N/A | AJ91: 19-Sep | AL91: 4 | AM91: 5.2 | AN91: 5.7 | AO91: 6.2 | AP91: 6.9
D92: None | E92: None | F92: 0 | G92: Operator 1 | H92: 0 | I92: =IFERROR((VLOOKUP(D92,Equipment!$K$91:$L$97,2,FALSE)+VLOOKUP(E92,Equipment!$K$91:$L$97,2,FALSE))*H92, "Add equipment") -> 0 | J92: =F92*H92*$K$6 -> 0 | K92: 0 | L92: =M92/$B$7 -> 0 | M92: =I92+K92 -> 0 | AA92: =X84 -> BBI Spreader | AB92: =IFERROR(VLOOKUP(AA92,Equipment!$G$6:$AB$12,12,FALSE)+VLOOKUP(AA92,Equipment!$G$6:$AB$12,15,FALSE)+VLOOKUP(AA92,Equipment!$G$6:$AB$12,17,FALSE)+VLOOKUP(AA92,Equipment!$G$6:$AB$12,18,FALSE)+VLOOKUP(AA92,Equipment!$G$6:$AB$12,19,FALSE),0) -> 0 | AC92: =IFERROR(VLOOKUP(AA92,Equipment!$G$6:$AB$12,17,FALSE),0) -> N/A | AJ92: 26-Sep | AL92: 5 | AM92: 5.8 | AN92: 6 | AO92: 6.2 | AP92: 6.8
AA93: None | AB93: =IFERROR(VLOOKUP(AA93,Equipment!$G$6:$AB$12,12,FALSE)+VLOOKUP(AA93,Equipment!$G$6:$AB$12,15,FALSE)+VLOOKUP(AA93,Equipment!$G$6:$AB$12,17,FALSE)+VLOOKUP(AA93,Equipment!$G$6:$AB$12,18,FALSE)+VLOOKUP(AA93,Equipment!$G$6:$AB$12,19,FALSE),0) -> 0 | AC93: =IFERROR(VLOOKUP(AA93,Equipment!$G$6:$AB$12,17,FALSE),0) -> 0 | AJ93: 3-Oct | AL93: 5 | AM93: 5.9 | AN93: 6.1 | AO93: 6.5 | AP93: 7
H94: =H77 -> Time Cost (Hours) | I94: =I77 -> Equipment Operating Cost | J94: Fuel Cost | K94: =K77 -> Labor Cost | L94: =L77 -> Cost / Acre | M94: =M77 -> Total Cost | AA94: None | AB94: =IFERROR(VLOOKUP(AA94,Equipment!$G$6:$AB$12,12,FALSE)+VLOOKUP(AA94,Equipment!$G$6:$AB$12,15,FALSE)+VLOOKUP(AA94,Equipment!$G$6:$AB$12,17,FALSE)+VLOOKUP(AA94,Equipment!$G$6:$AB$12,18,FALSE)+VLOOKUP(AA94,Equipment!$G$6:$AB$12,19,FALSE),0) -> 0 | AC94: =IFERROR(VLOOKUP(AA94,Equipment!$G$6:$AB$12,17,FALSE),0) -> 0 | AJ94: 10-Oct | AL94: 4.3 | AM94: 5.4 | AN94: 6 | AO94: 6.5 | AP94: 7
D95: TOTAL | E95: Activity Costs | H95: =SUM(H79:H92) -> 2 | I95: =SUMIF(I79:I92,"<>#N/A") -> 0 | J95: =SUMIF(J79:J92,"<>#N/A") -> 0 | K95: =SUMIF(K79:K92,"<>#N/A") -> 44 | L95: =SUMIF(L79:L92,"<>#N/A") -> 139.4397892 | M95: =SUMIF(M79:M92,"<>#N/A") -> 41831.93676 | AA95: =X87 -> None | AB95: =IFERROR(VLOOKUP(AA95,Equipment!$G$6:$AB$12,12,FALSE)+VLOOKUP(AA95,Equipment!$G$6:$AB$12,15,FALSE)+VLOOKUP(AA95,Equipment!$G$6:$AB$12,17,FALSE)+VLOOKUP(AA95,Equipment!$G$6:$AB$12,18,FALSE)+VLOOKUP(AA95,Equipment!$G$6:$AB$12,19,FALSE),0) -> 0 | AC95: =IFERROR(VLOOKUP(AA95,Equipment!$G$6:$AB$12,17,FALSE),0) -> 0 | AJ95: 17-Oct | AL95: 4 | AM95: 5.2 | AN95: 5.8 | AO95: 6 | AP95: 6.8
AA96: =X88 -> None | AB96: =IFERROR(VLOOKUP(AA96,Equipment!$G$6:$AB$12,12,FALSE)+VLOOKUP(AA96,Equipment!$G$6:$AB$12,15,FALSE)+VLOOKUP(AA96,Equipment!$G$6:$AB$12,17,FALSE)+VLOOKUP(AA96,Equipment!$G$6:$AB$12,18,FALSE)+VLOOKUP(AA96,Equipment!$G$6:$AB$12,19,FALSE),0) -> 0 | AC96: =IFERROR(VLOOKUP(AA96,Equipment!$G$6:$AB$12,17,FALSE),0) -> 0

Sheet Comparison
B3: Summary for Comparison
B6: Acres Fertilized | C6: ='User Page'!C5 -> 300 | E6: Desired Nutrient Content (per year in lbs./acre) | H6: Custom Fertilzer Fee | I6: =IF(Litter!T49,Litter!F63,"N/A") -> N/A
E7: N | F7: =+Litter!D14 -> 60 | H7: Other fees per order | I7: =+'User Page'!F10 -> 0
B8: Cost of Litter per ton | C8: ='User Page'!C7 -> 45 | E8: P | F8: =+Litter!E14 -> 40
B9: Delivery Charge (if any) | C9: =Litter!C10 -> 0 | E9: K | F9: =+Litter!F14 -> 60 | H9: Diesel Fuel Price | I9: ='User Page'!F18 -> 2
B11: Litter Nutrient Analysis in % | F11: $/ton | H11: Operator Pay
B12: N | C12: =+Litter!D15 -> 3 | E12: Price of Urea (46 - 0 - 0) | F12: ='User Page'!F6 -> 400.6363636 | H12: Operator 1 | I12: ='User Page'!F14 -> 20
B13: P | C13: =+Litter!E15 -> 3 | E13: Price of Phosphate (0 - 46 - 0) | F13: ='User Page'!F7 -> 456.9454545 | H13: Operator 2 | I13: ='User Page'!F15 -> 15 | Q13: Pro rated
B14: K | C14: =+Litter!F15 -> 2.5 | E14: Price of Muriate of Potash (0 - 0 - 60) | F14: ='User Page'!F8 -> 473.0181818 | H14: Operator 3 | I14: ='User Page'!F16 -> 10 | Q14: Cost of Nutrients | R14: =((Litter!M56/2)+Litter!M62+Litter!M63) -> 20532.60079
H15: Custom Litter Applicator Fee ($/acre) | I15: =IF(Litter!T48,Litter!F57,"N/A") -> N/A | Q15: Equipment Operating Cost | R15: =(((Litter!I54+Litter!I55)/2)+Litter!I59+Litter!I60+Litter!I67+Litter!I68+Litter!I69+Litter!I70) -> 8757.858035
C16: Subsurface Litter | D16: Commercial Fertilizer | E16: Custom Broadcast Litter | H16: Custom Broadcast Fee ($/ton) | I16: =+Litter!O56 -> 6 | Q16: Fuel Cost | R16: =((Litter!J54+Litter!J55)/2)+(Litter!J59+Litter!J60+Litter!J67+Litter!J68+Litter!J69+Litter!J70) -> 1042
B17: Application Interval | C17: =+Litter!B14 -> 2 | D17: 1 | E17: =+Litter!O15 -> 2 | Q17: Labor Cost | R17: =((Litter!K52+Litter!K54+Litter!K55)/2)+(Litter!K59+Litter!K60+Litter!K67+Litter!K68+Litter!K69+Litter!K70) -> 2486
B18: Cost of Nutrients / Yr | C18: =(Litter!M56+SUM(Litter!M62:'Litter'!M64))/C17 -> 14766.3004 | D18: =+Litter!M98 -> 20893.96838 | E18: =(Litter!N54+Litter!N56+SUM(Litter!N62:'Litter'!N64))/E17 -> 18056.57708 | H18: Litter N Loss with Broadcast vs. Subsurface
B19: Equipment Cost / Yr | C19: =Litter!I73/C17 -> 8518.36413 | D19: =+Litter!I108/C17 -> 300.2610147 | E19: =SUM(Litter!O59:'Litter'!O61)/E17 -> 250.2175122 | H19: =+Litter!C16 -> 0.4 | Q19: Pro rated cost per acre litter | R19: Hours total litter (machinery) | S19: Pro rated for litter activity only | T19: percentage | U19: Pro rated costs plus non pro rated standard costs
B20: Fuel Cost / Yr | C20: =Litter!J73/C17 -> 841 | D20: =Litter!J108/C17 -> 252 | E20: =+Litter!O63/E17 -> 210 | Q20: =((Litter!L52+Litter!L54+Litter!L55+Litter!L56)/2)+Litter!L59+Litter!L60+Litter!L62+Litter!L63+Litter!L67+Litter!L68+Litter!L69+Litter!L70 -> 109.3948628 | R20: =Litter!H73-Litter!H52 -> 187 | S20: =R20-Litter!H59-Litter!H60 -> 120 | T20: =S20/R20 -> 0.6417112299 | U20: =(T20*#REF!/2)+(1-T20)*#REF! -> 
B21: Labor Cost / Yr | C21: =Litter!K73/C17 -> 1749 | D21: =Litter!K108/C17 -> 924 | E21: =+Litter!O65/E17 -> 792
B22: TOTAL Cost / Acre / Yr | C22: =Litter!L73/C17 -> 86.24888175 | D22: =Litter!L108/C17 -> 74.56743131 | E22: =SUM(E18:E21)/C6 -> 64.36264862 | U22: Repair and maintenance adjusted
B23: Field hours / Yr | C23: =Litter!H73/Comparison!C17 -> 94.5 | D23: =+Litter!H97 -> 42 | E23: =(Litter!H52+IF(Litter!T49,0,SUM(Litter!N39:N41)))/E17 -> 36 | U23: =(T20*#REF!/2)+(1-T20)*#REF! -> 
B24: Annualized PV of Cost / Acre | C24: =(IF(C25=2,((Litter!M52+Litter!J54+Litter!K54+Litter!J55+Litter!K55+Litter!M56+Litter!J59+Litter!K59+Litter!M62)+(Litter!J60+Litter!K60+Litter!M63)/(1+'User Page'!#REF!)),IF(C25=3,((Litter!M52+Litter!J54+Litter!K54+Litter!J55+Litter!K55+Litter!M56+Litter!J59+Litter!K59+Litter!M62)+(Litter!J60+Litter!K60+Litter!M63)/(1+'User Page'!#REF!)+(Litter!J61+Litter!K61+Litter!M64)/((1+'User Page'!#REF!)^2)),IF(C25=4,((Litter!M52+Litter!J54+Litter!K54+Litter!J55+Litter!K55+Litter!M56+Litter!J59+Litter!K59+Litter!M62)+(Litter!J60+Litter!K60+Litter!M63)/(1+'User Page'!#REF!)+(Litter!M52+Litter!J54+Litter!K54+Litter!J55+Litter!K55+Litter!M56+Litter!J59+Litter!K59+Litter!M62)/((1+'User Page'!#REF!)^2)+(Litter!J60+Litter!K60+Litter!M63)/((1+'User Page'!#REF!)^3)+(Litter!M52+Litter!J54+Litter!K54+Litter!J55+Litter!K55+Litter!M56+Litter!J59+Litter!K59+Litter!M62)/((1+'User Page'!#REF!)^4)+(Litter!J60+Litter!K60+Litter!M63)/((1+'User Page'!#REF!)^5)),(Litter!M52+Litter!J54+Litter!K54+Litter!J55+Litter!K55+Litter!M56+Litter!J59+Litter!K59+Litter!M62)+(Litter!J60+Litter!K60+Litter!M63)/(1+'User Page'!#REF!)+(Litter!J61+Litter!K61+Litter!M64)/((1+'User Page'!#REF!)^2)+(Litter!M52+Litter!J54+Litter!K54+Litter!J55+Litter!K55+Litter!M56+Litter!J59+Litter!K59+Litter!M62)/((1+'User Page'!#REF!)^3)+(Litter!J60+Litter!K60+Litter!M63)/((1+'User Page'!#REF!)^4)+(Litter!J61+Litter!K61+Litter!M64)/((1+'User Page'!#REF!)^5))))/IF(C17*E17=4,2,IF(C17*E17=9,3,6))+C19)/C6 ->  | D24: =(SUM(Litter!J97:K97,Litter!M98)*((1-(1+'User Page'!#REF!)^-D25)/'User Page'!#REF!)*(1+'User Page'!#REF!)/D25+D19)/C6 ->  | E24: =(IF(E25=2,((Litter!N52+Litter!N54+Litter!N56+Litter!P59+Litter!Q59+Litter!N62)+(Litter!P60+Litter!Q60+Litter!N63)/(1+'User Page'!#REF!)),IF(E25=3,((Litter!N52+Litter!N54+Litter!N56+Litter!P59+Litter!Q59+Litter!N62)+(Litter!P60+Litter!Q60+Litter!N63)/(1+'User Page'!#REF!)+(Litter!P61+Litter!Q61+Litter!N64)/((1+'User Page'!#REF!)^2)),IF(E25=4,((Litter!N52+Litter!N54+Litter!N56+Litter!P59+Litter!Q59+Litter!N62)+(Litter!P60+Litter!Q60+Litter!N63)/(1+'User Page'!#REF!)+(Litter!N52+Litter!N54+Litter!N56+Litter!P59+Litter!Q59+Litter!N62)/((1+'User Page'!#REF!)^2)+(Litter!P60+Litter!Q60+Litter!N63)/((1+'User Page'!#REF!)^3)+(Litter!N52+Litter!N54+Litter!N56+Litter!P59+Litter!Q59+Litter!N62)/((1+'User Page'!#REF!)^4)+(Litter!P60+Litter!Q60+Litter!N63)/((1+'User Page'!#REF!)^5)),(Litter!N52+Litter!N54+Litter!N56+Litter!P59+Litter!Q59+Litter!N62)+(Litter!P60+Litter!Q60+Litter!N63)/(1+'User Page'!#REF!)+(Litter!P61+Litter!Q61+Litter!N64)/((1+'User Page'!#REF!)^2)+(Litter!N52+Litter!N54+Litter!N56+Litter!P59+Litter!Q59+Litter!N62)/((1+'User Page'!#REF!)^3)+(Litter!P60+Litter!Q60+Litter!N63)/((1+'User Page'!#REF!)^4)+(Litter!P61+Litter!Q61+Litter!N64)/((1+'User Page'!#REF!)^5))))/IF(C17*E17=4,2,IF(C17*E17=9,3,6))+E19)/C6 -> 
C25: =IF(C17*E17=4,2,IF(C17*E17=9,3,IF(C17=2,4,5))) -> 2 | D25: =IF(C17*E17=4,2,IF(C17*E17=9,3,6)) -> 2 | E25: =IF(C17*E17=4,2,IF(C17*E17=9,3,IF(E17=2,4,5))) -> 2
